Workbook

Sheet Start
O1: TRUE
B11: Willkommen zum 3D und 2D-Funktionenplotter Der Vollbildmodus dient zum Anschauen und er blendet die Excelmenüleisten aus. Im Editormodus hat man die gewohnten Excel-Menüs. Man kann durch die 46 Tabellenblätter selber durchschalten und die einzelnen Funktionen manuell starten - oder hier mit Klick auf die Taste START einen automatischen DEMO-Lauf durch alle 46 Funktionen durchlaufen lassen. Bei einigen komplexen Grafiken kann kurz die Bildschirmaktualisierung hängen bleiben und einen weißen Bildschirm für eine Sekunde zeigen - das ist ein excelinternes Problem. Natürlich kann man - mit minimalen VBA-Kenntnissen die Funktionen der ersten 44 Tabellenblätter anpassen und selber neue Funktionen zeichnen. Die ersten 20 Funktionen sind im VBA Modul Z_01_Sterne - die darauffolgenden 22 3D-Plots sind im Modul Y_01_Funktionen. In der Tabelle 45 hier können direkt eigene 3D-Funktionen eingegeben werden und in der Tabelle 46 können Sie 2D-Funktionen auswerten - beides ganz ohne den VBA-Code ändern zu müssen. Die Software hier ist kostenlose Freeware; mehr kostenlose Exceltools finden Sie auf meiner Homepage www.simplesoft.at im Bereich KONTAKT und dort in den Unterbereichen FREEWARE, BWL, POWERPOINT, REISEN, STEUERTOOLS, VERWALTUNG und VORLAGEN. Viel Spaß - Stefan Wenninger PS: noch ein Tipp für alle VBA-Programmierfreudigen - auf meiner Homepage www.simplesoft.at gibt es im Bereich EXCEL-TOOLS / VBA-TOOLS ganz unten meine 2000-seitige VBA-Codesammlung zum kostenlosen Download.

Sheet 1
U2: Netz
U4: X-Zentrum | V4: 400
U5: Y-Zentrum | V5: 50
U6: Höhe | V6: 300
U7: Breite | V7: 600
U8: Laufweite | V8: 4

Sheet 2
U2: Stern
U4: X-Zentrum | V4: 700
U5: Y-Zentrum | V5: 350
U6: Höhe | V6: 250
U7: Breite | V7: 250
U8: Laufweite | V8: 5

Sheet 3
U2: Ring
U4: X-Zentrum | V4: 700
U5: Y-Zentrum | V5: 350
U6: Höhe | V6: 250
U7: Breite | V7: 250
U8: Laufweite | V8: 5
U9: Nabenradius | V9: 50

Sheet 4
U2: Rad
U4: X-Zentrum | V4: 700
U5: Y-Zentrum | V5: 350
U6: Höhe | V6: 250
U7: Breite | V7: 250
U8: Laufweite | V8: 5
U9: Nabenradius | V9: 50

Sheet 5
U2: Rad2
U4: X-Zentrum | V4: 700
U5: Y-Zentrum | V5: 350
U6: Höhe | V6: 250
U7: Breite | V7: 250
U8: Laufweite | V8: 3
U9: Nabenradius | V9: 120

Sheet 6
U2: Orden
U4: X-Zentrum | V4: 700
U5: Y-Zentrum | V5: 350
U6: Höhe | V6: 250
U7: Breite | V7: 300
U8: Laufweite | V8: 3
U9: Nabenradius | V9: 120

Sheet 7
U2: Engel
U4: X-Zentrum | V4: 700
U5: Y-Zentrum | V5: 250
U6: Höhe | V6: 300
U7: Breite | V7: 300
U8: Laufweite | V8: 3
U9: Nabenradius | V9: 120

Sheet 8
U2: Spindel
U4: X-Zentrum | V4: 700
U5: Y-Zentrum | V5: 350
U6: Höhe | V6: 250
U7: Breite | V7: 250
U8: Laufweite | V8: 3
U9: Nabenradius | V9: 100

Sheet 9
U2: Spindel2
U4: X-Zentrum | V4: 700
U5: Y-Zentrum | V5: 350
U6: Höhe | V6: 250
U7: Breite | V7: 250
U8: Laufweite | V8: 3
U9: Nabenradius | V9: 100

Sheet 10
U2: Springball
U4: X-Zentrum | V4: 700
U5: Y-Zentrum | V5: 350
U6: Höhe | V6: 250
U7: Breite | V7: 250
U8: Laufweite | V8: 3
U9: Nabenradius | V9: 120

Sheet 11
U2: Topf
U4: X-Zentrum | V4: 700
U5: Y-Zentrum | V5: 250
U6: Höhe | V6: 300
U7: Breite | V7: 300
U8: Laufweite | V8: 3
U9: Nabenradius | V9: 120

Sheet 12
U2: Kreisel
U4: X-Zentrum | V4: 700
U5: Y-Zentrum | V5: 350
U6: Höhe | V6: 300
U7: Breite | V7: 300
U8: Laufweite | V8: 3
U9: Nabenradius | V9: 120

Sheet 13
U2: Kugel
U4: X-Zentrum | V4: 700
U5: Y-Zentrum | V5: 20
U6: Höhe | V6: 300
U7: Breite | V7: 300
U8: Laufweite | V8: 8
V9: 0
Q44: 1

Sheet 14
U2: Kugel 2
U4: X-Zentrum | V4: 700
U5: Y-Zentrum | V5: 20
U6: Höhe | V6: 300
U7: Breite | V7: 300
U8: Laufweite | V8: 8

Sheet 15
U2: Kugel 3
U4: X-Zentrum | V4: 700
U5: Y-Zentrum | V5: 350
U6: Höhe | V6: 300
U7: Breite | V7: 300
U8: Laufweite | V8: 20

Sheet 16
U2: Kugel 4
U4: X-Zentrum | V4: 700
U5: Y-Zentrum | V5: 350
U6: Höhe | V6: 300
U7: Breite | V7: 300
U8: Laufweite | V8: 3

Sheet 17
U2: Stern
U4: X-Zentrum | V4: 700
U5: Y-Zentrum | V5: 350
U6: Höhe | V6: 300
U7: Breite | V7: 300
U8: Laufweite | V8: 3

Sheet 18
U2: Stern 2
U4: X-Zentrum | V4: 700
U5: Y-Zentrum | V5: 350
U6: Höhe | V6: 300
U7: Breite | V7: 300
U8: Laufweite | V8: 3

Sheet 19
U2: Stern 3
U4: X-Zentrum | V4: 700
U5: Y-Zentrum | V5: 350
U6: Höhe | V6: 300
U7: Breite | V7: 300
U8: Laufweite | V8: 3

Sheet 20
U2: Stern 4
U4: X-Zentrum | V4: 700
U5: Y-Zentrum | V5: 350
U6: Höhe | V6: 300
U7: Breite | V7: 300
U8: Laufweite | V8: 3

Sheet 21
U2: x² + y² | Z2: x
Y3: y | Z3: -2 | AA3: -1.9 | AB3: -1.8 | AC3: -1.7 | AD3: -1.6 | AE3: -1.5 | AF3: -1.4 | AG3: -1.3 | AH3: -1.2 | AI3: -1.1 | AJ3: -1 | AK3: -0.9 | AL3: -0.8 | AM3: -0.7 | AN3: -0.6 | AO3: -0.5 | AP3: -0.4 | AQ3: -0.3 | AR3: -0.2 | AS3: -0.1 | AT3: 0 | AU3: 0.1 | AV3: 0.2 | AW3: 0.3 | AX3: 0.4 | AY3: 0.5 | AZ3: 0.6 | BA3: 0.7 | BB3: 0.8 | BC3: 0.9 | BD3: 1 | BE3: 1.1 | BF3: 1.2 | BG3: 1.3 | BH3: 1.4 | BI3: 1.5 | BJ3: 1.6 | BK3: 1.7 | BL3: 1.8 | BM3: 1.9 | BN3: 2
U4: X-Zentrum | V4: 700 | Y4: -2
U5: Y-Zentrum | V5: 350 | Y5: -1.9
U6: Höhe | V6: 300 | Y6: -1.8
U7: Breite | V7: 300 | Y7: -1.7
U8: Laufweite | V8: 3 | Y8: -1.6
Y9: -1.5
Y10: -1.4
Y11: -1.3
Y12: -1.2
Y13: -1.1
Y14: -1
Y15: -0.9
Y16: -0.8
Y17: -0.7
Y18: -0.6
Y19: -0.5
Y20: -0.4
Y21: -0.3
Y22: -0.2
Y23: -0.1
Y24: 0
Y25: 0.1
Y26: 0.2
Y27: 0.3
Y28: 0.4
Y29: 0.5
Y30: 0.6
Y31: 0.7
Y32: 0.8
Y33: 0.9
Y34: 1
Y35: 1.1
Y36: 1.2
Y37: 1.3
Y38: 1.4
Y39: 1.5
Y40: 1.6
Y41: 1.7
Y42: 1.8
Y43: 1.9
Y44: 2

Sheet 22
U2: x² - y² | Z2: x
Y3: y | Z3: -2 | AA3: -1.9 | AB3: -1.8 | AC3: -1.7 | AD3: -1.6 | AE3: -1.5 | AF3: -1.4 | AG3: -1.3 | AH3: -1.2 | AI3: -1.1 | AJ3: -1 | AK3: -0.9 | AL3: -0.8 | AM3: -0.7 | AN3: -0.6 | AO3: -0.5 | AP3: -0.4 | AQ3: -0.3 | AR3: -0.2 | AS3: -0.1 | AT3: 0 | AU3: 0.1 | AV3: 0.2 | AW3: 0.3 | AX3: 0.4 | AY3: 0.5 | AZ3: 0.6 | BA3: 0.7 | BB3: 0.8 | BC3: 0.9 | BD3: 1 | BE3: 1.1 | BF3: 1.2 | BG3: 1.3 | BH3: 1.4 | BI3: 1.5 | BJ3: 1.6 | BK3: 1.7 | BL3: 1.8 | BM3: 1.9 | BN3: 2
U4: X-Zentrum | V4: 700 | Y4: -2
U5: Y-Zentrum | V5: 350 | Y5: -1.9
U6: Höhe | V6: 300 | Y6: -1.8
U7: Breite | V7: 300 | Y7: -1.7
U8: Laufweite | V8: 3 | Y8: -1.6
Y9: -1.5
Y10: -1.4
Y11: -1.3
Y12: -1.2
Y13: -1.1
Y14: -1
Y15: -0.9
Y16: -0.8
Y17: -0.7
Y18: -0.6
Y19: -0.5
Y20: -0.4
Y21: -0.3
Y22: -0.2
Y23: -0.1
Y24: 0
Y25: 0.1
Y26: 0.2
Y27: 0.3
Y28: 0.4
Y29: 0.5
Y30: 0.6
Y31: 0.7
Y32: 0.8
Y33: 0.9
Y34: 1
Y35: 1.1
Y36: 1.2
Y37: 1.3
Y38: 1.4
Y39: 1.5
Y40: 1.6
Y41: 1.7
Y42: 1.8
Y43: 1.9
Y44: 2

Sheet 23
U2: x² . y² | Z2: x
Y3: y | Z3: -2 | AA3: -1.9 | AB3: -1.8 | AC3: -1.7 | AD3: -1.6 | AE3: -1.5 | AF3: -1.4 | AG3: -1.3 | AH3: -1.2 | AI3: -1.1 | AJ3: -1 | AK3: -0.9 | AL3: -0.8 | AM3: -0.7 | AN3: -0.6 | AO3: -0.5 | AP3: -0.4 | AQ3: -0.3 | AR3: -0.2 | AS3: -0.1 | AT3: 0 | AU3: 0.1 | AV3: 0.2 | AW3: 0.3 | AX3: 0.4 | AY3: 0.5 | AZ3: 0.6 | BA3: 0.7 | BB3: 0.8 | BC3: 0.9 | BD3: 1 | BE3: 1.1 | BF3: 1.2 | BG3: 1.3 | BH3: 1.4 | BI3: 1.5 | BJ3: 1.6 | BK3: 1.7 | BL3: 1.8 | BM3: 1.9 | BN3: 2
U4: X-Zentrum | V4: 700 | Y4: -2
U5: Y-Zentrum | V5: 350 | Y5: -1.9
U6: Höhe | V6: 300 | Y6: -1.8
U7: Breite | V7: 300 | Y7: -1.7
U8: Laufweite | V8: 3 | Y8: -1.6
Y9: -1.5
Y10: -1.4
Y11: -1.3
Y12: -1.2
Y13: -1.1
Y14: -1
Y15: -0.9
Y16: -0.8
Y17: -0.7
Y18: -0.6
Y19: -0.5
Y20: -0.4
Y21: -0.3
Y22: -0.2
Y23: -0.1
Y24: 0
Y25: 0.1
Y26: 0.2
Y27: 0.3
Y28: 0.4
Y29: 0.5
Y30: 0.6
Y31: 0.7
Y32: 0.8
Y33: 0.9
Y34: 1
Y35: 1.1
Y36: 1.2
Y37: 1.3
Y38: 1.4
Y39: 1.5
Y40: 1.6
Y41: 1.7
Y42: 1.8
Y43: 1.9
Y44: 2

Sheet 24
U2: x² + y² / (1- y²) | Z2: x
Y3: y | Z3: -2 | AA3: -1.9 | AB3: -1.8 | AC3: -1.7 | AD3: -1.6 | AE3: -1.5 | AF3: -1.4 | AG3: -1.3 | AH3: -1.2 | AI3: -1.1 | AJ3: -1 | AK3: -0.9 | AL3: -0.8 | AM3: -0.7 | AN3: -0.6 | AO3: -0.5 | AP3: -0.4 | AQ3: -0.3 | AR3: -0.2 | AS3: -0.1 | AT3: 0 | AU3: 0.1 | AV3: 0.2 | AW3: 0.3 | AX3: 0.4 | AY3: 0.5 | AZ3: 0.6 | BA3: 0.7 | BB3: 0.8 | BC3: 0.9 | BD3: 1 | BE3: 1.1 | BF3: 1.2 | BG3: 1.3 | BH3: 1.4 | BI3: 1.5 | BJ3: 1.6 | BK3: 1.7 | BL3: 1.8 | BM3: 1.9 | BN3: 2
U4: X-Zentrum | V4: 700 | Y4: -2
U5: Y-Zentrum | V5: 350 | Y5: -1.9
U6: Höhe | V6: 300 | Y6: -1.8
U7: Breite | V7: 300 | Y7: -1.7
U8: Laufweite | V8: 3 | Y8: -1.6
Y9: -1.5
Y10: -1.4
Y11: -1.3
Y12: -1.2
Y13: -1.1
Y14: -1
Y15: -0.9
Y16: -0.8
Y17: -0.7
Y18: -0.6
Y19: -0.5
Y20: -0.4
Y21: -0.3
Y22: -0.2
Y23: -0.1
Y24: 0
Y25: 0.1
Y26: 0.2
Y27: 0.3
Y28: 0.4
Y29: 0.5
Y30: 0.6
Y31: 0.7
Y32: 0.8
Y33: 0.9
Y34: 1
Y35: 1.1
Y36: 1.2
Y37: 1.3
Y38: 1.4
Y39: 1.5
Y40: 1.6
Y41: 1.7
Y42: 1.8
Y43: 1.9
Y44: 2

Sheet 25
U2: √¯¯ (2 - x² - y²) | Z2: x
Y3: y | Z3: =-V4 -> -1.5 | AA3: =Z3+$V$4/20 -> -1.425 | AB3: =AA3+$V$4/20 -> -1.35 | AC3: -1.275 | AD3: -1.2 | AE3: -1.125 | AF3: -1.05 | AG3: -0.975 | AH3: -0.9 | AI3: -0.825 | AJ3: -0.75 | AK3: -0.675 | AL3: -0.6 | AM3: -0.525 | AN3: -0.45 | AO3: -0.375 | AP3: -0.3 | AQ3: -0.225 | AR3: -0.15 | AS3: -0.075 | AT3: -5.273559367e-16 | AU3: 0.075 | AV3: 0.15 | AW3: 0.225 | AX3: 0.3 | AY3: 0.375 | AZ3: 0.45 | BA3: 0.525 | BB3: 0.6 | BC3: 0.675 | BD3: 0.75 | BE3: 0.825 | BF3: 0.9 | BG3: 0.975 | BH3: 1.05 | BI3: 1.125 | BJ3: 1.2 | BK3: 1.275 | BL3: 1.35 | BM3: 1.425 | BN3: 1.5
U4: X-Bereich +/- | V4: 1.5 | Y4: =-V5 -> -1.5
U5: Y-Bereich +/- | V5: 1.5 | Y5: =Y4+$V$5/20 -> -1.425
U6: Höhe | V6: 300 | Y6: =Y5+$V$5/20 -> -1.35
U7: Breite | V7: 300 | Y7: -1.275
U8: Laufweite | V8: 3 | Y8: -1.2
Y9: -1.125
Y10: -1.05
Y11: -0.975
Y12: -0.9
Y13: -0.825
Y14: -0.75
Y15: -0.675
Y16: -0.6
Y17: -0.525
Y18: -0.45
Y19: -0.375
Y20: -0.3
Y21: -0.225
Y22: -0.15
Y23: -0.075
Y24: -5.273559367e-16
Y25: 0.075
Y26: 0.15
Y27: 0.225
Y28: 0.3
Y29: 0.375
Y30: 0.45
Y31: 0.525
Y32: 0.6
Y33: 0.675
Y34: 0.75
Y35: 0.825
Y36: 0.9
Y37: 0.975
Y38: 1.05
Y39: 1.125
Y40: 1.2
Y41: 1.275
Y42: 1.35
Y43: 1.425
Y44: 1.5

Sheet 26
U2: Sin (X ² + Y ²) | Z2: x
Y3: y | Z3: =-V4 -> -2 | AA3: =Z3+$V$4/20 -> -1.9 | AB3: =AA3+$V$4/20 -> -1.8 | AC3: -1.7 | AD3: -1.6 | AE3: -1.5 | AF3: -1.4 | AG3: -1.3 | AH3: -1.2 | AI3: -1.1 | AJ3: -1 | AK3: -0.9 | AL3: -0.8 | AM3: -0.7 | AN3: -0.6 | AO3: -0.5 | AP3: -0.4 | AQ3: -0.3 | AR3: -0.2 | AS3: -0.1 | AT3: 6.383782392e-16 | AU3: 0.1 | AV3: 0.2 | AW3: 0.3 | AX3: 0.4 | AY3: 0.5 | AZ3: 0.6 | BA3: 0.7 | BB3: 0.8 | BC3: 0.9 | BD3: 1 | BE3: 1.1 | BF3: 1.2 | BG3: 1.3 | BH3: 1.4 | BI3: 1.5 | BJ3: 1.6 | BK3: 1.7 | BL3: 1.8 | BM3: 1.9 | BN3: 2
U4: X-Bereich +/- | V4: 2 | Y4: =-V5 -> -2
U5: Y-Bereich +/- | V5: 2 | Y5: =Y4+$V$5/20 -> -1.9
U6: Höhe | V6: 300 | Y6: =Y5+$V$5/20 -> -1.8
U7: Breite | V7: 300 | Y7: -1.7
U8: Laufweite | V8: 3 | Y8: -1.6
Y9: -1.5
Y10: -1.4
Y11: -1.3
Y12: -1.2
Y13: -1.1
Y14: -1
Y15: -0.9
Y16: -0.8
Y17: -0.7
Y18: -0.6
Y19: -0.5
Y20: -0.4
Y21: -0.3
Y22: -0.2
Y23: -0.1
Y24: 6.383782392e-16
Y25: 0.1
Y26: 0.2
Y27: 0.3
Y28: 0.4
Y29: 0.5
Y30: 0.6
Y31: 0.7
Y32: 0.8
Y33: 0.9
Y34: 1
Y35: 1.1
Y36: 1.2
Y37: 1.3
Y38: 1.4
Y39: 1.5
Y40: 1.6
Y41: 1.7
Y42: 1.8
Y43: 1.9
Y44: 2

Sheet 27
U2: Sin (X ² - Y ²) | Z2: x
Y3: y | Z3: =-V4 -> -2 | AA3: =Z3+$V$4/20 -> -1.9 | AB3: =AA3+$V$4/20 -> -1.8 | AC3: -1.7 | AD3: -1.6 | AE3: -1.5 | AF3: -1.4 | AG3: -1.3 | AH3: -1.2 | AI3: -1.1 | AJ3: -1 | AK3: -0.9 | AL3: -0.8 | AM3: -0.7 | AN3: -0.6 | AO3: -0.5 | AP3: -0.4 | AQ3: -0.3 | AR3: -0.2 | AS3: -0.1 | AT3: 6.383782392e-16 | AU3: 0.1 | AV3: 0.2 | AW3: 0.3 | AX3: 0.4 | AY3: 0.5 | AZ3: 0.6 | BA3: 0.7 | BB3: 0.8 | BC3: 0.9 | BD3: 1 | BE3: 1.1 | BF3: 1.2 | BG3: 1.3 | BH3: 1.4 | BI3: 1.5 | BJ3: 1.6 | BK3: 1.7 | BL3: 1.8 | BM3: 1.9 | BN3: 2
U4: X-Bereich +/- | V4: 2 | Y4: =-V5 -> -2
U5: Y-Bereich +/- | V5: 2 | Y5: =Y4+$V$5/20 -> -1.9
U6: Höhe | V6: 300 | Y6: =Y5+$V$5/20 -> -1.8
U7: Breite | V7: 300 | Y7: -1.7
U8: Laufweite | V8: 3 | Y8: -1.6
Y9: -1.5
Y10: -1.4
Y11: -1.3
Y12: -1.2
Y13: -1.1
Y14: -1
Y15: -0.9
Y16: -0.8
Y17: -0.7
Y18: -0.6
Y19: -0.5
Y20: -0.4
Y21: -0.3
Y22: -0.2
Y23: -0.1
Y24: 6.383782392e-16
Y25: 0.1
Y26: 0.2
Y27: 0.3
Y28: 0.4
Y29: 0.5
Y30: 0.6
Y31: 0.7
Y32: 0.8
Y33: 0.9
Y34: 1
Y35: 1.1
Y36: 1.2
Y37: 1.3
Y38: 1.4
Y39: 1.5
Y40: 1.6
Y41: 1.7
Y42: 1.8
Y43: 1.9
Y44: 2

Sheet 28
U2: Sin (X ² - Y ² - 0,5) | Z2: x
Y3: y | Z3: =-V4 -> -1.5 | AA3: =Z3+$V$4/20 -> -1.425 | AB3: =AA3+$V$4/20 -> -1.35 | AC3: -1.275 | AD3: -1.2 | AE3: -1.125 | AF3: -1.05 | AG3: -0.975 | AH3: -0.9 | AI3: -0.825 | AJ3: -0.75 | AK3: -0.675 | AL3: -0.6 | AM3: -0.525 | AN3: -0.45 | AO3: -0.375 | AP3: -0.3 | AQ3: -0.225 | AR3: -0.15 | AS3: -0.075 | AT3: -5.273559367e-16 | AU3: 0.075 | AV3: 0.15 | AW3: 0.225 | AX3: 0.3 | AY3: 0.375 | AZ3: 0.45 | BA3: 0.525 | BB3: 0.6 | BC3: 0.675 | BD3: 0.75 | BE3: 0.825 | BF3: 0.9 | BG3: 0.975 | BH3: 1.05 | BI3: 1.125 | BJ3: 1.2 | BK3: 1.275 | BL3: 1.35 | BM3: 1.425 | BN3: 1.5
U4: X-Bereich +/- | V4: 1.5 | Y4: =-V5 -> -1.5
U5: Y-Bereich +/- | V5: 1.5 | Y5: =Y4+$V$5/20 -> -1.425
U6: Höhe | V6: 300 | Y6: =Y5+$V$5/20 -> -1.35
U7: Breite | V7: 300 | Y7: -1.275
U8: Laufweite | V8: 3 | Y8: -1.2
Y9: -1.125
Y10: -1.05
Y11: -0.975
Y12: -0.9
Y13: -0.825
Y14: -0.75
Y15: -0.675
Y16: -0.6
Y17: -0.525
Y18: -0.45
Y19: -0.375
Y20: -0.3
Y21: -0.225
Y22: -0.15
Y23: -0.075
Y24: -5.273559367e-16
Y25: 0.075
Y26: 0.15
Y27: 0.225
Y28: 0.3
Y29: 0.375
Y30: 0.45
Y31: 0.525
Y32: 0.6
Y33: 0.675
Y34: 0.75
Y35: 0.825
Y36: 0.9
Y37: 0.975
Y38: 1.05
Y39: 1.125
Y40: 1.2
Y41: 1.275
Y42: 1.35
Y43: 1.425
Y44: 1.5

Sheet 29
U2: Cos(X² + Y²) / (1 + X² + Y²) | Z2: x
Y3: y | Z3: =-V4 -> -2.5 | AA3: =Z3+$V$4/20 -> -2.375 | AB3: =AA3+$V$4/20 -> -2.25 | AC3: -2.125 | AD3: -2 | AE3: -1.875 | AF3: -1.75 | AG3: -1.625 | AH3: -1.5 | AI3: -1.375 | AJ3: -1.25 | AK3: -1.125 | AL3: -1 | AM3: -0.875 | AN3: -0.75 | AO3: -0.625 | AP3: -0.5 | AQ3: -0.375 | AR3: -0.25 | AS3: -0.125 | AT3: 0 | AU3: 0.125 | AV3: 0.25 | AW3: 0.375 | AX3: 0.5 | AY3: 0.625 | AZ3: 0.75 | BA3: 0.875 | BB3: 1 | BC3: 1.125 | BD3: 1.25 | BE3: 1.375 | BF3: 1.5 | BG3: 1.625 | BH3: 1.75 | BI3: 1.875 | BJ3: 2 | BK3: 2.125 | BL3: 2.25 | BM3: 2.375 | BN3: 2.5
U4: X-Bereich +/- | V4: 2.5 | Y4: =-V5 -> -2.5
U5: Y-Bereich +/- | V5: 2.5 | Y5: =Y4+$V$5/20 -> -2.375
U6: Höhe | V6: 300 | Y6: =Y5+$V$5/20 -> -2.25
U7: Breite | V7: 300 | Y7: -2.125
U8: Laufweite | V8: 3 | Y8: -2
Y9: -1.875
Y10: -1.75
Y11: -1.625
Y12: -1.5
Y13: -1.375
Y14: -1.25
Y15: -1.125
Y16: -1
Y17: -0.875
Y18: -0.75
Y19: -0.625
Y20: -0.5
Y21: -0.375
Y22: -0.25
Y23: -0.125
Y24: 0
Y25: 0.125
Y26: 0.25
Y27: 0.375
Y28: 0.5
Y29: 0.625
Y30: 0.75
Y31: 0.875
Y32: 1
Y33: 1.125
Y34: 1.25
Y35: 1.375
Y36: 1.5
Y37: 1.625
Y38: 1.75
Y39: 1.875
Y40: 2
Y41: 2.125
Y42: 2.25
Y43: 2.375
Y44: 2.5

Sheet 30
U2: x³-3x +y³-3y | Z2: x
Y3: y | Z3: =-V4 -> -2 | AA3: =Z3+$V$4/20 -> -1.9 | AB3: =AA3+$V$4/20 -> -1.8 | AC3: -1.7 | AD3: -1.6 | AE3: -1.5 | AF3: -1.4 | AG3: -1.3 | AH3: -1.2 | AI3: -1.1 | AJ3: -1 | AK3: -0.9 | AL3: -0.8 | AM3: -0.7 | AN3: -0.6 | AO3: -0.5 | AP3: -0.4 | AQ3: -0.3 | AR3: -0.2 | AS3: -0.1 | AT3: 6.383782392e-16 | AU3: 0.1 | AV3: 0.2 | AW3: 0.3 | AX3: 0.4 | AY3: 0.5 | AZ3: 0.6 | BA3: 0.7 | BB3: 0.8 | BC3: 0.9 | BD3: 1 | BE3: 1.1 | BF3: 1.2 | BG3: 1.3 | BH3: 1.4 | BI3: 1.5 | BJ3: 1.6 | BK3: 1.7 | BL3: 1.8 | BM3: 1.9 | BN3: 2
U4: X-Bereich +/- | V4: 2 | Y4: =-V5 -> -2
U5: Y-Bereich +/- | V5: 2 | Y5: =Y4+$V$5/20 -> -1.9
U6: Höhe | V6: 300 | Y6: =Y5+$V$5/20 -> -1.8
U7: Breite | V7: 300 | Y7: -1.7
U8: Laufweite | V8: 3 | Y8: -1.6
Y9: -1.5
Y10: -1.4
Y11: -1.3
Y12: -1.2
Y13: -1.1
Y14: -1
Y15: -0.9
Y16: -0.8
Y17: -0.7
Y18: -0.6
Y19: -0.5
Y20: -0.4
Y21: -0.3
Y22: -0.2
Y23: -0.1
Y24: 6.383782392e-16
Y25: 0.1
Y26: 0.2
Y27: 0.3
Y28: 0.4
Y29: 0.5
Y30: 0.6
Y31: 0.7
Y32: 0.8
Y33: 0.9
Y34: 1
Y35: 1.1
Y36: 1.2
Y37: 1.3
Y38: 1.4
Y39: 1.5
Y40: 1.6
Y41: 1.7
Y42: 1.8
Y43: 1.9
Y44: 2

Sheet 31
U2: -Sin(X . Y) | Z2: x
Y3: y | Z3: =-V4 -> -2.5 | AA3: =Z3+$V$4/20 -> -2.375 | AB3: =AA3+$V$4/20 -> -2.25 | AC3: -2.125 | AD3: -2 | AE3: -1.875 | AF3: -1.75 | AG3: -1.625 | AH3: -1.5 | AI3: -1.375 | AJ3: -1.25 | AK3: -1.125 | AL3: -1 | AM3: -0.875 | AN3: -0.75 | AO3: -0.625 | AP3: -0.5 | AQ3: -0.375 | AR3: -0.25 | AS3: -0.125 | AT3: 0 | AU3: 0.125 | AV3: 0.25 | AW3: 0.375 | AX3: 0.5 | AY3: 0.625 | AZ3: 0.75 | BA3: 0.875 | BB3: 1 | BC3: 1.125 | BD3: 1.25 | BE3: 1.375 | BF3: 1.5 | BG3: 1.625 | BH3: 1.75 | BI3: 1.875 | BJ3: 2 | BK3: 2.125 | BL3: 2.25 | BM3: 2.375 | BN3: 2.5
U4: X-Bereich +/- | V4: 2.5 | Y4: =-V5 -> -2.5
U5: Y-Bereich +/- | V5: 2.5 | Y5: =Y4+$V$5/20 -> -2.375
U6: Höhe | V6: 300 | Y6: =Y5+$V$5/20 -> -2.25
U7: Breite | V7: 300 | Y7: -2.125
U8: Laufweite | V8: 3 | Y8: -2
Y9: -1.875
Y10: -1.75
Y11: -1.625
Y12: -1.5
Y13: -1.375
Y14: -1.25
Y15: -1.125
Y16: -1
Y17: -0.875
Y18: -0.75
Y19: -0.625
Y20: -0.5
Y21: -0.375
Y22: -0.25
Y23: -0.125
Y24: 0
Y25: 0.125
Y26: 0.25
Y27: 0.375
Y28: 0.5
Y29: 0.625
Y30: 0.75
Y31: 0.875
Y32: 1
Y33: 1.125
Y34: 1.25
Y35: 1.375
Y36: 1.5
Y37: 1.625
Y38: 1.75
Y39: 1.875
Y40: 2
Y41: 2.125
Y42: 2.25
Y43: 2.375
Y44: 2.5

Sheet 32
U2: Sin(√¯¯(X ² + Y ²)) | Z2: x
Y3: y | Z3: =-V4 -> -2 | AA3: =Z3+$V$4/20 -> -1.9 | AB3: =AA3+$V$4/20 -> -1.8 | AC3: -1.7 | AD3: -1.6 | AE3: -1.5 | AF3: -1.4 | AG3: -1.3 | AH3: -1.2 | AI3: -1.1 | AJ3: -1 | AK3: -0.9 | AL3: -0.8 | AM3: -0.7 | AN3: -0.6 | AO3: -0.5 | AP3: -0.4 | AQ3: -0.3 | AR3: -0.2 | AS3: -0.1 | AT3: 6.383782392e-16 | AU3: 0.1 | AV3: 0.2 | AW3: 0.3 | AX3: 0.4 | AY3: 0.5 | AZ3: 0.6 | BA3: 0.7 | BB3: 0.8 | BC3: 0.9 | BD3: 1 | BE3: 1.1 | BF3: 1.2 | BG3: 1.3 | BH3: 1.4 | BI3: 1.5 | BJ3: 1.6 | BK3: 1.7 | BL3: 1.8 | BM3: 1.9 | BN3: 2
U4: X-Bereich +/- | V4: 2 | Y4: =-V5 -> -2
U5: Y-Bereich +/- | V5: 2 | Y5: =Y4+$V$5/20 -> -1.9
U6: Höhe | V6: 300 | Y6: =Y5+$V$5/20 -> -1.8
U7: Breite | V7: 300 | Y7: -1.7
U8: Laufweite | V8: 3 | Y8: -1.6
Y9: -1.5
Y10: -1.4
Y11: -1.3
Y12: -1.2
Y13: -1.1
Y14: -1
Y15: -0.9
Y16: -0.8
Y17: -0.7
Y18: -0.6
Y19: -0.5
Y20: -0.4
Y21: -0.3
Y22: -0.2
Y23: -0.1
Y24: 6.383782392e-16
Y25: 0.1
Y26: 0.2
Y27: 0.3
Y28: 0.4
Y29: 0.5
Y30: 0.6
Y31: 0.7
Y32: 0.8
Y33: 0.9
Y34: 1
Y35: 1.1
Y36: 1.2
Y37: 1.3
Y38: 1.4
Y39: 1.5
Y40: 1.6
Y41: 1.7
Y42: 1.8
Y43: 1.9
Y44: 2

Sheet 33
U2: Cos(√¯¯(X ² + Y ²)) | Z2: x
Y3: y | Z3: =-V4 -> -2 | AA3: =Z3+$V$4/20 -> -1.9 | AB3: =AA3+$V$4/20 -> -1.8 | AC3: -1.7 | AD3: -1.6 | AE3: -1.5 | AF3: -1.4 | AG3: -1.3 | AH3: -1.2 | AI3: -1.1 | AJ3: -1 | AK3: -0.9 | AL3: -0.8 | AM3: -0.7 | AN3: -0.6 | AO3: -0.5 | AP3: -0.4 | AQ3: -0.3 | AR3: -0.2 | AS3: -0.1 | AT3: 6.383782392e-16 | AU3: 0.1 | AV3: 0.2 | AW3: 0.3 | AX3: 0.4 | AY3: 0.5 | AZ3: 0.6 | BA3: 0.7 | BB3: 0.8 | BC3: 0.9 | BD3: 1 | BE3: 1.1 | BF3: 1.2 | BG3: 1.3 | BH3: 1.4 | BI3: 1.5 | BJ3: 1.6 | BK3: 1.7 | BL3: 1.8 | BM3: 1.9 | BN3: 2
U4: X-Bereich +/- | V4: 2 | Y4: =-V5 -> -2
U5: Y-Bereich +/- | V5: 2 | Y5: =Y4+$V$5/20 -> -1.9
U6: Höhe | V6: 300 | Y6: =Y5+$V$5/20 -> -1.8
U7: Breite | V7: 300 | Y7: -1.7
U8: Laufweite | V8: 3 | Y8: -1.6
Y9: -1.5
Y10: -1.4
Y11: -1.3
Y12: -1.2
Y13: -1.1
Y14: -1
Y15: -0.9
Y16: -0.8
Y17: -0.7
Y18: -0.6
Y19: -0.5
Y20: -0.4
Y21: -0.3
Y22: -0.2
Y23: -0.1
Y24: 6.383782392e-16
Y25: 0.1
Y26: 0.2
Y27: 0.3
Y28: 0.4
Y29: 0.5
Y30: 0.6
Y31: 0.7
Y32: 0.8
Y33: 0.9
Y34: 1
Y35: 1.1
Y36: 1.2
Y37: 1.3
Y38: 1.4
Y39: 1.5
Y40: 1.6
Y41: 1.7
Y42: 1.8
Y43: 1.9
Y44: 2

Sheet 34
U2: Sin(Cos(X) -√¯¯(X ² + Y ²)) | Z2: x
Y3: y | Z3: =-V4 -> -2 | AA3: =Z3+$V$4/20 -> -1.9 | AB3: =AA3+$V$4/20 -> -1.8 | AC3: -1.7 | AD3: -1.6 | AE3: -1.5 | AF3: -1.4 | AG3: -1.3 | AH3: -1.2 | AI3: -1.1 | AJ3: -1 | AK3: -0.9 | AL3: -0.8 | AM3: -0.7 | AN3: -0.6 | AO3: -0.5 | AP3: -0.4 | AQ3: -0.3 | AR3: -0.2 | AS3: -0.1 | AT3: 6.383782392e-16 | AU3: 0.1 | AV3: 0.2 | AW3: 0.3 | AX3: 0.4 | AY3: 0.5 | AZ3: 0.6 | BA3: 0.7 | BB3: 0.8 | BC3: 0.9 | BD3: 1 | BE3: 1.1 | BF3: 1.2 | BG3: 1.3 | BH3: 1.4 | BI3: 1.5 | BJ3: 1.6 | BK3: 1.7 | BL3: 1.8 | BM3: 1.9 | BN3: 2
U4: X-Bereich +/- | V4: 2 | Y4: =-V5 -> -2
U5: Y-Bereich +/- | V5: 2 | Y5: =Y4+$V$5/20 -> -1.9
U6: Höhe | V6: 300 | Y6: =Y5+$V$5/20 -> -1.8
U7: Breite | V7: 300 | Y7: -1.7
U8: Laufweite | V8: 3 | Y8: -1.6
Y9: -1.5
Y10: -1.4
Y11: -1.3
Y12: -1.2
Y13: -1.1
Y14: -1
Y15: -0.9
Y16: -0.8
Y17: -0.7
Y18: -0.6
Y19: -0.5
Y20: -0.4
Y21: -0.3
Y22: -0.2
Y23: -0.1
Y24: 6.383782392e-16
Y25: 0.1
Y26: 0.2
Y27: 0.3
Y28: 0.4
Y29: 0.5
Y30: 0.6
Y31: 0.7
Y32: 0.8
Y33: 0.9
Y34: 1
Y35: 1.1
Y36: 1.2
Y37: 1.3
Y38: 1.4
Y39: 1.5
Y40: 1.6
Y41: 1.7
Y42: 1.8
Y43: 1.9
Y44: 2

Sheet 35
U2: Log(Sin(√¯¯(X ² + Y ²)) ^ 2 + 0.3) | Z2: x
Y3: y | Z3: =-V4 -> -5 | AA3: =Z3+$V$4/20 -> -4.75 | AB3: =AA3+$V$4/20 -> -4.5 | AC3: -4.25 | AD3: -4 | AE3: -3.75 | AF3: -3.5 | AG3: -3.25 | AH3: -3 | AI3: -2.75 | AJ3: -2.5 | AK3: -2.25 | AL3: -2 | AM3: -1.75 | AN3: -1.5 | AO3: -1.25 | AP3: -1 | AQ3: -0.75 | AR3: -0.5 | AS3: -0.25 | AT3: 0 | AU3: 0.25 | AV3: 0.5 | AW3: 0.75 | AX3: 1 | AY3: 1.25 | AZ3: 1.5 | BA3: 1.75 | BB3: 2 | BC3: 2.25 | BD3: 2.5 | BE3: 2.75 | BF3: 3 | BG3: 3.25 | BH3: 3.5 | BI3: 3.75 | BJ3: 4 | BK3: 4.25 | BL3: 4.5 | BM3: 4.75 | BN3: 5
U4: X-Bereich +/- | V4: 5 | Y4: =-V5 -> -5
U5: Y-Bereich +/- | V5: 5 | Y5: =Y4+$V$5/20 -> -4.75
U6: Höhe | V6: 300 | Y6: =Y5+$V$5/20 -> -4.5
U7: Breite | V7: 300 | Y7: -4.25
U8: Laufweite | V8: 3 | Y8: -4
Y9: -3.75
Y10: -3.5
Y11: -3.25
Y12: -3
Y13: -2.75
Y14: -2.5
Y15: -2.25
Y16: -2
Y17: -1.75
Y18: -1.5
Y19: -1.25
Y20: -1
Y21: -0.75
Y22: -0.5
Y23: -0.25
Y24: 0
Y25: 0.25
Y26: 0.5
Y27: 0.75
Y28: 1
Y29: 1.25
Y30: 1.5
Y31: 1.75
Y32: 2
Y33: 2.25
Y34: 2.5
Y35: 2.75
Y36: 3
Y37: 3.25
Y38: 3.5
Y39: 3.75
Y40: 4
Y41: 4.25
Y42: 4.5
Y43: 4.75
Y44: 5

Sheet 36
U2: Exp(-(X ² + Y ²)) | Z2: x
Y3: y | Z3: =-V4 -> -2 | AA3: =Z3+$V$4/20 -> -1.9 | AB3: =AA3+$V$4/20 -> -1.8 | AC3: -1.7 | AD3: -1.6 | AE3: -1.5 | AF3: -1.4 | AG3: -1.3 | AH3: -1.2 | AI3: -1.1 | AJ3: -1 | AK3: -0.9 | AL3: -0.8 | AM3: -0.7 | AN3: -0.6 | AO3: -0.5 | AP3: -0.4 | AQ3: -0.3 | AR3: -0.2 | AS3: -0.1 | AT3: 6.383782392e-16 | AU3: 0.1 | AV3: 0.2 | AW3: 0.3 | AX3: 0.4 | AY3: 0.5 | AZ3: 0.6 | BA3: 0.7 | BB3: 0.8 | BC3: 0.9 | BD3: 1 | BE3: 1.1 | BF3: 1.2 | BG3: 1.3 | BH3: 1.4 | BI3: 1.5 | BJ3: 1.6 | BK3: 1.7 | BL3: 1.8 | BM3: 1.9 | BN3: 2
U4: X-Bereich +/- | V4: 2 | Y4: =-V5 -> -2
U5: Y-Bereich +/- | V5: 2 | Y5: =Y4+$V$5/20 -> -1.9
U6: Höhe | V6: 300 | Y6: =Y5+$V$5/20 -> -1.8
U7: Breite | V7: 300 | Y7: -1.7
U8: Laufweite | V8: 3 | Y8: -1.6
Y9: -1.5
Y10: -1.4
Y11: -1.3
Y12: -1.2
Y13: -1.1
Y14: -1
Y15: -0.9
Y16: -0.8
Y17: -0.7
Y18: -0.6
Y19: -0.5
Y20: -0.4
Y21: -0.3
Y22: -0.2
Y23: -0.1
Y24: 6.383782392e-16
Y25: 0.1
Y26: 0.2
Y27: 0.3
Y28: 0.4
Y29: 0.5
Y30: 0.6
Y31: 0.7
Y32: 0.8
Y33: 0.9
Y34: 1
Y35: 1.1
Y36: 1.2
Y37: 1.3
Y38: 1.4
Y39: 1.5
Y40: 1.6
Y41: 1.7
Y42: 1.8
Y43: 1.9
Y44: 2

Sheet 37
U2: Sin(Cos(X) - X * Y) | Z2: x
Y3: y | Z3: =-V4 -> -3 | AA3: =Z3+$V$4/20 -> -2.85 | AB3: =AA3+$V$4/20 -> -2.7 | AC3: -2.55 | AD3: -2.4 | AE3: -2.25 | AF3: -2.1 | AG3: -1.95 | AH3: -1.8 | AI3: -1.65 | AJ3: -1.5 | AK3: -1.35 | AL3: -1.2 | AM3: -1.05 | AN3: -0.9 | AO3: -0.75 | AP3: -0.6 | AQ3: -0.45 | AR3: -0.3 | AS3: -0.15 | AT3: -1.054711873e-15 | AU3: 0.15 | AV3: 0.3 | AW3: 0.45 | AX3: 0.6 | AY3: 0.75 | AZ3: 0.9 | BA3: 1.05 | BB3: 1.2 | BC3: 1.35 | BD3: 1.5 | BE3: 1.65 | BF3: 1.8 | BG3: 1.95 | BH3: 2.1 | BI3: 2.25 | BJ3: 2.4 | BK3: 2.55 | BL3: 2.7 | BM3: 2.85 | BN3: 3
U4: X-Bereich +/- | V4: 3 | Y4: =-V5 -> -3
U5: Y-Bereich +/- | V5: 3 | Y5: =Y4+$V$5/20 -> -2.85
U6: Höhe | V6: 300 | Y6: =Y5+$V$5/20 -> -2.7
U7: Breite | V7: 300 | Y7: -2.55
U8: Laufweite | V8: 3 | Y8: -2.4
Y9: -2.25
Y10: -2.1
Y11: -1.95
Y12: -1.8
Y13: -1.65
Y14: -1.5
Y15: -1.35
Y16: -1.2
Y17: -1.05
Y18: -0.9
Y19: -0.75
Y20: -0.6
Y21: -0.45
Y22: -0.3
Y23: -0.15
Y24: -1.054711873e-15
Y25: 0.15
Y26: 0.3
Y27: 0.45
Y28: 0.6
Y29: 0.75
Y30: 0.9
Y31: 1.05
Y32: 1.2
Y33: 1.35
Y34: 1.5
Y35: 1.65
Y36: 1.8
Y37: 1.95
Y38: 2.1
Y39: 2.25
Y40: 2.4
Y41: 2.55
Y42: 2.7
Y43: 2.85
Y44: 3

Sheet 38
U2: Cos(X * Y) | Z2: x
Y3: y | Z3: =-V4 -> -3 | AA3: =Z3+$V$4/20 -> -2.85 | AB3: =AA3+$V$4/20 -> -2.7 | AC3: -2.55 | AD3: -2.4 | AE3: -2.25 | AF3: -2.1 | AG3: -1.95 | AH3: -1.8 | AI3: -1.65 | AJ3: -1.5 | AK3: -1.35 | AL3: -1.2 | AM3: -1.05 | AN3: -0.9 | AO3: -0.75 | AP3: -0.6 | AQ3: -0.45 | AR3: -0.3 | AS3: -0.15 | AT3: -1.054711873e-15 | AU3: 0.15 | AV3: 0.3 | AW3: 0.45 | AX3: 0.6 | AY3: 0.75 | AZ3: 0.9 | BA3: 1.05 | BB3: 1.2 | BC3: 1.35 | BD3: 1.5 | BE3: 1.65 | BF3: 1.8 | BG3: 1.95 | BH3: 2.1 | BI3: 2.25 | BJ3: 2.4 | BK3: 2.55 | BL3: 2.7 | BM3: 2.85 | BN3: 3
U4: X-Bereich +/- | V4: 3 | Y4: =-V5 -> -3
U5: Y-Bereich +/- | V5: 3 | Y5: =Y4+$V$5/20 -> -2.85
U6: Höhe | V6: 300 | Y6: =Y5+$V$5/20 -> -2.7
U7: Breite | V7: 300 | Y7: -2.55
U8: Laufweite | V8: 3 | Y8: -2.4
Y9: -2.25
Y10: -2.1
Y11: -1.95
Y12: -1.8
Y13: -1.65
Y14: -1.5
Y15: -1.35
Y16: -1.2
Y17: -1.05
Y18: -0.9
Y19: -0.75
Y20: -0.6
Y21: -0.45
Y22: -0.3
Y23: -0.15
Y24: -1.054711873e-15
Y25: 0.15
Y26: 0.3
Y27: 0.45
Y28: 0.6
Y29: 0.75
Y30: 0.9
Y31: 1.05
Y32: 1.2
Y33: 1.35
Y34: 1.5
Y35: 1.65
Y36: 1.8
Y37: 1.95
Y38: 2.1
Y39: 2.25
Y40: 2.4
Y41: 2.55
Y42: 2.7
Y43: 2.85
Y44: 3

Sheet 39
U2: Cos (3 ^ Sin(X) * Tanh(X * Y)) | Z2: x
Y3: y | Z3: =-V4 -> -4 | AA3: =Z3+$V$4/20 -> -3.8 | AB3: =AA3+$V$4/20 -> -3.6 | AC3: -3.4 | AD3: -3.2 | AE3: -3 | AF3: -2.8 | AG3: -2.6 | AH3: -2.4 | AI3: -2.2 | AJ3: -2 | AK3: -1.8 | AL3: -1.6 | AM3: -1.4 | AN3: -1.2 | AO3: -1 | AP3: -0.8 | AQ3: -0.6 | AR3: -0.4 | AS3: -0.2 | AT3: 1.276756478e-15 | AU3: 0.2 | AV3: 0.4 | AW3: 0.6 | AX3: 0.8 | AY3: 1 | AZ3: 1.2 | BA3: 1.4 | BB3: 1.6 | BC3: 1.8 | BD3: 2 | BE3: 2.2 | BF3: 2.4 | BG3: 2.6 | BH3: 2.8 | BI3: 3 | BJ3: 3.2 | BK3: 3.4 | BL3: 3.6 | BM3: 3.8 | BN3: 4
U4: X-Bereich +/- | V4: 4 | Y4: =-V5 -> -4
U5: Y-Bereich +/- | V5: 4 | Y5: =Y4+$V$5/20 -> -3.8
U6: Höhe | V6: 300 | Y6: =Y5+$V$5/20 -> -3.6
U7: Breite | V7: 300 | Y7: -3.4
U8: Laufweite | V8: 3 | Y8: -3.2
Y9: -3
Y10: -2.8
Y11: -2.6
Y12: -2.4
Y13: -2.2
Y14: -2
Y15: -1.8
Y16: -1.6
Y17: -1.4
Y18: -1.2
Y19: -1
Y20: -0.8
Y21: -0.6
Y22: -0.4
Y23: -0.2
Y24: 1.276756478e-15
Y25: 0.2
Y26: 0.4
Y27: 0.6
Y28: 0.8
Y29: 1
Y30: 1.2
Y31: 1.4
Y32: 1.6
Y33: 1.8
Y34: 2
Y35: 2.2
Y36: 2.4
Y37: 2.6
Y38: 2.8
Y39: 3
Y40: 3.2
Y41: 3.4
Y42: 3.6
Y43: 3.8
Y44: 4

Sheet 40
U2: 1.5 ^ (4 - 2 * Sqr(X ² + Y ²)) | Z2: x
Y3: y | Z3: =-V4 -> -5 | AA3: =Z3+$V$4/20 -> -4.75 | AB3: =AA3+$V$4/20 -> -4.5 | AC3: -4.25 | AD3: -4 | AE3: -3.75 | AF3: -3.5 | AG3: -3.25 | AH3: -3 | AI3: -2.75 | AJ3: -2.5 | AK3: -2.25 | AL3: -2 | AM3: -1.75 | AN3: -1.5 | AO3: -1.25 | AP3: -1 | AQ3: -0.75 | AR3: -0.5 | AS3: -0.25 | AT3: 0 | AU3: 0.25 | AV3: 0.5 | AW3: 0.75 | AX3: 1 | AY3: 1.25 | AZ3: 1.5 | BA3: 1.75 | BB3: 2 | BC3: 2.25 | BD3: 2.5 | BE3: 2.75 | BF3: 3 | BG3: 3.25 | BH3: 3.5 | BI3: 3.75 | BJ3: 4 | BK3: 4.25 | BL3: 4.5 | BM3: 4.75 | BN3: 5
U4: X-Bereich +/- | V4: 5 | Y4: =-V5 -> -5
U5: Y-Bereich +/- | V5: 5 | Y5: =Y4+$V$5/20 -> -4.75
U6: Höhe | V6: 300 | Y6: =Y5+$V$5/20 -> -4.5
U7: Breite | V7: 300 | Y7: -4.25
U8: Laufweite | V8: 3 | Y8: -4
Y9: -3.75
Y10: -3.5
Y11: -3.25
Y12: -3
Y13: -2.75
Y14: -2.5
Y15: -2.25
Y16: -2
Y17: -1.75
Y18: -1.5
Y19: -1.25
Y20: -1
Y21: -0.75
Y22: -0.5
Y23: -0.25
Y24: 0
Y25: 0.25
Y26: 0.5
Y27: 0.75
Y28: 1
Y29: 1.25
Y30: 1.5
Y31: 1.75
Y32: 2
Y33: 2.25
Y34: 2.5
Y35: 2.75
Y36: 3
Y37: 3.25
Y38: 3.5
Y39: 3.75
Y40: 4
Y41: 4.25
Y42: 4.5
Y43: 4.75
Y44: 5

Sheet 41
U2: Sin(PI . x . y) / 0,5 + x² | Z2: x
Y3: y | Z3: =-V4 -> -3 | AA3: =Z3+$V$4/20 -> -2.85 | AB3: =AA3+$V$4/20 -> -2.7 | AC3: -2.55 | AD3: -2.4 | AE3: -2.25 | AF3: -2.1 | AG3: -1.95 | AH3: -1.8 | AI3: -1.65 | AJ3: -1.5 | AK3: -1.35 | AL3: -1.2 | AM3: -1.05 | AN3: -0.9 | AO3: -0.75 | AP3: -0.6 | AQ3: -0.45 | AR3: -0.3 | AS3: -0.15 | AT3: -1.054711873e-15 | AU3: 0.15 | AV3: 0.3 | AW3: 0.45 | AX3: 0.6 | AY3: 0.75 | AZ3: 0.9 | BA3: 1.05 | BB3: 1.2 | BC3: 1.35 | BD3: 1.5 | BE3: 1.65 | BF3: 1.8 | BG3: 1.95 | BH3: 2.1 | BI3: 2.25 | BJ3: 2.4 | BK3: 2.55 | BL3: 2.7 | BM3: 2.85 | BN3: 3
U4: X-Bereich +/- | V4: 3 | Y4: =-V5 -> -3
U5: Y-Bereich +/- | V5: 3 | Y5: =Y4+$V$5/20 -> -2.85
U6: Höhe | V6: 300 | Y6: =Y5+$V$5/20 -> -2.7
U7: Breite | V7: 300 | Y7: -2.55
U8: Laufweite | V8: 3 | Y8: -2.4
Y9: -2.25
Y10: -2.1
Y11: -1.95
Y12: -1.8
Y13: -1.65
Y14: -1.5
Y15: -1.35
Y16: -1.2
Y17: -1.05
Y18: -0.9
Y19: -0.75
Y20: -0.6
Y21: -0.45
Y22: -0.3
Y23: -0.15
Y24: -1.054711873e-15
Y25: 0.15
Y26: 0.3
Y27: 0.45
Y28: 0.6
Y29: 0.75
Y30: 0.9
Y31: 1.05
Y32: 1.2
Y33: 1.35
Y34: 1.5
Y35: 1.65
Y36: 1.8
Y37: 1.95
Y38: 2.1
Y39: 2.25
Y40: 2.4
Y41: 2.55
Y42: 2.7
Y43: 2.85
Y44: 3

Sheet 42
U2: 1,1 ^ (4-x²) * sin(y) | Z2: x
Y3: y | Z3: =-V4 -> -6 | AA3: =Z3+$V$4/20 -> -5.7 | AB3: =AA3+$V$4/20 -> -5.4 | AC3: -5.1 | AD3: -4.8 | AE3: -4.5 | AF3: -4.2 | AG3: -3.9 | AH3: -3.6 | AI3: -3.3 | AJ3: -3 | AK3: -2.7 | AL3: -2.4 | AM3: -2.1 | AN3: -1.8 | AO3: -1.5 | AP3: -1.2 | AQ3: -0.9 | AR3: -0.6 | AS3: -0.3 | AT3: -2.109423747e-15 | AU3: 0.3 | AV3: 0.6 | AW3: 0.9 | AX3: 1.2 | AY3: 1.5 | AZ3: 1.8 | BA3: 2.1 | BB3: 2.4 | BC3: 2.7 | BD3: 3 | BE3: 3.3 | BF3: 3.6 | BG3: 3.9 | BH3: 4.2 | BI3: 4.5 | BJ3: 4.8 | BK3: 5.1 | BL3: 5.4 | BM3: 5.7 | BN3: 6
U4: X-Bereich +/- | V4: 6 | Y4: =-V5 -> -6
U5: Y-Bereich +/- | V5: 6 | Y5: =Y4+$V$5/20 -> -5.7
U6: Höhe | V6: 300 | Y6: =Y5+$V$5/20 -> -5.4
U7: Breite | V7: 300 | Y7: -5.1
U8: Laufweite | V8: 3 | Y8: -4.8
Y9: -4.5
Y10: -4.2
Y11: -3.9
Y12: -3.6
Y13: -3.3
Y14: -3
Y15: -2.7
Y16: -2.4
Y17: -2.1
Y18: -1.8
Y19: -1.5
Y20: -1.2
Y21: -0.9
Y22: -0.6
Y23: -0.3
Y24: -2.109423747e-15
Y25: 0.3
Y26: 0.6
Y27: 0.9
Y28: 1.2
Y29: 1.5
Y30: 1.8
Y31: 2.1
Y32: 2.4
Y33: 2.7
Y34: 3
Y35: 3.3
Y36: 3.6
Y37: 3.9
Y38: 4.2
Y39: 4.5
Y40: 4.8
Y41: 5.1
Y42: 5.4
Y43: 5.7
Y44: 6

Sheet 43
U2: Tanh(Sin(X) / Cos(Y)) | Z2: x
Y3: y | Z3: =-V4 -> -5 | AA3: =Z3+$V$4/20 -> -4.75 | AB3: =AA3+$V$4/20 -> -4.5 | AC3: -4.25 | AD3: -4 | AE3: -3.75 | AF3: -3.5 | AG3: -3.25 | AH3: -3 | AI3: -2.75 | AJ3: -2.5 | AK3: -2.25 | AL3: -2 | AM3: -1.75 | AN3: -1.5 | AO3: -1.25 | AP3: -1 | AQ3: -0.75 | AR3: -0.5 | AS3: -0.25 | AT3: 0 | AU3: 0.25 | AV3: 0.5 | AW3: 0.75 | AX3: 1 | AY3: 1.25 | AZ3: 1.5 | BA3: 1.75 | BB3: 2 | BC3: 2.25 | BD3: 2.5 | BE3: 2.75 | BF3: 3 | BG3: 3.25 | BH3: 3.5 | BI3: 3.75 | BJ3: 4 | BK3: 4.25 | BL3: 4.5 | BM3: 4.75 | BN3: 5
U4: X-Bereich +/- | V4: 5 | Y4: =-V5 -> -5
U5: Y-Bereich +/- | V5: 5 | Y5: =Y4+$V$5/20 -> -4.75
U6: Höhe | V6: 300 | Y6: =Y5+$V$5/20 -> -4.5
U7: Breite | V7: 300 | Y7: -4.25
U8: Laufweite | V8: 3 | Y8: -4
Y9: -3.75
Y10: -3.5
Y11: -3.25
Y12: -3
Y13: -2.75
Y14: -2.5
Y15: -2.25
Y16: -2
Y17: -1.75
Y18: -1.5
Y19: -1.25
Y20: -1
Y21: -0.75
Y22: -0.5
Y23: -0.25
Y24: 0
Y25: 0.25
Y26: 0.5
Y27: 0.75
Y28: 1
Y29: 1.25
Y30: 1.5
Y31: 1.75
Y32: 2
Y33: 2.25
Y34: 2.5
Y35: 2.75
Y36: 3
Y37: 3.25
Y38: 3.5
Y39: 3.75
Y40: 4
Y41: 4.25
Y42: 4.5
Y43: 4.75
Y44: 5

Sheet 44
U2: ArcTan(X ^ 2 / Y ^ 2) | Z2: x
Y3: y | Z3: =-V4 -> -3 | AA3: =Z3+$V$4/20 -> -2.85 | AB3: =AA3+$V$4/20 -> -2.7 | AC3: -2.55 | AD3: -2.4 | AE3: -2.25 | AF3: -2.1 | AG3: -1.95 | AH3: -1.8 | AI3: -1.65 | AJ3: -1.5 | AK3: -1.35 | AL3: -1.2 | AM3: -1.05 | AN3: -0.9 | AO3: -0.75 | AP3: -0.6 | AQ3: -0.45 | AR3: -0.3 | AS3: -0.15 | AT3: -1.054711873e-15 | AU3: 0.15 | AV3: 0.3 | AW3: 0.45 | AX3: 0.6 | AY3: 0.75 | AZ3: 0.9 | BA3: 1.05 | BB3: 1.2 | BC3: 1.35 | BD3: 1.5 | BE3: 1.65 | BF3: 1.8 | BG3: 1.95 | BH3: 2.1 | BI3: 2.25 | BJ3: 2.4 | BK3: 2.55 | BL3: 2.7 | BM3: 2.85 | BN3: 3
U4: X-Bereich +/- | V4: 3 | Y4: =-V5 -> -3
U5: Y-Bereich +/- | V5: 3 | Y5: =Y4+$V$5/20 -> -2.85
U6: Höhe | V6: 300 | Y6: =Y5+$V$5/20 -> -2.7
U7: Breite | V7: 300 | Y7: -2.55
U8: Laufweite | V8: 3 | Y8: -2.4
Y9: -2.25
Y10: -2.1
Y11: -1.95
Y12: -1.8
Y13: -1.65
Y14: -1.5
Y15: -1.35
Y16: -1.2
Y17: -1.05
Y18: -0.9
Y19: -0.75
Y20: -0.6
Y21: -0.45
Y22: -0.3
Y23: -0.15
Y24: -1.054711873e-15
Y25: 0.15
Y26: 0.3
Y27: 0.45
Y28: 0.6
Y29: 0.75
Y30: 0.9
Y31: 1.05
Y32: 1.2
Y33: 1.35
Y34: 1.5
Y35: 1.65
Y36: 1.8
Y37: 1.95
Y38: 2.1
Y39: 2.25
Y40: 2.4
Y41: 2.55
Y42: 2.7
Y43: 2.85
Y44: 3

Sheet 45
T1: HIER FORMEL SELBER EINGEBEN | Y1: Formel | AA1: X-Step: | AC1: =ROUND(U4/50,5) -> 0.06 | AF1: Y-Step: | AH1: =ROUND(U5/50,5) -> 0.06
T2: z= | U2: 1+Sin(X^2+Y^2) | Y2: =1+SIN(3.00006^2+3.00006^2) -> 0.2494883806 | Z2: x
Y3: y | Z3: =-U4 -> -3 | AA3: =Z3+$AC$1 -> -2.94 | AB3: -2.88 | AC3: -2.82 | AD3: -2.76 | AE3: -2.7 | AF3: -2.64 | AG3: -2.58 | AH3: -2.52 | AI3: -2.46 | AJ3: -2.4 | AK3: -2.34 | AL3: -2.28 | AM3: -2.22 | AN3: -2.16 | AO3: -2.1 | AP3: -2.04 | AQ3: -1.98 | AR3: -1.92 | AS3: -1.86 | AT3: -1.8 | AU3: -1.74 | AV3: -1.68 | AW3: -1.62 | AX3: -1.56 | AY3: -1.5 | AZ3: -1.44 | BA3: -1.38 | BB3: -1.32 | BC3: -1.26 | BD3: -1.2 | BE3: -1.14 | BF3: -1.08 | BG3: -1.02 | BH3: -0.96 | BI3: -0.9 | BJ3: -0.84 | BK3: -0.78 | BL3: -0.72 | BM3: -0.66 | BN3: -0.6 | BO3: -0.54 | BP3: -0.48 | BQ3: =ROUND(BP3+$AC$1,5) -> -0.42 | BR3: -0.36 | BS3: -0.3 | BT3: -0.24 | BU3: -0.18 | BV3: -0.12 | BW3: -0.06 | BX3: =ROUND(0+$AC$1/1000,5) -> 6e-05 | BY3: =ROUND(BX3+$AC$1,5) -> 0.06006 | BZ3: 0.12006 | CA3: 0.18006 | CB3: 0.24006 | CC3: 0.30006 | CD3: 0.36006 | CE3: 0.42006 | CF3: =CE3+$AC$1 -> 0.48006 | CG3: 0.54006 | CH3: 0.60006 | CI3: 0.66006 | CJ3: 0.72006 | CK3: 0.78006 | CL3: 0.84006 | CM3: 0.90006 | CN3: 0.96006 | CO3: 1.02006 | CP3: 1.08006 | CQ3: 1.14006 | CR3: 1.20006 | CS3: 1.26006 | CT3: 1.32006 | CU3: 1.38006 | CV3: 1.44006 | CW3: 1.50006 | CX3: 1.56006 | CY3: 1.62006 | CZ3: 1.68006 | DA3: 1.74006 | DB3: 1.80006 | DC3: 1.86006 | DD3: 1.92006 | DE3: 1.98006 | DF3: 2.04006 | DG3: 2.10006 | DH3: 2.16006 | DI3: 2.22006 | DJ3: 2.28006 | DK3: 2.34006 | DL3: 2.40006 | DM3: 2.46006 | DN3: 2.52006 | DO3: 2.58006 | DP3: 2.64006 | DQ3: 2.70006 | DR3: 2.76006 | DS3: 2.82006 | DT3: 2.88006 | DU3: 2.94006 | DV3: 3.00006
T4: X-Bereich +/- | U4: 3 | V4: 300 | W4: 300 | Y4: =-U5 -> -3 | Z4: 0.2490127532 | AA4: 0.0658192835 | AB4: 0.000122308645 | AC4: 0.05278427986 | AD4: 0.2107192666 | AE4: 0.4502735508 | AF4: 0.7413380717 | AG4: 1.051540422 | AH4: 1.34999266 | AI4: 1.610239814 | AJ4: 1.812229086 | AK4: 1.943276063 | AL4: 1.998125842 | AM4: 1.978287214 | AN4: 1.890857548 | AO4: 1.74706069 | AP4: 1.560698705 | AQ4: 1.346680109 | AR4: 1.119741382 | AS4: 0.8934321336 | AT4: 0.6793926508 | AU4: 0.4869188513 | AV4: 0.3227852375 | AW4: 0.1912812236 | AX4: 0.09440917361 | AY4: 0.03219200249 | AZ4: 0.003042461885 | BA4: 0.004153496911 | BB4: 0.03187778971 | BC4: 0.08207359157 | BD4: 0.1504023168 | BE4: 0.2325705822 | BF4: 0.324515151 | BG4: 0.4225335242 | BH4: 0.5233658006 | BI4: 0.6242350869 | BJ4: 0.7228544196 | BK4: 0.8174080883 | BL4: 0.9065146684 | BM4: 0.989178172 | BN4: 1.064732667 | BO4: 1.132784627 | BP4: 1.193156247 | BQ4: 1.245832021 | BR4: 1.290910119 | BS4: 1.328559466 | BT4: 1.358982931 | BU4: 1.382386736 | BV4: 1.398955935 | BW4: 1.408835753 | BX4: 1.412118482 | BY4: 1.408829179 | BZ4: 1.398942727 | CA4: 1.382366774 | CB4: 1.358956047 | CC4: 1.328525461 | CD4: 1.290868783 | CE4: 1.245783163 | CF4: 1.193099728 | CG4: 1.132720397 | CH4: 1.064660814 | CI4: 0.9890989731 | CJ4: 0.9064286435 | CK4: 0.8173160591 | CL4: 0.7227575661 | CM4: 0.6241350005 | CN4: 0.5232645281 | CO4: 0.4224335965 | CP4: 0.3244195903 | CQ4: 0.23248288 | CR4: 0.1503263737 | CS4: 0.08201361193 | CT4: 0.03183812519 | CU4: 0.004138432687 | CV4: 0.003055946218 | CW4: 0.03223732321 | CX4: 0.09448859234 | CY4: 0.1913955862 | CZ4: 0.3229335883 | DA4: 0.487098087 | DB4: 0.6795972595 | DC4: 0.8936540688 | DD4: 1.119970124 | DE4: 1.346902967 | DF4: 1.560901391 | DG4: 1.747228187 | DH4: 1.89097527 | DI4: 1.978342393 | DJ4: 1.998109061 | DK4: 1.943182796 | DL4: 1.812061049 | DM4: 1.610005922 | DN4: 1.349709367 | DO4: 1.051231227 | DP4: 0.7410320626 | DQ4: 0.4500029249 | DR4: 0.2105159401 | DS4: 0.05267584295 | DT4: 0.0001277735185 | DU4: 0.06594522204 | DV4: 0.2492505183
T5: Y-Bereich +/- | U5: 3 | V5: 300 | W5: 300 | Y5: =Y4+$AH$1 -> -2.94 | Z5: 0.0658192835 | AA5: 3.562000898e-05 | AB5: 0.05749892147 | AC5: 0.2241654537 | AD5: 0.4745561204 | AE5: 0.7762730005 | AF5: 1.094621501 | AG5: 1.396740573 | AH5: 1.654834235 | AI5: 1.848298283 | AJ5: 1.964716179 | AK5: 1.999838599 | AL5: 1.956753593 | AM5: 1.844499206 | AN5: 1.676374622 | AO5: 1.468179481 | AP5: 1.236565402 | AQ5: 0.9976293879 | AR5: 0.7658242915 | AS5: 0.5532130923 | AT5: 0.369055038 | AU5: 0.2196842077 | AV5: 0.1086245919 | AW5: 0.03687895221 | AX5: 0.003329529196 | AY5: 0.005194873636 | AZ5: 0.03849655708 | BA5: 0.09850044653 | BB5: 0.1801081796 | BC5: 0.2781844548 | BD5: 0.387814153 | BE5: 0.5044898648 | BF5: 0.6242350869 | BG5: 0.7436713393 | BH5: 0.8600389878 | BI5: 0.9711819511 | BJ5: 1.075506031 | BK5: 1.171919609 | BL5: 1.25976415 | BM5: 1.338740525 | BN5: 1.408835753 | BO5: 1.470253467 | BP5: 1.523350301 | BQ5: 1.568579435 | BR5: 1.606441841 | BS5: 1.637445238 | BT5: 1.662070377 | BU5: 1.680744099 | BV5: 1.693818493 | BW5: 1.701555498 | BX5: 1.704116357 | BY5: 1.701550364 | BZ5: 1.69380812 | CA5: 1.680728274 | CB5: 1.66204879 | CC5: 1.637417497 | CD5: 1.606407488 | CE5: 1.56853797 | CF5: 1.523301215 | CG5: 1.470196275 | CH5: 1.408770041 | CI5: 1.338666003 | CJ5: 1.259680711 | CK5: 1.171827398 | CL5: 1.075405515 | CM5: 0.9710739925 | CN5: 0.8599249191 | CO5: 0.7435530272 | CP5: 0.6241149845 | CQ5: 0.5043710415 | CR5: 0.3877002937 | CS5: 0.2780798172 | CT5: 0.1800175009 | CU5: 0.09842878896 | CV5: 0.03844908624 | CW5: 0.00517656581 | CX5: 0.003344810324 | CY5: 0.03693127829 | CZ5: 0.10871599 | DA5: 0.2198148075 | DB5: 0.3692226343 | DC5: 0.5534127904 | DD5: 0.7660482948 | DE5: 0.9978669909 | DF5: 1.23680325 | DG5: 1.468402145 | DH5: 1.676565518 | DI5: 1.84464185 | DJ5: 1.956833148 | DK5: 1.999843604 | DL5: 1.96464031 | DM5: 1.848141931 | DN5: 1.654605657 | DO5: 1.396456359 | DP5: 1.094306114 | DQ5: 0.7759572215 | DR5: 0.4742743518 | DS5: 0.223951987 | DT5: 0.05738347596 | DU5: 3.866001189e-05 | DV5: 0.06594779339
U6: Höhe | V6: 300 | Y6: -2.88 | Z6: 0.000122308645 | AA6: 0.05749892147 | AB6: 0.2287282662 | AC6: 0.486862101 | AD6: 0.7973760325 | AE6: 1.123249083 | AF6: 1.429521884 | AG6: 1.68686251 | AH6: 1.873897549 | AI6: 1.978273509 | AJ6: 1.996576772 | AK6: 1.933348081 | AL6: 1.799480201 | AM6: 1.610292192 | AN6: 1.383542755 | AO6: 1.137591511 | AP6: 0.8898533323 | AQ6: 0.6556272238 | AR6: 0.4473249795 | AS6: 0.2740803275 | AT6: 0.1416881666 | AU6: 0.05280547906 | AV6: 0.007338842634 | AW6: 0.002945698289 | AX6: 0.03558492596 | AY6: 0.100064293 | AZ6: 0.1905457746 | BA6: 0.3009829349 | BB6: 0.4254763517 | BC6: 0.5585428015 | BD6: 0.6953013301 | BE6: 0.8315844483 | BF6: 0.9639857506 | BG6: 1.089856599 | BH6: 1.207264552 | BI6: 1.314925312 | BJ6: 1.412118485 | BK6: 1.498595677 | BL6: 1.57448757 | BM6: 1.640214886 | BN6: 1.696406531 | BO6: 1.743826898 | BP6: 1.78331321 | BQ6: 1.815722975 | BR6: 1.841891064 | BS6: 1.862595497 | BT6: 1.878530884 | BU6: 1.89028835 | BV6: 1.898340835 | BW6: 1.903032783 | BX6: 1.904573384 | BY6: 1.903029688 | BZ6: 1.898334507 | CA6: 1.890278511 | CB6: 1.878517125 | CC6: 1.862577282 | CD6: 1.841867749 | CE6: 1.815693819 | CF6: 1.7832774 | CG6: 1.743783584 | CH6: 1.696354856 | CI6: 1.64015404 | CJ6: 1.574416845 | CK6: 1.498514536 | CL6: 1.412026638 | CM6: 1.314822802 | CN6: 1.207151849 | CO6: 1.08973469 | CP6: 0.9638562313 | CQ6: 0.8314496004 | CR6: 0.6951641772 | CS6: 0.5584071342 | CT6: 0.4253467075 | CU6: 0.3008645205 | CV6: 0.1904443193 | CW6: 0.09998582192 | CX6: 0.03553544757 | CY6: 0.00293080659 | CZ6: 0.007363242531 | DA6: 0.05287245458 | DB6: 0.1417990243 | DC6: 0.2742338604 | DD6: 0.4475170118 | DE6: 0.6558503036 | DF6: 0.8900966497 | DG6: 1.137841114 | DH6: 1.383782123 | DI6: 1.610503209 | DJ6: 1.799644522 | DK6: 1.933448845 | DL6: 1.99660054 | DM6: 1.978212265 | DN6: 1.873750507 | DO6: 1.686637462 | DP6: 1.429235771 | DQ6: 1.122927543 | DR6: 0.7970517103 | DS6: 0.4865716765 | DT6: 0.2285083335 | DU6: 0.05738107207 | DV6: 0.0001280038109
U7: -160 | V7: 300 | Y7: -2.82 | Z7: 0.05278427986 | AA7: 0.2241654537 | AB7: 0.486862101 | AC7: 0.8044318712 | AD7: 1.137526022 | AE7: 1.448926191 | AF7: 1.707506258 | AG7: 1.89082751 | AH7: 1.986314176 | AI7: 1.991146378 | AJ7: 1.911134803 | AK7: 1.758904629 | AL7: 1.551723564 | AM7: 1.309273883 | AN7: 1.051606452 | AO7: 0.7974407791 | AP7: 0.5629010773 | AQ7: 0.3607130592 | AR7: 0.1998347925 | AS7: 0.08545944227 | AT7: 0.01930772725 | AU7: 0.0001212767651 | AV7: 0.02427181567 | AW7: 0.08641194865 | AX7: 0.1801081796 | AY7: 0.2984130921 | AZ7: 0.434349356 | BA7: 0.5812920866 | BB7: 0.7332473226 | BC7: 0.8850327418 | BD7: 1.032372304 | BE7: 1.171919609 | BF7: 1.301225856 | BG7: 1.418667884 | BH7: 1.523350301 | BI7: 1.614993687 | BJ7: 1.693818493 | BK7: 1.760431931 | BL7: 1.815722975 | BM7: 1.860768692 | BN7: 1.89675354 | BO7: 1.924902077 | BP7: 1.946424583 | BQ7: 1.962474504 | BR7: 1.974116251 | BS7: 1.982301712 | BT7: 1.987853803 | BU7: 1.991455474 | BV7: 1.993642755 | BW7: 1.994800638 | BX7: 1.99516082 | BY7: 1.994799905 | BZ7: 1.993641134 | CA7: 1.991452655 | CB7: 1.987849327 | CC7: 1.982294968 | CD7: 1.974106484 | CE7: 1.962460825 | CF7: 1.94640598 | CG7: 1.924877437 | CH7: 1.896721674 | CI7: 1.860728375 | CJ7: 1.815672993 | CK7: 1.760371139 | CL7: 1.693745896 | CM7: 1.614908519 | CN7: 1.523252131 | CO7: 1.418556722 | CP7: 1.30110227 | CQ7: 1.17178484 | CR7: 1.032228375 | CS7: 0.8848825421 | CT7: 0.7330946621 | CU7: 0.5811417043 | CV7: 0.4342068628 | CW7: 0.2982848358 | CX7: 0.1800010165 | CY7: 0.08633291345 | CZ7: 0.0242276873 | DA7: 0.0001180467262 | DB7: 0.01934999122 | DC7: 0.08554974961 | DD7: 0.1999730052 | DE7: 0.3608957869 | DF7: 0.56312127 | DG7: 0.7976875651 | DH7: 1.051865308 | DI7: 1.309527214 | DJ7: 1.551951737 | DK7: 1.759087459 | DL7: 1.911253454 | DM7: 1.99118553 | DN7: 1.986264272 | DO7: 1.890686801 | DP7: 1.707282335 | DQ7: 1.448636648 | DR7: 1.137197958 | DS7: 0.8041000133 | DT7: 0.4865654979 | DU7: 0.2239429054 | DV7: 0.0526689252
V8: 3 | Y8: -2.76 | Z8: 0.2107192666 | AA8: 0.4745561204 | AB8: 0.7973760325 | AC8: 1.137526022 | AD8: 1.455348195 | AE8: 1.717609135 | AF8: 1.900432722 | AG8: 1.990652955 | AH8: 1.985725364 | AI8: 1.892487189 | AJ8: 1.725134286 | AK8: 1.502795176 | AL8: 1.247044849 | AM8: 0.9796307944 | AN8: 0.7205986094 | AO8: 0.4869188513 | AP8: 0.2916410181 | AQ8: 0.1435409869 | AR8: 0.04718736042 | AS8: 0.003329529196 | AT8: 0.009503361438 | AU8: 0.06075569533 | AV8: 0.1504023168 | AW8: 0.2707521727 | AX8: 0.4137500977 | AY8: 0.5715089897 | AZ8: 0.7367185977 | BA8: 0.9029310475 | BB8: 1.064732667 | BC8: 1.217817737 | BD8: 1.358982931 | BE8: 1.486061996 | BF8: 1.59781926 | BG8: 1.693818493 | BH8: 1.774280874 | BI8: 1.839942882 | BJ8: 1.891922007 | BK8: 1.931595575 | BL8: 1.960495694 | BM8: 1.980221565 | BN8: 1.992368975 | BO8: 1.998475853 | BP8: 1.99998211 | BQ8: 1.998201641 | BR8: 1.994304256 | BS8: 1.989305326 | BT8: 1.984061086 | BU8: 1.979267783 | BV8: 1.975463082 | BW8: 1.973028479 | BX8: 1.97219171 | BY8: 1.973030141 | BZ8: 1.975466253 | CA8: 1.979272159 | CB8: 1.984066208 | CC8: 1.989310577 | CD8: 1.99430886 | CE8: 1.998204661 | CF8: 1.999982453 | CG8: 1.998472275 | CH8: 1.992360094 | CI8: 1.980205887 | CJ8: 1.960471645 | CK8: 1.931561546 | CL8: 1.89187642 | CM8: 1.839884266 | CN8: 1.774207964 | CO8: 1.693730339 | CP8: 1.59771536 | CQ8: 1.485942435 | CR8: 1.358848523 | CS8: 1.217670161 | CT8: 1.064574595 | CU8: 0.9027662273 | CV8: 0.7365518947 | CW8: 0.5713463551 | CX8: 0.4135984486 | CY8: 0.2706191659 | CZ8: 0.1502960021 | DA8: 0.0606840441 | DB8: 0.009473676072 | DC8: 0.00334775295 | DD8: 0.0472573268 | DE8: 0.1436636656 | DF8: 0.2918138345 | DG8: 0.4871351724 | DH8: 0.7208474995 | DI8: 0.9798971435 | DJ8: 1.247309963 | DK8: 1.503037885 | DL8: 1.725332578 | DM8: 1.892620309 | DN8: 1.985776232 | DO8: 1.990610675 | DP8: 1.900294869 | DQ8: 1.717383446 | DR8: 1.455053295 | DS8: 1.137190826 | DT8: 0.79703761 | DU8: 0.4742559778 | DV8: 0.2104982638
U9: 140 | Y9: -2.7 | Z9: 0.4502735508 | AA9: 0.7762730005 | AB9: 1.123249083 | AC9: 1.448926191 | AD9: 1.717609135 | AE9: 1.903541322 | AF9: 1.992514431 | AG9: 1.981859103 | AH9: 1.879127984 | AI9: 1.699879935 | AJ9: 1.464995374 | AK9: 1.197914019 | AL9: 0.9221083643 | AM9: 0.6590092468 | AN9: 0.4265010775 | AO9: 0.2380164161 | AP9: 0.1021902062 | AQ9: 0.02298643683 | AR9: 0.0001838210198 | AS9: 0.03009945505 | AT9: 0.1064361054 | AU9: 0.2211551237 | AV9: 0.3652986085 | AW9: 0.5297076326 | AX9: 0.705605347 | AY9: 0.8850327418 | AZ9: 1.061139806 | BA9: 1.228345515 | BB9: 1.382386736 | BC9: 1.520279293 | BD9: 1.640214886 | BE9: 1.741415943 | BF9: 1.823967691 | BG9: 1.888643154 | BH9: 1.936733157 | BI9: 1.969889811 | BJ9: 1.989988868 | BK9: 1.999013667 | BL9: 1.998961337 | BM9: 1.991770391 | BN9: 1.979267783 | BO9: 1.963132907 | BP9: 1.944875675 | BQ9: 1.925825789 | BR9: 1.907130455 | BS9: 1.889757998 | BT9: 1.874505195 | BU9: 1.862006423 | BV9: 1.852743122 | BW9: 1.847052331 | BX9: 1.845133414 | BY9: 1.847056159 | BZ9: 1.852750645 | CA9: 1.862017374 | CB9: 1.874519164 | CC9: 1.889774431 | CD9: 1.907148636 | CE9: 1.925844838 | CF9: 1.944894534 | CG9: 1.963150339 | CH9: 1.979282366 | CI9: 1.991780528 | CJ9: 1.998965271 | CK9: 1.999009506 | CL9: 1.989974635 | CM9: 1.969863502 | CN9: 1.936692824 | CO9: 1.888587013 | CP9: 1.823894245 | CQ9: 1.741324135 | CR9: 1.640104256 | CS9: 1.52015016 | CT9: 1.382240365 | CU9: 1.228184283 | CV9: 1.060967324 | CW9: 0.8848539336 | CX9: 0.7054264447 | CY9: 0.5295360783 | CZ9: 0.3651428307 | DA9: 0.2210241756 | DB9: 0.1063391545 | DC9: 0.03004512882 | DD9: 0.0001794300037 | DE9: 0.02303711606 | DF9: 0.1022980406 | DG9: 0.2381796369 | DH9: 0.426713438 | DI9: 0.6592596961 | DJ9: 0.9223811395 | DK9: 1.19818926 | DL9: 1.465250328 | DM9: 1.700090757 | DN9: 1.879272065 | DO9: 1.98191776 | DP9: 1.99247569 | DQ9: 1.903402439 | DR9: 1.71737843 | DS9: 1.448623779 | DT9: 1.122906107 | DU9: 0.7759291537 | DV9: 0.4499728593
Y10: -2.64 | Z10: 0.7413380717 | AA10: 1.094621501 | AB10: 1.429521884 | AC10: 1.707506258 | AD10: 1.900432722 | AE10: 1.992514431 | AF10: 1.980468459 | AG10: 1.872174239 | AH10: 1.684289846 | AI10: 1.439309051 | AJ10: 1.162505508 | AK10: 0.879125679 | AL10: 0.6120829375 | AM10: 0.3802919845 | AN10: 0.1976807755 | AO10: 0.07283610466 | AP10: 0.009183077598 | AQ10: 0.005567790697 | AR10: 0.0571034503 | AS10: 0.1561480122 | AT10: 0.2933007174 | AU10: 0.4583304189 | AV10: 0.6409759288 | AW10: 0.8315844483 | AX10: 1.021576286 | AY10: 1.203741391 | AZ10: 1.372385403 | BA10: 1.523350301 | BB10: 1.653937953 | BC10: 1.762764901 | BD10: 1.849574434 | BE10: 1.915028256 | BF10: 1.960495694 | BG10: 1.987853803 | BH10: 1.999307477 | BI10: 1.997234961 | BJ10: 1.984061086 | BK10: 1.962158174 | BL10: 1.933772918 | BM10: 1.900976381 | BN10: 1.865633709 | BO10: 1.829389874 | BP10: 1.793667864 | BQ10: 1.75967597 | BR10: 1.72842117 | BS10: 1.700726061 | BT10: 1.677247194 | BU10: 1.658493088 | BV10: 1.644840585 | BW10: 1.636548514 | BX10: 1.633767946 | BY10: 1.63655407 | BZ10: 1.644851594 | CA10: 1.658509347 | CB10: 1.677268386 | CC10: 1.700751747 | CD10: 1.728450769 | CE10: 1.759708746 | CF10: 1.793702906 | CG10: 1.829426076 | CH10: 1.865669758 | CI10: 1.901010742 | CJ10: 1.933803835 | CK10: 1.962183676 | CL10: 1.984079007 | CM10: 1.997242982 | CN10: 1.999303183 | CO10: 1.987834776 | CP10: 1.960459618 | CQ10: 1.914973062 | CR10: 1.849498468 | CS10: 1.762667113 | CT10: 1.653818105 | CU10: 1.52320918 | CV10: 1.372225023 | CW10: 1.20356516 | CX10: 1.021389126 | CY10: 0.8313928248 | CZ10: 0.6407877738 | DA10: 0.4581549122 | DB10: 0.2931479084 | DC10: 0.1560282675 | DD10: 0.05702673118 | DE10: 0.00554278051 | DF10: 0.009216207256 | DG10: 0.07293054876 | DH10: 0.1978355198 | DI10: 0.3805010887 | DJ10: 0.6123351309 | DK10: 0.8794044284 | DL10: 1.162789677 | DM10: 1.439574224 | DN10: 1.68451033 | DO10: 1.872325654 | DP10: 1.980530717 | DQ10: 1.992474809 | DR10: 1.900288601 | DS10: 1.707267065 | DT10: 1.429209759 | DU10: 1.094270275 | DV10: 0.7409903366
U11: 70 | Y11: -2.58 | Z11: 1.051540422 | AA11: 1.396740573 | AB11: 1.68686251 | AC11: 1.89082751 | AD11: 1.990652955 | AE11: 1.981859103 | AF11: 1.872174239 | AG11: 1.679021842 | AH11: 1.426327913 | AI11: 1.141156372 | AJ11: 0.8505909233 | AK11: 0.579160453 | AL11: 0.3469759394 | AM11: 0.1686287866 | AN11: 0.05280547906 | AO11: 0.002507092485 | AP11: 0.01572492788 | AQ11: 0.08641194865 | AR11: 0.205598224 | AS11: 0.3625208004 | AT11: 0.5456681523 | AU11: 0.7436713393 | AV11: 0.9460042331 | AW11: 1.143481041 | AX11: 1.328559466 | AY11: 1.495471848 | AZ11: 1.640214886 | BA11: 1.760431931 | BB11: 1.855221439 | BC11: 1.924902077 | BD11: 1.970760283 | BE11: 1.994800638 | BF11: 1.999513892 | BG11: 1.987672379 | BH11: 1.962158174 | BI11: 1.925825789 | BJ11: 1.881398519 | BK11: 1.831395708 | BL11: 1.778087041 | BM11: 1.723469398 | BN11: 1.669261692 | BO11: 1.616913301 | BP11: 1.567622113 | BQ11: 1.522358706 | BR11: 1.481893762 | BS11: 1.446826342 | BT11: 1.417611192 | BU11: 1.394583652 | BV11: 1.377981143 | BW11: 1.367960511 | BX11: 1.364610708 | BY11: 1.367967209 | BZ11: 1.377994478 | CA11: 1.394603502 | CB11: 1.417637363 | CC11: 1.446858551 | CD11: 1.481931617 | CE11: 1.522401686 | CF11: 1.567669536 | CG11: 1.616964302 | CH11: 1.669315191 | CI11: 1.723524075 | CJ11: 1.778141313 | CK11: 1.831447718 | CL11: 1.881446131 | CM11: 1.925866604 | CN11: 1.96218956 | CO11: 1.987691532 | CP11: 1.999517924 | CQ11: 1.994786697 | CR11: 1.970725705 | CS11: 1.924844578 | CT11: 1.855139334 | CU11: 1.760324374 | CV11: 1.640082129 | CW11: 1.495315485 | CX11: 1.328382649 | CY11: 1.143288646 | CZ11: 0.9458029247 | DA11: 0.7434695175 | DB11: 0.5454757399 | DC11: 0.3623488452 | DD11: 0.2054582996 | DE11: 0.08631535509 | DF11: 0.01568171465 | DG11: 0.002524957574 | DH11: 0.05288862699 | DI11: 0.1687768612 | DJ11: 0.347183174 | DK11: 0.5794151964 | DL11: 0.8508757003 | DM11: 1.141448614 | DN11: 1.426601438 | DO11: 1.679249095 | DP11: 1.872329175 | DQ11: 1.981920486 | DR11: 1.990607722 | DS11: 1.890673708 | DT11: 1.686611289 | DU11: 1.396416699 | DV11: 1.051180893
Y12: -2.52 | Z12: 1.34999266 | AA12: 1.654834235 | AB12: 1.873897549 | AC12: 1.986314176 | AD12: 1.985725364 | AE12: 1.879127984 | AF12: 1.684289846 | AG12: 1.426327913 | AH12: 1.134024867 | AI12: 0.836368539 | AJ12: 0.5596660283 | AK12: 0.3254384476 | AL12: 0.1491659491 | AM12: 0.03984100399 | AN12: 0.0002085976117 | AO12: 0.02752625507 | AP12: 0.1146612712 | AQ12: 0.2513509192 | AR12: 0.4254763517 | AS12: 0.6242350869 | AT12: 0.8351341099 | AU12: 1.046760903 | AV12: 1.249319945 | AW12: 1.434945689 | AX12: 1.59781926 | AY12: 1.734125551 | AZ12: 1.841891064 | BA12: 1.920741999 | BB12: 1.971618174 | BC12: 1.996472533 | BD12: 1.997979369 | BE12: 1.979267783 | BF12: 1.943690809 | BG12: 1.894635484 | BH12: 1.835375025 | BI12: 1.76896123 | BJ12: 1.698153176 | BK12: 1.625377094 | BL12: 1.552711755 | BM12: 1.481893762 | BN12: 1.41433744 | BO12: 1.351164661 | BP12: 1.293240597 | BQ12: 1.241212154 | BR12: 1.195546515 | BS12: 1.156567861 | BT12: 1.12449087 | BU12: 1.099450027 | BV12: 1.081524118 | BW12: 1.070755522 | BX12: 1.067164097 | BY12: 1.070762707 | BZ12: 1.081538473 | CA12: 1.099471523 | CB12: 1.124519449 | CC12: 1.15660342 | CD12: 1.195588884 | CE12: 1.241261069 | CF12: 1.293295668 | CG12: 1.351225337 | CH12: 1.414402971 | CI12: 1.481963161 | CJ12: 1.552783759 | CK12: 1.625450132 | CL12: 1.698225343 | CM12: 1.769030272 | CN12: 1.835438345 | CO12: 1.894690167 | CP12: 1.943733677 | CQ12: 1.979295486 | CR12: 1.997988508 | CS12: 1.996459833 | CT12: 1.971580691 | CU12: 1.920677372 | CV12: 1.841797799 | CW12: 1.734003314 | CX12: 1.597669181 | CY12: 1.434770629 | CZ12: 1.249124703 | DA12: 1.046552327 | DB12: 0.834921066 | DC12: 0.6240282501 | DD12: 0.4252877844 | DE12: 0.2511934171 | DF12: 0.1145474771 | DG12: 0.02746756597 | DH12: 0.0002139252479 | DI12: 0.03991548569 | DJ12: 0.1493097417 | DK12: 0.3256457687 | DL12: 0.559924626 | DM12: 0.8366597709 | DN12: 1.134324536 | DO12: 1.42660795 | DP12: 1.684520828 | DQ12: 1.879282353 | DR12: 1.985781072 | DS12: 1.986258325 | DT12: 1.873729495 | DU12: 1.654567555 | DV12: 1.349655403
Y13: -2.46 | Z13: 1.610239814 | AA13: 1.848298283 | AB13: 1.978273509 | AC13: 1.991146378 | AD13: 1.892487189 | AE13: 1.699879935 | AF13: 1.439309051 | AG13: 1.141156372 | AH13: 0.836368539 | AI13: 0.5532130923 | AJ13: 0.3148784044 | AK13: 0.1380159211 | AL13: 0.03219200249 | AM13: 0.0001212767651 | AN13: 0.03849655708 | AO13: 0.1392088731 | AP13: 0.2907582518 | AQ13: 0.4796830645 | AR13: 0.6918744962 | AS13: 0.9136854983 | AT13: 1.132784627 | AU13: 1.338740525 | AV13: 1.523350301 | AW13: 1.680744099 | AX13: 1.807309115 | AY13: 1.901480476 | AZ13: 1.963445205 | BA13: 1.994800638 | BB13: 1.998201641 | BC13: 1.977022959 | BD13: 1.935055182 | BE13: 1.876245582 | BF13: 1.804489025 | BG13: 1.723469398 | BH13: 1.636548514 | BI13: 1.546697198 | BJ13: 1.456461999 | BK13: 1.367960511 | BL13: 1.282898479 | BM13: 1.202602385 | BN13: 1.12806205 | BO13: 1.059978673 | BP13: 0.9988146931 | BQ13: 0.9448426989 | BR13: 0.8981913925 | BS13: 0.8588872648 | BT13: 0.8268911468 | BU13: 0.8021291883 | BV13: 0.7845180893 | BW13: 0.7739845765 | BX13: 0.7704792068 | BY13: 0.7739915937 | BZ13: 0.7845321545 | CA13: 0.8021503648 | CB13: 0.8269195156 | CC13: 0.8589229083 | CD13: 0.8982343717 | CE13: 0.9448930259 | CF13: 0.9988722967 | CG13: 1.06004336 | CH13: 1.128133461 | CI13: 1.202679946 | CJ13: 1.282981351 | CK13: 1.368047545 | CL13: 1.456551686 | CM13: 1.54678763 | CN13: 1.636637359 | CO13: 1.723553895 | CP13: 1.804565999 | CQ13: 1.876311495 | CR13: 1.935106222 | CS13: 1.977055174 | CT13: 1.998211124 | CU13: 1.994783759 | CV13: 1.963398895 | CW13: 1.901402553 | CX13: 1.807198626 | CY13: 1.680601681 | CZ13: 1.523178501 | DA13: 1.338544059 | DB13: 1.132570534 | DC13: 0.9134631299 | DD13: 0.6916553109 | DE13: 0.4794801721 | DF13: 0.290585695 | DG13: 0.139080641 | DH13: 0.03842536207 | DI13: 0.0001171633678 | DJ13: 0.03226090191 | DK13: 0.1381583044 | DL13: 0.3150882229 | DM13: 0.5534772129 | DN13: 0.8366668742 | DO13: 1.141462869 | DP13: 1.439593625 | DQ13: 1.700111321 | DR13: 1.892636537 | DS13: 1.991191253 | DT13: 1.978201801 | DU13: 1.848111414 | DV13: 1.609954573
Y14: -2.4 | Z14: 1.812229086 | AA14: 1.964716179 | AB14: 1.996576772 | AC14: 1.911134803 | AD14: 1.725134286 | AE14: 1.464995374 | AF14: 1.162505508 | AG14: 0.8505909233 | AH14: 0.5596660283 | AI14: 0.3148784044 | AJ14: 0.1343883607 | AK14: 0.02866813738 | AL14: 0.0006908842598 | AM14: 0.0468082253 | AN14: 0.1580851499 | AO14: 0.3218649879 | AP14: 0.5233658006 | AQ14: 0.7471527157 | AR14: 0.9783796455 | AS14: 1.203741391 | AT14: 1.412118485 | AU14: 1.594929521 | AV14: 1.746228214 | AW14: 1.862595497 | AX14: 1.942881867 | AY14: 1.987853803 | AZ14: 1.999792302 | BA14: 1.982083161 | BB14: 1.938829199 | BC14: 1.874505195 | BD14: 1.793667864 | BE14: 1.700726061 | BF14: 1.599770843 | BG14: 1.494461071 | BH14: 1.387957689 | BI14: 1.282898479 | BJ14: 1.181404729 | BK14: 1.085111599 | BL14: 0.9952147111 | BM14: 0.9125266304 | BN14: 0.8375379848 | BO14: 0.7704792033 | BP14: 0.711379884 | BQ14: 0.6601237539 | BR14: 0.6164979524 | BS14: 0.5802359822 | BT14: 0.5510541152 | BU14: 0.5286813547 | BV14: 0.5128832295 | BW14: 0.5034797833 | BX14: 0.50035812 | BY14: 0.5034860362 | BZ14: 0.5128958087 | CA14: 0.5287004084 | CB14: 0.5510798531 | CC14: 0.5802686605 | CD14: 0.616537853 | CE14: 0.6601711574 | CF14: 0.7114350367 | CG14: 0.7705422773 | CH14: 0.8376090322 | CI14: 0.9126055307 | CJ14: 0.9953011137 | CK14: 1.085204862 | CL14: 1.18150386 | CM14: 1.283002068 | CN14: 1.388063867 | CO14: 1.49456746 | CP14: 1.599874543 | CQ14: 1.700823654 | CR14: 1.79375546 | CS14: 1.874578521 | CT14: 1.938883739 | CU14: 1.982114356 | CV14: 1.999795809 | CW14: 1.987825817 | CX14: 1.942819488 | CY14: 1.862497133 | CZ14: 1.746093993 | DA14: 1.594761676 | DB14: 1.411921668 | DC14: 1.203522864 | DD14: 0.9781492963 | DE14: 0.7469228399 | DF14: 0.5231506076 | DG14: 0.3216798026 | DH14: 0.1579453092 | DI14: 0.04672770763 | DJ14: 0.0006807529871 | DK14: 0.02873493044 | DL14: 0.1345326046 | DM14: 0.315093469 | DN14: 0.5599375567 | DO14: 0.8508970589 | DP14: 1.162818092 | DQ14: 1.465282194 | DR14: 1.725362316 | DS14: 1.91127421 | DT14: 1.996605284 | DU14: 1.964623228 | DV14: 1.812019029
Y15: -2.34 | Z15: 1.943276063 | AA15: 1.999838599 | AB15: 1.933348081 | AC15: 1.758904629 | AD15: 1.502795176 | AE15: 1.197914019 | AF15: 0.879125679 | AG15: 0.579160453 | AH15: 0.3254384476 | AI15: 0.1380159211 | AJ15: 0.02866813738 | AK15: 0.0009843771563 | AL15: 0.05126097622 | AM15: 0.1699362225 | AN15: 0.3433094743 | AO15: 0.5553154528 | AP15: 0.7891718847 | AQ15: 1.028773989 | AR15: 1.25976415 | AS15: 1.470253467 | AT15: 1.651210148 | AU15: 1.79655659 | AV15: 1.903032783 | AW15: 1.969889811 | AX15: 1.998475853 | AY15: 1.991770391 | AZ15: 1.953912504 | BA15: 1.889757998 | BB15: 1.804489025 | BC15: 1.703289864 | BD15: 1.591094177 | BE15: 1.472402562 | BF15: 1.351164661 | BG15: 1.230717189 | BH15: 1.113767834 | BI15: 1.00241469 | BJ15: 0.8981913925 | BK15: 0.8021291883 | BL15: 0.7148285441 | BM15: 0.6365343257 | BN15: 0.567210035 | BO15: 0.5066078845 | BP15: 0.4543326164 | BQ15: 0.4098978953 | BR15: 0.3727748212 | BS15: 0.3424326285 | BT15: 0.3183719906 | BU15: 0.3001515493 | BV15: 0.2874083715 | BW15: 0.279873023 | BX15: 0.277379865 | BY15: 0.2798780211 | BZ15: 0.2874184769 | CA15: 0.3001669807 | CB15: 0.3183930665 | CC15: 0.3424597539 | CD15: 0.3728084704 | CE15: 0.4099385884 | CF15: 0.4543808892 | CG15: 0.5066642522 | CH15: 0.567274947 | CI15: 0.6366081135 | CJ15: 0.714911361 | CK15: 0.802220942 | CL15: 0.8982916728 | CM15: 1.002522694 | CN15: 1.113882289 | CO15: 1.230836288 | CP15: 1.351286008 | CQ15: 1.472523133 | CR15: 1.591210324 | CS15: 1.703397348 | CT15: 1.804583102 | CU15: 1.889833573 | CV15: 1.953964345 | CW15: 1.99179342 | CX15: 1.998465504 | CY15: 1.969842447 | CZ15: 1.902946161 | DA15: 1.796430337 | DB15: 1.651046208 | DC15: 1.470056471 | DD15: 1.259541649 | DE15: 1.028536483 | DF15: 0.7889325898 | DG15: 0.5550897505 | DH15: 0.3431140154 | DI15: 0.169787687 | DJ15: 0.05117453643 | DK15: 0.0009719601721 | DL15: 0.02873664407 | DM15: 0.1381656078 | DN15: 0.3256617184 | DO15: 0.5794413255 | DP15: 0.8794401658 | DQ15: 1.198231603 | DR15: 1.503081443 | DS15: 1.759124954 | DT15: 1.933472087 | DU15: 1.999844875 | DV15: 1.943156477
Y16: -2.28 | Z16: 1.998125842 | AA16: 1.956753593 | AB16: 1.799480201 | AC16: 1.551723564 | AD16: 1.247044849 | AE16: 0.9221083643 | AF16: 0.6120829375 | AG16: 0.3469759394 | AH16: 0.1491659491 | AI16: 0.03219200249 | AJ16: 0.0006908842598 | AK16: 0.05126097622 | AL16: 0.1739729159 | AM16: 0.3542370899 | AN16: 0.5747645251 | AO16: 0.8174080883 | AP16: 1.064732667 | AQ16: 1.301225856 | AR16: 1.514117088 | AS16: 1.693818493 | AT16: 1.834033123 | AU16: 1.931595575 | AV16: 1.986118054 | AW16: 1.999513892 | AX16: 1.975463082 | AY16: 1.918873067 | AZ16: 1.835375025 | BA16: 1.730882911 | BB16: 1.611230735 | BC16: 1.481893762 | BD16: 1.347791663 | BE16: 1.213166384 | BF16: 1.081524118 | BG16: 0.955629265 | BH16: 0.8375379848 | BI16: 0.7286596951 | BJ16: 0.62983623 | BK16: 0.5414300485 | BL16: 0.4634146835 | BM16: 0.3954623588 | BN16: 0.3370252701 | BO16: 0.2874083715 | BP16: 0.2458325992 | BQ16: 0.2114882999 | BR16: 0.1835792385 | BS16: 0.161357954 | BT16: 0.1441534618 | BU16: 0.1313923834 | BV16: 0.1226145655 | BW16: 0.1174841439 | BX16: 0.1157968504 | BY16: 0.1174875317 | BZ16: 0.1226214763 | CA16: 0.1314030882 | CB16: 0.1441683602 | CC16: 0.1613775651 | CD16: 0.1836041875 | CE16: 0.2115193002 | CF16: 0.2458704277 | CG16: 0.2874538379 | CH16: 0.3370791767 | CI16: 0.3955254524 | CJ16: 0.4634875968 | CK16: 0.5415132321 | CL16: 0.6299298751 | CM16: 0.7287636483 | CN16: 0.837651659 | CO16: 0.9557515484 | CP16: 1.081653289 | CQ16: 1.213300041 | CR16: 1.347926673 | CS16: 1.482026245 | CT16: 1.611356097 | CU16: 1.730995926 | CV16: 1.83547 | CW16: 1.918944073 | CX16: 1.97550428 | CY16: 1.999519934 | CZ16: 1.986084558 | DA16: 1.931519655 | DB16: 1.833913931 | DC16: 1.693657735 | DD16: 1.513919453 | DE16: 1.30099928 | DF16: 1.064488375 | DG16: 0.817160327 | DH16: 0.5745299386 | DI16: 0.3540337035 | DJ16: 0.1738187355 | DK16: 0.05117226269 | DL16: 0.0006802218414 | DM16: 0.03226634435 | DN16: 0.1493248812 | DO16: 0.347210445 | DP16: 0.612374953 | DQ16: 0.9224313876 | DR16: 1.247365773 | DS16: 1.552005771 | DT16: 1.799687755 | DU16: 1.956856163 | DV16: 1.998103747
Y17: -2.22 | Z17: 1.978287214 | AA17: 1.844499206 | AB17: 1.610292192 | AC17: 1.309273883 | AD17: 0.9796307944 | AE17: 0.6590092468 | AF17: 0.3802919845 | AG17: 0.1686287866 | AH17: 0.03984100399 | AI17: 0.0001212767651 | AJ17: 0.0468082253 | AK17: 0.1699362225 | AL17: 0.3542370899 | AM17: 0.5812920866 | AN17: 0.8315844483 | AO17: 1.086270588 | AP17: 1.328559466 | AQ17: 1.544655228 | AR17: 1.724271978 | AS17: 1.860768692 | AT17: 1.950976418 | AU17: 1.994800638 | AV17: 1.994681496 | AW17: 1.954986626 | AX17: 1.881398519 | AY17: 1.780343358 | AZ17: 1.658493088 | BA17: 1.522358706 | BB17: 1.377981143 | BC17: 1.230717189 | BD17: 1.085111599 | BE17: 0.9448426989 | BF17: 0.8127269857 | BG17: 0.690768035 | BH17: 0.5802359822 | BI17: 0.4817655111 | BJ17: 0.3954623588 | BK17: 0.3210105179 | BL17: 0.2577744126 | BM17: 0.2048922013 | BN17: 0.161357954 | BO17: 0.1260917381 | BP17: 0.09799761745 | BQ17: 0.07601026924 | BR17: 0.05913136786 | BS17: 0.04645713716 | BT17: 0.03719855751 | BU17: 0.0306956816 | BV17: 0.02642739047 | BW17: 0.02401773746 | BX17: 0.02323980428 | BY17: 0.02401930679 | BZ17: 0.02643068003 | CA17: 0.03070099337 | CB17: 0.03720634093 | CC17: 0.04646798413 | CD17: 0.05914600489 | CE17: 0.07602954562 | CF17: 0.09802248821 | CG17: 0.1261232403 | CH17: 0.1613971753 | CI17: 0.2049402382 | CJ17: 0.2578323188 | CK17: 0.3210792397 | CL17: 0.3955426596 | CM17: 0.481857883 | CN17: 0.5803405476 | CO17: 0.6908844415 | CP17: 0.8128542979 | CQ17: 0.9449792948 | CR17: 1.085255079 | CS17: 1.23086431 | CT17: 1.378127791 | CU17: 1.522499914 | CV17: 1.658623128 | CW17: 1.78045591 | CX17: 1.881486933 | CY17: 1.955044277 | CZ17: 1.994702241 | DA17: 1.994779352 | DB17: 1.950909594 | DC17: 1.860655061 | DD17: 1.724113092 | DE17: 1.544455944 | DF17: 1.328328243 | DG17: 1.086019521 | DH17: 0.8313289528 | DI17: 0.5810501748 | DJ17: 0.3540282073 | DK17: 0.1697796599 | DL17: 0.04672118222 | DM17: 0.0001167229326 | DN17: 0.03992555587 | DO17: 0.1688008786 | DP17: 0.3805406533 | DQ17: 0.6593138497 | DR17: 0.9799619304 | DS17: 1.309595678 | DT17: 1.610565935 | DU17: 1.8446881 | DV17: 1.978361763
Y18: -2.16 | Z18: 1.890857548 | AA18: 1.676374622 | AB18: 1.383542755 | AC18: 1.051606452 | AD18: 0.7205986094 | AE18: 0.4265010775 | AF18: 0.1976807755 | AG18: 0.05280547906 | AH18: 0.0002085976117 | AI18: 0.03849655708 | AJ18: 0.1580851499 | AK18: 0.3433094743 | AL18: 0.5747645251 | AM18: 0.8315844483 | AN18: 1.093441446 | AO18: 1.34212549 | AP18: 1.562641824 | AQ18: 1.743826898 | AR18: 1.878530884 | AS18: 1.963445205 | AT18: 1.998668068 | AU18: 1.987102453 | AV18: 1.933772918 | AW18: 1.845133412 | AX18: 1.72842117 | AY18: 1.591094177 | AZ18: 1.440373546 | BA18: 1.282898479 | BB18: 1.12449087 | BC18: 0.970019186 | BD18: 0.8233466265 | BE18: 0.6873464943 | BF18: 0.5639674653 | BG18: 0.4543326164 | BH18: 0.3588581026 | BI18: 0.2773798625 | BJ18: 0.2092793432 | BK18: 0.1536017395 | BL18: 0.1091624772 | BM18: 0.07463955744 | BN18: 0.04865088728 | BO18: 0.02981685396 | BP18: 0.0168091995 | BQ18: 0.008387756162 | BR18: 0.003426873451 | BS18: 0.0009334508502 | BT18: 5.843850338e-05 | BU18: 0.0001035195922 | BV18: 0.0005244771727 | BW18: 0.0009324990515 | BX18: 0.001094404496 | BY18: 0.000932188058 | BZ18: 0.00052401084 | CA18: 0.0001032089824 | CB18: 5.875030839e-05 | CC18: 0.0009350067659 | CD18: 0.003430448027 | CE18: 0.008394272008 | CF18: 0.01681971846 | CG18: 0.02983256264 | CH18: 0.04867307514 | CI18: 0.07466958551 | CJ18: 0.1092017355 | CK18: 0.1536515918 | CL18: 0.2093410568 | CM18: 0.2774545237 | CN18: 0.3589465167 | CO18: 0.4544351949 | CP18: 0.5640841032 | CQ18: 0.6874764425 | CR18: 0.8234883672 | CS18: 0.970170322 | CT18: 1.12464804 | CU18: 1.283057313 | CV18: 1.440528685 | CW18: 1.591239358 | CX18: 1.728549416 | CY18: 1.845237315 | CZ18: 1.933845046 | DA18: 1.987135859 | DB18: 1.9986569 | DC18: 1.963385383 | DD18: 1.8784208 | DE18: 1.74366807 | DF18: 1.562439428 | DG18: 1.341888683 | DH18: 1.093183373 | DI18: 0.831321856 | DJ18: 0.5745169071 | DK18: 0.3430977294 | DL18: 0.157929775 | DM18: 0.03841547913 | DN18: 0.0002148197055 | DO18: 0.0529048018 | DP18: 0.1978699143 | DQ18: 0.4267665334 | DR18: 0.720916638 | DS18: 1.051944401 | DT18: 1.383861905 | DU18: 1.67663444 | DV18: 1.891021033
Y19: -2.1 | Z19: 1.74706069 | AA19: 1.468179481 | AB19: 1.137591511 | AC19: 0.7974407791 | AD19: 0.4869188513 | AE19: 0.2380164161 | AF19: 0.07283610466 | AG19: 0.002507092485 | AH19: 0.02752625507 | AI19: 0.1392088731 | AJ19: 0.3218649879 | AK19: 0.5553154528 | AL19: 0.8174080883 | AM19: 1.086270588 | AN19: 1.34212549 | AO19: 1.568579435 | AP19: 1.753374008 | AQ19: 1.888643154 | AR19: 1.970760283 | AS19: 1.999878036 | AT19: 1.979267783 | AU19: 1.914558386 | AV19: 1.812958454 | AW19: 1.682527034 | AX19: 1.531537503 | AY19: 1.367960511 | AZ19: 1.19907574 | BA19: 1.031209624 | BB19: 0.8695872168 | BC19: 0.7182809 | BD19: 0.5802359822 | BE19: 0.4573529524 | BF19: 0.3506074934 | BG19: 0.2601917574 | BH19: 0.1856633714 | BI19: 0.1260917381 | BJ19: 0.08019418215 | BK19: 0.04645713716 | BL19: 0.0232398035 | BM19: 0.008859475163 | BN19: 0.001659055843 | BO19: 5.820048431e-05 | BP19: 0.002590087783 | BQ19: 0.007926118842 | BR19: 0.01489091187 | BS19: 0.02246988233 | BT19: 0.02981151249 | BU19: 0.03622616441 | BV19: 0.04118300701 | BW19: 0.04430633073 | BX19: 0.04537222727 | BY19: 0.04430421028 | BZ19: 0.04117891613 | CA19: 0.03622040251 | CB19: 0.02980453229 | CC19: 0.02246229356 | CD19: 0.01488348478 | CE19: 0.00791978659 | CF19: 0.002585946194 | CG19: 5.750343274e-05 | CH19: 0.001663204338 | CI19: 0.008869997887 | CJ19: 0.02325832647 | CK19: 0.04648534012 | CL19: 0.08023373952 | CM19: 0.1261442427 | CN19: 0.1857302401 | CO19: 0.2602741183 | CP19: 0.3507060563 | CQ19: 0.4574678672 | CR19: 0.580366689 | CS19: 0.7184259827 | CT19: 0.8697442692 | CU19: 1.031375147 | CV19: 1.199245082 | CW19: 1.368127879 | CX19: 1.531696061 | CY19: 1.682669103 | CZ19: 1.813075836 | DA19: 1.914642818 | DB19: 1.979311516 | DC19: 1.999874525 | DD19: 1.970704949 | DE19: 1.888534164 | DF19: 1.753213005 | DG19: 1.568372111 | DH19: 1.341881917 | DI19: 1.086005174 | DJ19: 0.8171390911 | DK19: 0.5550639581 | DL19: 0.3216533514 | DM19: 0.1390586642 | DN19: 0.02745583573 | DO19: 0.002529049859 | DP19: 0.07295484356 | DQ19: 0.2382262796 | DR19: 0.4872031648 | DS19: 0.7977721792 | DT19: 1.137933819 | DU19: 1.468491201 | DV19: 1.747299956
Y20: -2.04 | Z20: 1.560698705 | AA20: 1.236565402 | AB20: 0.8898533323 | AC20: 0.5629010773 | AD20: 0.2916410181 | AE20: 0.1021902062 | AF20: 0.009183077598 | AG20: 0.01572492788 | AH20: 0.1146612712 | AI20: 0.2907582518 | AJ20: 0.5233658006 | AK20: 0.7891718847 | AL20: 1.064732667 | AM20: 1.328559466 | AN20: 1.562641824 | AO20: 1.753374008 | AP20: 1.891922007 | AQ20: 1.974116251 | AR20: 1.99998211 | AS20: 1.973028479 | AT20: 1.899408621 | AU20: 1.787051511 | AV20: 1.644840585 | AW20: 1.481893762 | AX20: 1.306976676 | AY20: 1.12806205 | AZ20: 0.9520331058 | BA20: 0.7845180893 | BB20: 0.62983623 | BC20: 0.4910321313 | BD20: 0.369975075 | BE20: 0.2675011934 | BF20: 0.1835792385 | BG20: 0.1174841439 | BH20: 0.06796623819 | BI20: 0.03340749116 | BJ20: 0.01195931206 | BK20: 0.001659055843 | BL20: 0.0005244771727 | BM20: 0.006626918298 | BN20: 0.01814507647 | BO20: 0.03340184234 | BP20: 0.05088701395 | BQ20: 0.0692687521 | BR20: 0.08739652416 | BS20: 0.1042980477 | BT20: 0.1191724421 | BU20: 0.1313814632 | BV20: 0.1404403595 | BW20: 0.1460095641 | BX20: 0.1478881313 | BY20: 0.1460058161 | BZ20: 0.1404329989 | CA20: 0.1313707592 | CB20: 0.1191588057 | CC20: 0.1042820391 | CD20: 0.0873788614 | CE20: 0.06925032049 | CF20: 0.05086887409 | CG20: 0.03338523542 | CH20: 0.01813142472 | CI20: 0.006617818194 | CJ20: 0.0005216828683 | CK20: 0.001664449833 | CL20: 0.01197486033 | CM20: 0.03343518006 | CN20: 0.06800799087 | CO20: 0.1175417148 | CP20: 0.1836540859 | CQ20: 0.2675943318 | CR20: 0.3700869111 | CS20: 0.491162291 | CT20: 0.6299833863 | CU20: 0.7846798055 | CV20: 0.9522057112 | CW20: 1.12824057 | CX20: 1.307154835 | CY20: 1.482064095 | CZ20: 1.644994661 | DA20: 1.787180302 | DB20: 1.899503017 | DC20: 1.973079944 | DD20: 1.999983462 | DE20: 1.974062514 | DF20: 1.891811283 | DG20: 1.753208269 | DH20: 1.562427521 | DI20: 1.32830784 | DJ20: 1.064459635 | DK20: 0.788897401 | DL20: 0.5231126359 | DM20: 0.2905501744 | DN20: 0.1145207101 | DO20: 0.01567028589 | DP20: 0.00922596243 | DQ20: 0.1023329392 | DR20: 0.2918748378 | DS20: 0.563205467 | DT20: 0.8901968396 | DU20: 1.236908176 | DV20: 1.560996759
U21: 1+Sin(X^2+Y^2) | Y21: -1.98 | Z21: 1.346680109 | AA21: 0.9976293879 | AB21: 0.6556272238 | AC21: 0.3607130592 | AD21: 0.1435409869 | AE21: 0.02298643683 | AF21: 0.005567790697 | AG21: 0.08641194865 | AH21: 0.2513509192 | AI21: 0.4796830645 | AJ21: 0.7471527157 | AK21: 1.028773989 | AL21: 1.301225856 | AM21: 1.544655228 | AN21: 1.743826898 | AO21: 1.888643154 | AP21: 1.974116251 | AQ21: 1.999913124 | AR21: 1.969605848 | AS21: 1.889757998 | AT21: 1.76896123 | AU21: 1.616913301 | AV21: 1.443602819 | AW21: 1.258640639 | AX21: 1.070755522 | AY21: 0.8874536555 | AZ21: 0.7148285441 | BA21: 0.5574993207 | BB21: 0.4186512894 | BC21: 0.3001515493 | BD21: 0.202714073 | BE21: 0.1260917381 | BF21: 0.06927681216 | BG21: 0.0306956816 | BH21: 0.008387756162 | BI21: 0.0001621940291 | BJ21: 0.003729207826 | BK21: 0.01680517579 | BL21: 0.03719260253 | BM21: 0.06283721171 | BN21: 0.09186519558 | BO21: 0.1226039916 | BP21: 0.1535900027 | BQ21: 0.183566512 | BR21: 0.2114747456 | BS21: 0.2364406611 | BT21: 0.2577596432 | BU21: 0.2748808903 | BV21: 0.2873929094 | BW21: 0.2950112052 | BX21: 0.2975689518 | BY21: 0.2950060963 | BZ21: 0.2873828045 | CA21: 0.2748660137 | CB21: 0.2577403412 | CC21: 0.2364174127 | CD21: 0.211448176 | CE21: 0.183537408 | CF21: 0.1535593283 | CG21: 0.1225729028 | CH21: 0.09183505162 | CI21: 0.06280958111 | CJ21: 0.03716926085 | CK21: 0.01678809188 | CL21: 0.003720515396 | CM21: 0.0001641450103 | CN21: 0.008402652628 | CO21: 0.03072578351 | CP21: 0.06932421918 | CQ21: 0.1261582452 | CR21: 0.2028010021 | CS21: 0.3002595607 | CT21: 0.4187801825 | CU21: 0.5576478348 | CV21: 0.7149941766 | CW21: 0.8876325173 | CX21: 1.070942255 | CY21: 1.258828423 | CZ21: 1.443783491 | DA21: 1.617077622 | DB21: 1.769099302 | DC21: 1.889859854 | DD21: 1.969662195 | DE21: 1.999916227 | DF21: 1.974060885 | DG21: 1.888527557 | DH21: 1.743653629 | DI21: 1.544431786 | DJ21: 1.30096495 | DK21: 1.0284933 | DL21: 0.7468740809 | DM21: 0.4794309912 | DN21: 0.25115047 | DO21: 0.08628609494 | DP21: 0.005534456383 | DQ21: 0.02305555827 | DR21: 0.1437120061 | DS21: 0.3609733175 | DT21: 0.6559517084 | DU21: 0.9979821906 | DV21: 1.347017763
U22: x*y | Y22: -1.92 | Z22: 1.119741382 | AA22: 0.7658242915 | AB22: 0.4473249795 | AC22: 0.1998347925 | AD22: 0.04718736042 | AE22: 0.0001838210198 | AF22: 0.0571034503 | AG22: 0.205598224 | AH22: 0.4254763517 | AI22: 0.6918744962 | AJ22: 0.9783796455 | AK22: 1.25976415 | AL22: 1.514117088 | AM22: 1.724271978 | AN22: 1.878530884 | AO22: 1.970760283 | AP22: 1.99998211 | AQ22: 1.969605848 | AR22: 1.88644865 | AS22: 1.75967597 | AT22: 1.599770843 | AU22: 1.417611192 | AV22: 1.223705519 | AW22: 1.027611183 | AX22: 0.8375379848 | AY22: 0.6601237539 | AZ22: 0.5003581169 | BA22: 0.3616249717 | BB22: 0.2458325992 | BC22: 0.1536017395 | BD22: 0.08448538017 | BE22: 0.03719855751 | BF22: 0.009841442385 | BG22: 0.0001038369461 | BH22: 0.005443583664 | BI22: 0.02323507996 | BJ22: 0.05088701395 | BK22: 0.08593059609 | BL22: 0.1260810252 | BM22: 0.1692757973 | BN22: 0.213693859 | BO22: 0.2577596432 | BP22: 0.3001358071 | BQ22: 0.3397081189 | BR22: 0.3755654818 | BS22: 0.4069775966 | BT22: 0.4333722959 | BU22: 0.4543141476 | BV22: 0.4694855487 | BW22: 0.4786712096 | BX22: 0.4817466594 | BY22: 0.4786650624 | BZ22: 0.4694733392 | CA22: 0.4542960441 | CB22: 0.4333485628 | CC22: 0.4069486074 | CD22: 0.375531737 | CE22: 0.3396702662 | CF22: 0.3000946634 | CG22: 0.2577162177 | CH22: 0.2136493745 | CI22: 0.1692317085 | CJ22: 0.1260390301 | CK22: 0.08589263842 | CL22: 0.05085527211 | CM22: 0.02321193903 | CN22: 0.005431586107 | CO22: 0.0001056083363 | CP22: 0.009859588738 | CQ22: 0.03723553221 | CR22: 0.0845433201 | CS22: 0.1536822727 | CT22: 0.2459366295 | CU22: 0.3617524498 | CV22: 0.5005078124 | CW22: 0.6602930474 | CX22: 0.8377227042 | CY22: 1.027805512 | CZ22: 1.223902009 | DA22: 1.417800907 | DB22: 1.599943669 | DC22: 1.7598211 | DD22: 1.886555263 | DE22: 1.969663955 | DF22: 1.999983544 | DG22: 1.970699758 | DH22: 1.878407037 | DI22: 1.724088263 | DJ22: 1.513882394 | DK22: 1.259492975 | DL22: 0.9780917101 | DM22: 0.691593669 | DN22: 0.4252288643 | DO22: 0.2054102111 | DP22: 0.05699797487 | DQ22: 0.0001776613419 | DR22: 0.04728795251 | DS22: 0.2000378059 | DT22: 0.4476130375 | DU22: 0.7661672997 | DV22: 1.120098787
Y23: -1.86 | Z23: 0.8934321336 | AA23: 0.5532130923 | AB23: 0.2740803275 | AC23: 0.08545944227 | AD23: 0.003329529196 | AE23: 0.03009945505 | AF23: 0.1561480122 | AG23: 0.3625208004 | AH23: 0.6242350869 | AI23: 0.9136854983 | AJ23: 1.203741391 | AK23: 1.470253467 | AL23: 1.693818493 | AM23: 1.860768692 | AN23: 1.963445205 | AO23: 1.999878036 | AP23: 1.973028479 | AQ23: 1.889757998 | AR23: 1.75967597 | AS23: 1.593994109 | AT23: 1.404484135 | AU23: 1.202602385 | AV23: 0.9988146931 | AW23: 0.8021291883 | AX23: 0.6198251744 | AY23: 0.4573529524 | AZ23: 0.3183719906 | BA23: 0.2048922013 | BB23: 0.1174841439 | BC23: 0.05552757631 | BD23: 0.01747286103 | BE23: 0.001095435724 | BF23: 0.003729207826 | BG23: 0.02246988233 | BH23: 0.05434360588 | BI23: 0.09643979082 | BJ23: 0.1460095641 | BK23: 0.2005330382 | BL23: 0.2577596432 | BM23: 0.3157262255 | BN23: 0.3727576564 | BO23: 0.4274544218 | BP23: 0.4786712096 | BQ23: 0.5254899487 | BR23: 0.5671901669 | BS23: 0.6032189663 | BT23: 0.633162398 | BU23: 0.6567195709 | BV23: 0.6736804611 | BW23: 0.6839080963 | BX23: 0.6873255566 | BY23: 0.683901262 | BZ23: 0.673666846 | CA23: 0.6566992802 | CB23: 0.6331356026 | CC23: 0.6031859184 | CD23: 0.5671512199 | CE23: 0.5254455816 | CF23: 0.4786220541 | CG23: 0.4274012923 | CH23: 0.3727015799 | CI23: 0.3156684704 | CJ23: 0.257701744 | CK23: 0.2004768131 | CL23: 0.1459571214 | CM23: 0.09639352074 | CN23: 0.05430615168 | CO23: 0.02244408749 | CP23: 0.003718033792 | CQ23: 0.001101846649 | CR23: 0.01749967307 | CS23: 0.0555772712 | CT23: 0.1175586494 | CU23: 0.2049926455 | CV23: 0.318498441 | CW23: 0.4575041572 | CX23: 0.6199983285 | CY23: 0.8023197519 | CZ23: 0.9990162966 | DA23: 1.202806854 | DB23: 1.404681671 | DC23: 1.594173655 | DD23: 1.759825781 | DE23: 1.889866423 | DF23: 1.973084922 | DG23: 1.999874068 | DH23: 1.96337573 | DI23: 1.860633063 | DJ23: 1.693621431 | DK23: 1.470005631 | DL23: 1.20345942 | DM23: 0.9133914002 | DN23: 0.6239548621 | DO23: 0.3622822914 | DP23: 0.1559780654 | DQ23: 0.03002061063 | DR23: 0.003356588579 | DS23: 0.08559637693 | DT23: 0.2743180699 | DU23: 0.5535287525 | DV23: 0.893790094
Y24: -1.8 | Z24: 0.6793926508 | AA24: 0.369055038 | AB24: 0.1416881666 | AC24: 0.01930772725 | AD24: 0.009503361438 | AE24: 0.1064361054 | AF24: 0.2933007174 | AG24: 0.5456681523 | AH24: 0.8351341099 | AI24: 1.132784627 | AJ24: 1.412118485 | AK24: 1.651210148 | AL24: 1.834033123 | AM24: 1.950976418 | AN24: 1.998668068 | AO24: 1.979267783 | AP24: 1.899408621 | AQ24: 1.76896123 | AR24: 1.599770843 | AS24: 1.404484135 | AT24: 1.195546515 | AU24: 0.9844153238 | AV24: 0.781004065 | AW24: 0.5933489701 | AX24: 0.4274724913 | AY24: 0.2874083715 | AZ24: 0.1753487832 | BA24: 0.09187442314 | BB24: 0.03623204297 | BC24: 0.006629451605 | BD24: 0.0005244771727 | BE24: 0.01489091187 | BF24: 0.04645049791 | BG24: 0.09186519558 | BH24: 0.1478881332 | BI24: 0.2114747456 | BJ24: 0.2798577314 | BK24: 0.3505907337 | BL24: 0.4215662283 | BM24: 0.4910131604 | BN24: 0.5574795567 | BO24: 0.6198047901 | BP24: 0.6770855026 | BQ24: 0.7286384828 | BR24: 0.7739631076 | BS24: 0.8127053365 | BT24: 0.8446247093 | BU24: 0.8695653658 | BV24: 0.8874317563 | BW24: 0.8981694678 | BX24: 0.9017514027 | BY24: 0.8981623016 | BZ24: 0.8874174443 | CA24: 0.8695439468 | CB24: 0.8445962556 | CC24: 0.8126699701 | CD24: 0.7739210224 | CE24: 0.7285899708 | CF24: 0.6770309855 | CG24: 0.6197448537 | CH24: 0.557414988 | CI24: 0.4909449855 | CJ24: 0.4214957485 | CK24: 0.3505195567 | CL24: 0.2797877948 | CM24: 0.2114083277 | CN24: 0.1478278459 | CO24: 0.0918139547 | CP24: 0.04641146461 | CQ24: 0.01486740038 | CR24: 0.0005198242215 | CS24: 0.006646844769 | CT24: 0.03627430796 | CU24: 0.09194377347 | CV24: 0.1754465404 | CW24: 0.2875346698 | CX24: 0.4276259868 | CY24: 0.5935265817 | CZ24: 0.7812007793 | DA24: 0.9846241023 | DB24: 1.195758344 | DC24: 1.404688255 | DD24: 1.599955189 | DE24: 1.769113107 | DF24: 1.8995156 | DG24: 1.9793188 | DH24: 1.998654661 | DI24: 1.950893995 | DJ24: 1.833882141 | DK24: 1.650997021 | DL24: 1.411856059 | DM24: 1.132492032 | DN24: 0.8348358519 | DO24: 0.5453923691 | DP24: 0.2930766099 | DQ24: 0.1062906954 | DR24: 0.009457863037 | DS24: 0.01937396071 | DT24: 0.1418655569 | DU24: 0.369328792 | DV24: 0.6797336713
Y25: -1.74 | Z25: 0.4869188513 | AA25: 0.2196842077 | AB25: 0.05280547906 | AC25: 0.0001212767651 | AD25: 0.06075569533 | AE25: 0.2211551237 | AF25: 0.4583304189 | AG25: 0.7436713393 | AH25: 1.046760903 | AI25: 1.338740525 | AJ25: 1.594929521 | AK25: 1.79655659 | AL25: 1.931595575 | AM25: 1.994800638 | AN25: 1.987102453 | AO25: 1.914558386 | AP25: 1.787051511 | AQ25: 1.616913301 | AR25: 1.417611192 | AS25: 1.202602385 | AT25: 0.9844153238 | AU25: 0.7739845765 | AV25: 0.5802359822 | AW25: 0.4098978953 | AX25: 0.2675011934 | AY25: 0.1555244016 | AZ25: 0.07463955744 | BA25: 0.02401773746 | BB25: 0.001659055843 | BC25: 0.004719132574 | BD25: 0.02981151249 | BE25: 0.07327255719 | BF25: 0.1313814632 | BG25: 0.2005330382 | BH25: 0.2773646282 | BI25: 0.3588411894 | BJ25: 0.4423040868 | BK25: 0.5254899487 | BL25: 0.6065260181 | BM25: 0.6839080963 | BN25: 0.7564665341 | BO25: 0.8233249339 | BP25: 0.8838553751 | BQ25: 0.9376331551 | BR25: 0.9843932872 | BS25: 1.023990352 | BT25: 1.056362769 | BU25: 1.081502152 | BV25: 1.099428097 | BW25: 1.110168573 | BX25: 1.113745934 | BY25: 1.110161413 | BZ25: 1.099413765 | CA25: 1.08148062 | CB25: 1.056334011 | CC25: 1.023954359 | CD25: 0.9843500889 | CE25: 0.9375828497 | CF25: 0.8837981616 | CG25: 0.8232611501 | CH25: 0.756396699 | CI25: 0.6838329545 | CJ25: 0.6064465857 | CK25: 0.5254075562 | CL25: 0.4422204181 | CM25: 0.3587583103 | CN25: 0.2772850008 | CO25: 0.2004595151 | CP25: 0.1313172543 | CQ25: 0.07322116406 | CR25: 0.02977662304 | CS25: 0.004704471751 | CT25: 0.001668189114 | CU25: 0.02405382759 | CV25: 0.07470507911 | CW25: 0.1556208242 | CX25: 0.2676286485 | CY25: 0.4100548541 | CZ25: 0.5804189728 | DA25: 0.774187982 | DB25: 0.9846313015 | DC25: 1.202820955 | DD25: 1.417820531 | DE25: 1.617100285 | DF25: 1.787202504 | DG25: 1.914660281 | DH25: 1.987143916 | DI25: 1.994773472 | DJ25: 1.931496086 | DK25: 1.796386794 | DL25: 1.594698005 | DM25: 1.33846276 | DN25: 1.046458828 | DO25: 0.743372092 | DP25: 0.4580641437 | DQ25: 0.2209519441 | DR25: 0.06064206142 | DS25: 0.0001160638349 | DT25: 0.05291635672 | DU25: 0.2199048946 | DV25: 0.4872278901
Y26: -1.68 | Z26: 0.3227852375 | AA26: 0.1086245919 | AB26: 0.007338842634 | AC26: 0.02427181567 | AD26: 0.1504023168 | AE26: 0.3652986085 | AF26: 0.6409759288 | AG26: 0.9460042331 | AH26: 1.249319945 | AI26: 1.523350301 | AJ26: 1.746228214 | AK26: 1.903032783 | AL26: 1.986118054 | AM26: 1.994681496 | AN26: 1.933772918 | AO26: 1.812958454 | AP26: 1.644840585 | AQ26: 1.443602819 | AR26: 1.223705519 | AS26: 0.9988146931 | AT26: 0.781004065 | AU26: 0.5802359822 | AV26: 0.4041004748 | AW26: 0.2577744126 | AX26: 0.1441534618 | AY26: 0.06410705831 | AZ26: 0.0168091995 | BA26: 0.0001038369461 | BB26: 0.01087149801 | BC26: 0.04537222834 | BD26: 0.09954810455 | BE26: 0.1692757973 | BF26: 0.2505656263 | BG26: 0.3397081189 | BH26: 0.4333722959 | BI26: 0.528661917 | BJ26: 0.6231369092 | BK26: 0.7148074201 | BL26: 0.8021075848 | BM26: 0.8838553751 | BN26: 0.9592039783 | BO26: 1.027589152 | BP26: 1.088676024 | BQ26: 1.142307897 | BR26: 1.188458863 | BS26: 1.227191363 | BT26: 1.25861935 | BU26: 1.28287734 | BV26: 1.300095392 | BW26: 1.31037991 | BX26: 1.313800093 | BY26: 1.310373062 | BZ26: 1.300081652 | CA26: 1.282856618 | CB26: 1.258591526 | CC26: 1.227156301 | CD26: 1.188416434 | CE26: 1.142258006 | CF26: 1.088618647 | CG26: 1.027524373 | CH26: 0.9591320348 | CI26: 0.8837767079 | CJ26: 0.8020228907 | CK26: 0.7147177051 | CL26: 0.6230435398 | CM26: 0.5285666657 | CN26: 0.4332773749 | CO26: 0.3396161976 | CP26: 0.2504798249 | CQ26: 0.1691996487 | CR26: 0.09948547871 | CS26: 0.04532721057 | CT26: 0.01084821658 | CU26: 0.0001062370911 | CV26: 0.01684076484 | CW26: 0.06417048595 | CX26: 0.1442503041 | CY26: 0.2579047062 | CZ26: 0.4042623865 | DA26: 0.5804255084 | DB26: 0.7812148304 | DC26: 0.9990378966 | DD26: 1.223930077 | DE26: 1.443815752 | DF26: 1.645027673 | DG26: 1.813105175 | DH26: 1.933865646 | DI26: 1.9947089 | DJ26: 1.986072586 | DK26: 1.902912122 | DL26: 1.746036461 | DM26: 1.52309873 | DN26: 1.249027079 | DO26: 0.9456950837 | DP26: 0.6406802651 | DQ26: 0.3650482656 | DR26: 0.1502276763 | DS26: 0.02419776617 | DT26: 0.007380695419 | DU26: 0.1087845612 | DV26: 0.3230501668
Y27: -1.62 | Z27: 0.1912812236 | AA27: 0.03687895221 | AB27: 0.002945698289 | AC27: 0.08641194865 | AD27: 0.2707521727 | AE27: 0.5297076326 | AF27: 0.8315844483 | AG27: 1.143481041 | AH27: 1.434945689 | AI27: 1.680744099 | AJ27: 1.862595497 | AK27: 1.969889811 | AL27: 1.999513892 | AM27: 1.954986626 | AN27: 1.845133412 | AO27: 1.682527034 | AP27: 1.481893762 | AQ27: 1.258640639 | AR27: 1.027611183 | AS27: 0.8021291883 | AT27: 0.5933489701 | AU27: 0.4098978953 | AV27: 0.2577744126 | AW27: 0.1404516226 | AX27: 0.05913136786 | AY27: 0.01309510472 | AZ27: 0.0001035195922 | BA27: 0.01680517579 | BB27: 0.05912390182 | BC27: 0.1226039916 | BD27: 0.2027007703 | BE27: 0.2950112052 | BF27: 0.395444803 | BG27: 0.5003390259 | BH27: 0.6065260181 | BI27: 0.7113587827 | BJ27: 0.8127053365 | BK27: 0.9089190566 | BL27: 0.9987926539 | BM27: 1.081502152 | BN27: 1.156546093 | BO27: 1.223684038 | BP27: 1.28287734 | BQ27: 1.334234265 | BR27: 1.377960739 | BS27: 1.414317381 | BT27: 1.443583066 | BU27: 1.466024915 | BV27: 1.48187445 | BW27: 1.491309558 | BX27: 1.494441911 | BY27: 1.491303284 | BZ27: 1.481861829 | CA27: 1.466005801 | CB27: 1.443557251 | CC27: 1.414284613 | CD27: 1.37792074 | CE27: 1.33418676 | CF27: 1.282822088 | CG27: 1.223620876 | CH27: 1.156474977 | CI27: 1.081423211 | CJ27: 0.9987062504 | CK27: 0.9088258425 | CL27: 0.8126063177 | CM27: 0.7112553778 | CN27: 0.60642011 | CO27: 0.5002330011 | CP27: 0.3953415706 | CQ27: 0.2949141881 | CR27: 0.2026138603 | CS27: 0.1225314592 | CT27: 0.05907025426 | CU27: 0.01677495678 | CV27: 0.0001010481394 | CW27: 0.01312415587 | CX27: 0.05919480361 | CY27: 0.1405509896 | CZ27: 0.2579095324 | DA27: 0.4100664813 | DB27: 0.5935463169 | DC27: 0.8023479836 | DD27: 1.027841498 | DE27: 1.258870151 | DF27: 1.482108251 | DG27: 1.682711192 | DH27: 1.845271942 | DI27: 1.95506562 | DJ27: 1.999522385 | DK27: 1.969821385 | DL27: 1.862449762 | DM27: 1.680527826 | DN27: 1.434673368 | DO27: 1.143174634 | DP27: 0.8312721784 | DQ27: 0.5294217207 | DR27: 0.2705255868 | DS27: 0.0862743922 | DT27: 0.002919250422 | DU27: 0.03697394048 | DV27: 0.1914930285
Y28: -1.56 | Z28: 0.09440917361 | AA28: 0.003329529196 | AB28: 0.03558492596 | AC28: 0.1801081796 | AD28: 0.4137500977 | AE28: 0.705605347 | AF28: 1.021576286 | AG28: 1.328559466 | AH28: 1.59781926 | AI28: 1.807309115 | AJ28: 1.942881867 | AK28: 1.998475853 | AL28: 1.975463082 | AM28: 1.881398519 | AN28: 1.72842117 | AO28: 1.531537503 | AP28: 1.306976676 | AQ28: 1.070755522 | AR28: 0.8375379848 | AS28: 0.6198251744 | AT28: 0.4274724913 | AU28: 0.2675011934 | AV28: 0.1441534618 | AW28: 0.05913136786 | AX28: 0.01195931206 | AY28: 0.000414374075 | AZ28: 0.02097750316 | BA28: 0.0692687521 | BB28: 0.1404403595 | BC28: 0.2295113602 | BD28: 0.3316358864 | BE28: 0.4423040868 | BF28: 0.5574795567 | BG28: 0.6736804611 | BH28: 0.7880133678 | BI28: 0.8981694678 | BJ28: 1.002392651 | BK28: 1.099428097 | BL28: 1.188458863 | BM28: 1.269036641 | BN28: 1.341011471 | BO28: 1.404463979 | BP28: 1.459642535 | BQ28: 1.506906852 | BR28: 1.546678744 | BS28: 1.579400255 | BT28: 1.605498944 | BU28: 1.625359896 | BV28: 1.639303888 | BW28: 1.647571148 | BX28: 1.650310161 | BY28: 1.647565659 | BZ28: 1.639292812 | CA28: 1.625343038 | CB28: 1.605476021 | CC28: 1.57937091 | CD28: 1.546642567 | CE28: 1.506863404 | CF28: 1.459591377 | CG28: 1.404404712 | CH28: 1.340943783 | CI28: 1.268960357 | CJ28: 1.188374007 | CK28: 1.099334957 | CL28: 1.002291848 | CM28: 0.8980620262 | CN28: 0.7879007839 | CO28: 0.6735647604 | CP28: 0.5573633373 | CQ28: 0.4421905389 | CR28: 0.3315287785 | CS28: 0.2294149837 | CT28: 0.1403594205 | CU28: 0.06920820298 | CV28: 0.02094230867 | CW28: 0.0004092088646 | CX28: 0.01198819493 | CY28: 0.05919724406 | CZ28: 0.1442577546 | DA28: 0.2676433562 | DB28: 0.4276496029 | DC28: 0.6200316282 | DD28: 0.8377653317 | DE28: 1.070992528 | DF28: 1.30720965 | DG28: 1.531750942 | DH28: 1.728598733 | DI28: 1.881524329 | DJ28: 1.975523283 | DK28: 1.998460316 | DL28: 1.942785886 | DM28: 1.807134871 | DN28: 1.597576816 | DO28: 1.328267034 | DP28: 1.021259555 | DQ28: 0.7052957174 | DR28: 0.4134818118 | DS28: 0.1799144843 | DT28: 0.03549360844 | DU28: 0.0033583571 | DV28: 0.09456192868
Y29: -1.5 | Z29: 0.03219200249 | AA29: 0.005194873636 | AB29: 0.100064293 | AC29: 0.2984130921 | AD29: 0.5715089897 | AE29: 0.8850327418 | AF29: 1.203741391 | AG29: 1.495471848 | AH29: 1.734125551 | AI29: 1.901480476 | AJ29: 1.987853803 | AK29: 1.991770391 | AL29: 1.918873067 | AM29: 1.780343358 | AN29: 1.591094177 | AO29: 1.367960511 | AP29: 1.12806205 | AQ29: 0.8874536555 | AR29: 0.6601237539 | AS29: 0.4573529524 | AT29: 0.2874083715 | AU29: 0.1555244016 | AV29: 0.06410705831 | AW29: 0.01309510472 | AX29: 0.000414374075 | AY29: 0.02246988233 | AZ29: 0.07463120285 | BA29: 0.1516783771 | BB29: 0.2481870047 | BC29: 0.3588411894 | BD29: 0.4786712096 | BE29: 0.6032189663 | BF29: 0.7286384828 | BG29: 0.8517412349 | BH29: 0.9699971567 | BI29: 1.081502152 | BJ29: 1.184922158 | BK29: 1.279422552 | BL29: 1.364590182 | BM29: 1.440353759 | BN29: 1.506906852 | BO29: 1.56463641 | BP29: 1.614058603 | BQ29: 1.655762876 | BR29: 1.690364423 | BS29: 1.718464793 | BT29: 1.740620027 | BU29: 1.757315573 | BV29: 1.76894714 | BW29: 1.775806735 | BX29: 1.778073195 | BY29: 1.77580219 | BZ29: 1.768937932 | CA29: 1.757301465 | CB29: 1.740600673 | CC29: 1.71843975 | CD29: 1.690333167 | CE29: 1.655724822 | CF29: 1.614013138 | CG29: 1.564582924 | CH29: 1.506844784 | CI29: 1.440282647 | CJ29: 1.364509725 | CK29: 1.279332676 | CL29: 1.184823092 | CM29: 1.081394507 | CN29: 0.9698820052 | CO29: 0.8516201851 | CP29: 0.7285137445 | CQ29: 0.6030933961 | CR29: 0.4785483287 | CS29: 0.3587251618 | CT29: 0.2480825666 | CU29: 0.1515907047 | CV29: 0.07456571234 | CW29: 0.02243195417 | CX29: 0.000409002934 | CY29: 0.01312648129 | CZ29: 0.06417809916 | DA29: 0.155636254 | DB29: 0.2875599317 | DC29: 0.4575404482 | DD29: 0.6603404506 | DE29: 0.8876897527 | DF29: 1.128304834 | DG29: 1.368194822 | DH29: 1.591303231 | DI29: 1.780509926 | DJ29: 1.918980984 | DK29: 1.991806303 | DL29: 1.98780901 | DM29: 1.901352667 | DN29: 1.733920181 | DO29: 1.495202895 | DP29: 1.203431222 | DQ29: 0.8847108926 | DR29: 0.5712097555 | DS29: 0.2981719913 | DT29: 0.09991365575 | DU29: 0.005159020973 | DV29: 0.03228267438
Y30: -1.44 | Z30: 0.003042461885 | AA30: 0.03849655708 | AB30: 0.1905457746 | AC30: 0.434349356 | AD30: 0.7367185977 | AE30: 1.061139806 | AF30: 1.372385403 | AG30: 1.640214886 | AH30: 1.841891064 | AI30: 1.963445205 | AJ30: 1.999792302 | AK30: 1.953912504 | AL30: 1.835375025 | AM30: 1.658493088 | AN30: 1.440373546 | AO30: 1.19907574 | AP30: 0.9520331058 | AQ30: 0.7148285441 | AR30: 0.5003581169 | AS30: 0.3183719906 | AT30: 0.1753487832 | AU30: 0.07463955744 | AV30: 0.0168091995 | AW30: 0.0001035195922 | AX30: 0.02097750316 | AY30: 0.07463120285 | AZ30: 0.1555125977 | BA30: 0.2577596432 | BB30: 0.3755654818 | BC30: 0.5034606528 | BD30: 0.6365137939 | BE30: 0.7704577525 | BF30: 0.9017514063 | BG30: 1.027589152 | BH30: 1.145870328 | BI30: 1.255140156 | BJ30: 1.3545125 | BK30: 1.443583066 | BL30: 1.522339913 | BM30: 1.5910764 | BN30: 1.650310164 | BO30: 1.700710337 | BP30: 1.74303415 | BQ30: 1.778073197 | BR30: 1.806609064 | BS30: 1.829377561 | BT30: 1.847040616 | BU30: 1.86016477 | BV30: 1.869205224 | BW30: 1.874494505 | BX30: 1.87623496 | BY30: 1.874491011 | BZ30: 1.869198102 | CA30: 1.860153752 | CB30: 1.847025306 | CC30: 1.829357445 | CD30: 1.806583526 | CE30: 1.778041534 | CF30: 1.742995597 | CG30: 1.700664102 | CH30: 1.650255463 | CI30: 1.591012511 | CJ30: 1.522266231 | CK30: 1.443499174 | CL30: 1.354418241 | CM30: 1.255035725 | CN30: 1.145756356 | CO30: 1.027466795 | CP30: 0.9016224305 | CQ30: 0.7703246038 | CR30: 0.636379644 | CS30: 0.5033294116 | CT30: 0.3754417642 | CU30: 0.2576486768 | CV30: 0.155420061 | CW30: 0.07456298423 | CX30: 0.02093937718 | CY30: 0.0001007413135 | CZ30: 0.01684602848 | DA30: 0.07471873265 | DB30: 0.1754709831 | DC30: 0.3185353254 | DD30: 0.5005577131 | DE30: 0.7150562896 | DF30: 0.952277629 | DG30: 1.199322693 | DH30: 1.440606248 | DI30: 1.658693557 | DJ30: 1.835525389 | DK30: 1.953996731 | DL30: 1.99979813 | DM30: 1.963366076 | DN30: 1.841727834 | DO30: 1.639977019 | DP30: 1.372091366 | DQ30: 1.060816405 | DR30: 0.7363990937 | DS30: 0.4340703255 | DT30: 0.1903428904 | DU30: 0.038399669 | DV30: 0.003070587533
Y31: -1.38 | Z31: 0.004153496911 | AA31: 0.09850044653 | AB31: 0.3009829349 | AC31: 0.5812920866 | AD31: 0.9029310475 | AE31: 1.228345515 | AF31: 1.523350301 | AG31: 1.760431931 | AH31: 1.920741999 | AI31: 1.994800638 | AJ31: 1.982083161 | AK31: 1.889757998 | AL31: 1.730882911 | AM31: 1.522358706 | AN31: 1.282898479 | AO31: 1.031209624 | AP31: 0.7845180893 | AQ31: 0.5574993207 | AR31: 0.3616249717 | AS31: 0.2048922013 | AT31: 0.09187442314 | AU31: 0.02401773746 | AV31: 0.0001038369461 | AW31: 0.01680517579 | AX31: 0.0692687521 | AY31: 0.1516783771 | AZ31: 0.2577596432 | BA31: 0.381205374 | BB31: 0.5160111058 | BC31: 0.6567195709 | BD31: 0.7985800693 | BE31: 0.9376331551 | BF31: 1.070733538 | BG31: 1.195524901 | BH31: 1.31037991 | BI31: 1.414317381 | BJ31: 1.506906852 | BK31: 1.58816876 | BL31: 1.658476502 | BM31: 1.718464793 | BN31: 1.76894714 | BO31: 1.810843934 | BP31: 1.84512163 | BQ31: 1.872742714 | BR31: 1.894625637 | BS31: 1.911613579 | BT31: 1.924450767 | BU31: 1.93376503 | BV31: 1.940055377 | BW31: 1.943683517 | BX31: 1.944868457 | BY31: 1.943681134 | BZ31: 1.940050465 | CA31: 1.933757298 | CB31: 1.924439784 | CC31: 1.911598779 | CD31: 1.894606332 | CE31: 1.872718107 | CF31: 1.845090835 | CG31: 1.810806005 | CH31: 1.768901105 | CI31: 1.7184097 | CJ31: 1.658411472 | CK31: 1.588093056 | CL31: 1.506819957 | CM31: 1.414219081 | CN31: 1.310270394 | CO31: 1.195404859 | CP31: 1.070604258 | CQ31: 0.9374966184 | CR31: 0.7984390192 | CS31: 0.6565775594 | CT31: 0.515872497 | CU31: 0.3810752921 | CV31: 0.2576438528 | CW31: 0.1515830823 | CX31: 0.06920030732 | CY31: 0.01676970416 | CZ31: 0.0001067624789 | DA31: 0.0240632466 | DB31: 0.09196488458 | DC31: 0.2050275869 | DD31: 0.3618023362 | DE31: 0.5577124085 | DF31: 0.7847571484 | DG31: 1.031461504 | DH31: 1.283147084 | DI31: 1.522585857 | DJ31: 1.731069619 | DK31: 1.889886131 | DL31: 1.982137394 | DM31: 1.994770531 | DN31: 1.920623967 | DO31: 1.760230832 | DP31: 1.523080321 | DQ31: 1.228030059 | DR31: 0.9026014133 | DS31: 0.5809847992 | DT31: 0.3007358338 | DU31: 0.09834781628 | DV31: 0.004120783829
Y32: -1.32 | Z32: 0.03187778971 | AA32: 0.1801081796 | AB32: 0.4254763517 | AC32: 0.7332473226 | AD32: 1.064732667 | AE32: 1.382386736 | AF32: 1.653937953 | AG32: 1.855221439 | AH32: 1.971618174 | AI32: 1.998201641 | AJ32: 1.938829199 | AK32: 1.804489025 | AL32: 1.611230735 | AM32: 1.377981143 | AN32: 1.12449087 | AO32: 0.8695872168 | AP32: 0.62983623 | AQ32: 0.4186512894 | AR32: 0.2458325992 | AS32: 0.1174841439 | AT32: 0.03623204297 | AU32: 0.001659055843 | AV32: 0.01087149801 | AW32: 0.05912390182 | AX32: 0.1404403595 | AY32: 0.2481870047 | AZ32: 0.3755654818 | BA32: 0.5160111058 | BB32: 0.6634908876 | BC32: 0.8127053365 | BD32: 0.9592039783 | BE32: 1.099428097 | BF32: 1.230695744 | BG32: 1.351144025 | BH32: 1.459642535 | BI32: 1.555689985 | BJ32: 1.639303888 | BK32: 1.710910955 | BL32: 1.771243677 | BM32: 1.821246736 | BN32: 1.861995251 | BO32: 1.894625637 | BP32: 1.920278879 | BQ32: 1.940055377 | BR32: 1.954980087 | BS32: 1.965976462 | BT32: 1.973847631 | BU32: 1.979263318 | BV32: 1.982751133 | BW32: 1.984691057 | BX32: 1.985312186 | BY32: 1.984689802 | BZ32: 1.98274847 | CA32: 1.979258941 | CB32: 1.973841086 | CC32: 1.96596715 | CD32: 1.954967269 | CE32: 1.940038187 | CF32: 1.920256339 | CG32: 1.89459668 | CH32: 1.861958749 | CI32: 1.821201542 | CJ32: 1.771188675 | CK32: 1.710845122 | CL32: 1.639226371 | CM32: 1.555600188 | CN32: 1.45954022 | CO32: 1.351029413 | CP32: 1.230569634 | CQ32: 1.09929197 | CR32: 0.959060095 | CS32: 0.8125568107 | CT32: 0.6633417262 | CU32: 0.515866197 | CV32: 0.3754305181 | CW32: 0.2480683268 | CX32: 0.1403447069 | CY32: 0.05905806521 | CZ32: 0.01084187155 | DA32: 0.001671100341 | DB32: 0.0362896827 | DC32: 0.1175891347 | DD32: 0.2459839212 | DE32: 0.418844633 | DF32: 0.6300636554 | DG32: 0.8698370723 | DH32: 1.124748053 | DI32: 1.37822777 | DJ32: 1.611447257 | DK32: 1.804655782 | DL32: 1.938928344 | DM32: 1.998219294 | DN32: 1.971546595 | DO32: 1.855060942 | DP32: 1.653698243 | DQ32: 1.382087335 | DR32: 1.064402154 | DS32: 0.7329211963 | DT32: 0.4251935136 | DU32: 0.1799062441 | DV32: 0.03178767935
Y33: -1.26 | Z33: 0.08207359157 | AA33: 0.2781844548 | AB33: 0.5585428015 | AC33: 0.8850327418 | AD33: 1.217817737 | AE33: 1.520279293 | AF33: 1.762764901 | AG33: 1.924902077 | AH33: 1.996472533 | AI33: 1.977022959 | AJ33: 1.874505195 | AK33: 1.703289864 | AL33: 1.481893762 | AM33: 1.230717189 | AN33: 0.970019186 | AO33: 0.7182809 | AP33: 0.4910321313 | AQ33: 0.3001515493 | AR33: 0.1536017395 | AS33: 0.05552757631 | AT33: 0.006629451605 | AU33: 0.004719132574 | AV33: 0.04537222834 | AW33: 0.1226039916 | AX33: 0.2295113602 | AY33: 0.3588411894 | AZ33: 0.5034606528 | BA33: 0.6567195709 | BB33: 0.8127053365 | BC33: 0.9663989796 | BD33: 1.113745938 | BE33: 1.251657655 | BF33: 1.377960739 | BG33: 1.491309558 | BH33: 1.5910764 | BI33: 1.677230978 | BJ33: 1.750218614 | BK33: 1.810843934 | BL33: 1.86016477 | BM33: 1.899398987 | BN33: 1.929845473 | BO33: 1.95281933 | BP33: 1.969600455 | BQ33: 1.981394155 | BR33: 1.989302111 | BS33: 1.994301907 | BT33: 1.997233323 | BU33: 1.998789743 | BV33: 1.999513205 | BW33: 1.999791852 | BX33: 1.999858822 | BY33: 1.999791705 | BZ33: 1.999512755 | CA33: 1.998788681 | CB33: 1.997231182 | CC33: 1.994298069 | CD33: 1.989295807 | CE33: 1.981384476 | CF33: 1.969586358 | CG33: 1.952799657 | CH33: 1.929818977 | CI33: 1.899364362 | CJ33: 1.8601207 | CK33: 1.810789148 | CL33: 1.750151959 | CM33: 1.677151509 | CN33: 1.590983471 | CO33: 1.491202943 | CP33: 1.377840746 | CQ33: 1.251525252 | CR33: 1.113602867 | CS33: 0.9662478617 | CT33: 0.8125497384 | CU33: 0.6565640353 | CV33: 0.5033106642 | CW33: 0.3587030635 | CX33: 0.2293920401 | CY33: 0.1225107398 | CZ33: 0.04531220986 | DA33: 0.004698892794 | DB33: 0.006654305756 | DC33: 0.05560094246 | DD33: 0.1537244635 | DE33: 0.3003212873 | DF33: 0.4912428699 | DG33: 0.7185227057 | DH33: 0.9702782741 | DI33: 1.230976397 | DJ33: 1.482133483 | DK33: 1.703489461 | DL33: 1.874644845 | DM33: 1.977085834 | DN33: 1.99644711 | DO33: 1.92478432 | DP33: 1.762559994 | DQ33: 1.520002568 | DR33: 1.217494473 | DS33: 0.8846965887 | DT33: 0.5582327239 | DU33: 0.2779403295 | DV33: 0.08193081938
Y34: -1.2 | Z34: 0.1504023168 | AA34: 0.387814153 | AB34: 0.6953013301 | AC34: 1.032372304 | AD34: 1.358982931 | AE34: 1.640214886 | AF34: 1.849574434 | AG34: 1.970760283 | AH34: 1.997979369 | AI34: 1.935055182 | AJ34: 1.793667864 | AK34: 1.591094177 | AL34: 1.347791663 | AM34: 1.085111599 | AN34: 0.8233466265 | AO34: 0.5802359822 | AP34: 0.369975075 | AQ34: 0.202714073 | AR34: 0.08448538017 | AS34: 0.01747286103 | AT34: 0.0005244771727 | AU34: 0.02981151249 | AV34: 0.09954810455 | AW34: 0.2027007703 | AX34: 0.3316358864 | AY34: 0.4786712096 | AZ34: 0.6365137939 | BA34: 0.7985800693 | BB34: 0.9592039783 | BC34: 1.113745938 | BD34: 1.25861935 | BE34: 1.391252923 | BF34: 1.510006764 | BG34: 1.614058603 | BH34: 1.703274197 | BI34: 1.778073197 | BJ34: 1.839299056 | BK34: 1.888098949 | BL34: 1.925817459 | BM34: 1.95390589 | BN34: 1.973847631 | BO34: 1.987098925 | BP34: 1.995043654 | BQ34: 1.998960333 | BR34: 1.999999284 | BS34: 1.999167945 | BT34: 1.997322345 | BU34: 1.995162986 | BV34: 1.993233592 | BW34: 1.991921448 | BX34: 1.991458349 | BY34: 1.991922362 | BZ34: 1.993235265 | CA34: 1.995165108 | CB34: 1.997324451 | CC34: 1.999169413 | CD34: 1.999999335 | CE34: 1.998958034 | CF34: 1.995037924 | CG34: 1.987088547 | CH34: 1.973831269 | CI34: 1.953882117 | CJ34: 1.925784798 | CK34: 1.88805592 | CL34: 1.839244247 | CM34: 1.778005347 | CN34: 1.703192291 | CO34: 1.61396199 | CP34: 1.509895278 | CQ34: 1.391127022 | CR34: 1.258480242 | CS34: 1.113595714 | CT34: 0.9590457071 | CU34: 0.7984178625 | CV34: 0.6363528156 | CW34: 0.478517611 | CX34: 0.3314966497 | CY34: 0.2025834464 | CZ34: 0.09946043423 | DA34: 0.02976092975 | DB34: 0.0005175055761 | DC34: 0.01751442801 | DD34: 0.08457809231 | DE34: 0.2028575135 | DF34: 0.3701652022 | DG34: 0.5804647223 | DH34: 0.8236017596 | DI34: 1.085377032 | DJ34: 1.348048173 | DK34: 1.59132065 | DL34: 1.793843038 | DM34: 1.935159791 | DN34: 1.997998538 | DO34: 1.970685916 | DP34: 1.849407287 | DQ34: 1.639965954 | DR34: 1.358673785 | DS34: 1.032034076 | DT34: 0.6949721785 | DU34: 0.3875352244 | DV34: 0.1502124947
Y35: -1.14 | Z35: 0.2325705822 | AA35: 0.5044898648 | AB35: 0.8315844483 | AC35: 1.171919609 | AD35: 1.486061996 | AE35: 1.741415943 | AF35: 1.915028256 | AG35: 1.994800638 | AH35: 1.979267783 | AI35: 1.876245582 | AJ35: 1.700726061 | AK35: 1.472402562 | AL35: 1.213166384 | AM35: 0.9448426989 | AN35: 0.6873464943 | AO35: 0.4573529524 | AP35: 0.2675011934 | AQ35: 0.1260917381 | AR35: 0.03719855751 | AS35: 0.001095435724 | AT35: 0.01489091187 | AU35: 0.07327255719 | AV35: 0.1692757973 | AW35: 0.2950112052 | AX35: 0.4423040868 | AY35: 0.6032189663 | AZ35: 0.7704577525 | BA35: 0.9376331551 | BB35: 1.099428097 | BC35: 1.251657655 | BD35: 1.391252923 | BE35: 1.516186718 | BF35: 1.625359896 | BG35: 1.718464793 | BH35: 1.795839436 | BI35: 1.858323142 | BJ35: 1.907121179 | BK35: 1.943683517 | BL35: 1.969600455 | BM35: 1.986516128 | BN35: 1.996059544 | BO35: 1.999791852 | BP35: 1.999167945 | BQ35: 1.995510192 | BR35: 1.989991978 | BS35: 1.983628811 | BT35: 1.977274902 | BU35: 1.971623387 | BV35: 1.96720862 | BW35: 1.964409247 | BX35: 1.96345111 | BY35: 1.964411152 | BZ35: 1.967212278 | CA35: 1.971628497 | CB35: 1.977281007 | CC35: 1.983635298 | CD35: 1.989998074 | CE35: 1.995514962 | CF35: 1.999170293 | CG35: 1.999790528 | CH35: 1.996053156 | CI35: 1.986503162 | CJ35: 1.969579309 | CK35: 1.943652544 | CL35: 1.90707875 | CM35: 1.858267719 | CN35: 1.795769674 | CO35: 1.718379648 | CP35: 1.625258756 | CQ35: 1.516069544 | CR35: 1.391120395 | CS35: 1.251511315 | CT35: 1.099270477 | CU35: 0.9374678747 | CV35: 0.7702895664 | CW35: 0.603053745 | CX35: 0.4421487091 | CY35: 0.2948733439 | CZ35: 0.1691635846 | DA35: 0.07319412272 | DB35: 0.01485379725 | DC35: 0.001105905179 | DD35: 0.0372608404 | DE35: 0.1262072597 | DF35: 0.2676678699 | DG35: 0.4575646428 | DH35: 0.6875927138 | DI35: 0.9451086989 | DJ35: 1.213433691 | DK35: 1.472650038 | DL35: 1.700931503 | DM35: 1.876387792 | DN35: 1.979328996 | DO35: 1.99476906 | DP35: 1.914900414 | DQ35: 1.741198483 | DR35: 1.485772522 | DS35: 1.171586234 | DT35: 0.8312437914 | DU35: 0.5041834497 | DV35: 0.2323398216
Y36: -1.08 | Z36: 0.324515151 | AA36: 0.6242350869 | AB36: 0.9639857506 | AC36: 1.301225856 | AD36: 1.59781926 | AE36: 1.823967691 | AF36: 1.960495694 | AG36: 1.999513892 | AH36: 1.943690809 | AI36: 1.804489025 | AJ36: 1.599770843 | AK36: 1.351164661 | AL36: 1.081524118 | AM36: 0.8127269857 | AN36: 0.5639674653 | AO36: 0.3506074934 | AP36: 0.1835792385 | AQ36: 0.06927681216 | AR36: 0.009841442385 | AS36: 0.003729207826 | AT36: 0.04645049791 | AU36: 0.1313814632 | AV36: 0.2505656263 | AW36: 0.395444803 | AX36: 0.5574795567 | AY36: 0.7286384828 | AZ36: 0.9017514063 | BA36: 1.070733538 | BB36: 1.230695744 | BC36: 1.377960739 | BD36: 1.510006764 | BE36: 1.625359896 | BF36: 1.723454183 | BG36: 1.804475935 | BH36: 1.869205224 | BI36: 1.918864371 | BJ36: 1.954980087 | BK36: 1.979263318 | BL36: 1.993508616 | BM36: 1.999513205 | BN36: 1.999014645 | BO36: 1.993645236 | BP36: 1.984900791 | BQ36: 1.974121233 | BR36: 1.962480485 | BS36: 1.950983234 | BT36: 1.940466423 | BU36: 1.931603586 | BV36: 1.924910456 | BW36: 1.920750598 | BX36: 1.91934009 | BY36: 1.920753408 | BZ36: 1.924915932 | CA36: 1.931611438 | CB36: 1.940476212 | CC36: 1.950994367 | CD36: 1.962492207 | CE36: 1.974132624 | CF36: 1.984910761 | CG36: 1.993652528 | CH36: 1.999017838 | CI36: 1.999510731 | CJ36: 1.993498784 | CK36: 1.97924435 | CL36: 1.954950177 | CM36: 1.91882175 | CN36: 1.869148256 | CO36: 1.804403223 | CP36: 1.723364702 | CQ36: 1.625253137 | CR36: 1.509882891 | CS36: 1.377820747 | CT36: 1.23054161 | CU36: 1.070568348 | CV36: 0.9015794402 | CW36: 0.7284652377 | CX36: 0.5573116881 | CY36: 0.3952899597 | CZ36: 0.2504321641 | DA36: 0.1312780238 | DB36: 0.04638545202 | DC36: 0.003709974287 | DD36: 0.009873713674 | DE36: 0.06936373587 | DF36: 0.1837206267 | DG36: 0.350799151 | DH36: 0.5642007453 | DI36: 0.8129886827 | DJ36: 1.081796807 | DK36: 1.351427567 | DL36: 1.60000127 | DM36: 1.804664332 | DN36: 1.943790809 | DO36: 1.999523497 | DP36: 1.960407481 | DQ36: 1.823784055 | DR36: 1.597553724 | DS36: 1.300903153 | DT36: 0.9636403733 | DU36: 0.6239081619 | DV36: 0.3242497375
Y37: -1.02 | Z37: 0.4225335242 | AA37: 0.7436713393 | AB37: 1.089856599 | AC37: 1.418667884 | AD37: 1.693818493 | AE37: 1.888643154 | AF37: 1.987853803 | AG37: 1.987672379 | AH37: 1.894635484 | AI37: 1.723469398 | AJ37: 1.494461071 | AK37: 1.230717189 | AL37: 0.955629265 | AM37: 0.690768035 | AN37: 0.4543326164 | AO37: 0.2601917574 | AP37: 0.1174841439 | AQ37: 0.0306956816 | AR37: 0.0001038369461 | AS37: 0.02246988233 | AT37: 0.09186519558 | AU37: 0.2005330382 | AV37: 0.3397081189 | AW37: 0.5003390259 | AX37: 0.6736804611 | AY37: 0.8517412349 | AZ37: 1.027589152 | BA37: 1.195524901 | BB37: 1.351144025 | BC37: 1.491309558 | BD37: 1.614058603 | BE37: 1.718464793 | BF37: 1.804475935 | BG37: 1.872742714 | BH37: 1.924450767 | BI37: 1.96116489 | BJ37: 1.984691057 | BK37: 1.996959256 | BL37: 1.999928045 | BM37: 1.995510192 | BN37: 1.985517638 | BO37: 1.971623387 | BP37: 1.955337575 | BQ37: 1.937994884 | BR37: 1.920750598 | BS37: 1.904582781 | BT37: 1.890298386 | BU37: 1.878541412 | BV37: 1.869801565 | BW37: 1.864422204 | BX37: 1.862606648 | BY37: 1.864425825 | BZ37: 1.869808671 | CA37: 1.878551731 | CB37: 1.890311502 | CC37: 1.904598129 | CD37: 1.920767453 | CE37: 1.938012355 | CF37: 1.955354596 | CG37: 1.971638714 | CH37: 1.985529845 | CI37: 1.995517686 | CJ37: 1.999929078 | CK37: 1.996951957 | CL37: 1.984673481 | CM37: 1.961135078 | CN37: 1.924406834 | CO37: 1.872682953 | CP37: 1.804398945 | CQ37: 1.718369631 | CR37: 1.61394494 | CS37: 1.491177857 | CT37: 1.350995704 | CU37: 1.195362491 | CV37: 1.027416414 | CW37: 0.851563223 | CX37: 0.6735035109 | CY37: 0.5001706389 | CZ37: 0.3395567262 | DA37: 0.2004076252 | DB37: 0.09177478084 | DC37: 0.0224228563 | DD37: 0.0001071837221 | DE37: 0.03075412715 | DF37: 0.1175992972 | DG37: 0.2603613334 | DH37: 0.4545498478 | DI37: 0.6910213922 | DJ37: 0.9559026008 | DK37: 1.230990407 | DL37: 1.494711383 | DM37: 1.723673163 | DN37: 1.894770556 | DO37: 1.987720795 | DP37: 1.987804527 | DQ37: 1.88849452 | DR37: 1.693579939 | DS37: 1.418360543 | DT37: 1.089512388 | DU37: 0.743330339 | DV37: 0.4222396495
Y38: -0.96 | Z38: 0.5233658006 | AA38: 0.8600389878 | AB38: 1.207264552 | AC38: 1.523350301 | AD38: 1.774280874 | AE38: 1.936733157 | AF38: 1.999307477 | AG38: 1.962158174 | AH38: 1.835375025 | AI38: 1.636548514 | AJ38: 1.387957689 | AK38: 1.113767834 | AL38: 0.8375379848 | AM38: 0.5802359822 | AN38: 0.3588581026 | AO38: 0.1856633714 | AP38: 0.06796623819 | AQ38: 0.008387756162 | AR38: 0.005443583664 | AS38: 0.05434360588 | AT38: 0.1478881332 | AU38: 0.2773646282 | AV38: 0.4333722959 | AW38: 0.6065260181 | AX38: 0.7880133678 | AY38: 0.9699971567 | AZ38: 1.145870328 | BA38: 1.31037991 | BB38: 1.459642535 | BC38: 1.5910764 | BD38: 1.703274197 | BE38: 1.795839436 | BF38: 1.869205224 | BG38: 1.924450767 | BH38: 1.963126978 | BI38: 1.987098925 | BJ38: 1.998409734 | BK38: 1.999167945 | BL38: 1.991458348 | BM38: 1.977274902 | BN38: 1.958473378 | BO38: 1.936740871 | BP38: 1.913579089 | BQ38: 1.890298386 | BR38: 1.868019686 | BS38: 1.847681737 | BT38: 1.830051487 | BU38: 1.815735724 | BV38: 1.805192494 | BW38: 1.798741114 | BX38: 1.796569916 | BY38: 1.798745448 | BZ38: 1.805201036 | CA38: 1.815748219 | CB38: 1.83006755 | CC38: 1.847700837 | CD38: 1.868041137 | CE38: 1.890321338 | CF38: 1.913602513 | CG38: 1.936763552 | CH38: 1.95849391 | CI38: 1.977291688 | CJ38: 1.991469614 | CK38: 1.999171759 | CL38: 1.998404047 | CM38: 1.987081626 | CN38: 1.963095976 | CO38: 1.924404088 | CP38: 1.869141134 | CQ38: 1.795756593 | CR38: 1.703171814 | CS38: 1.59095443 | CT38: 1.459501851 | CU38: 1.310222481 | CV38: 1.145699371 | CW38: 0.9698172346 | CX38: 0.7878304226 | CY38: 0.6063473034 | CZ38: 0.4332061913 | DA38: 0.2772203127 | DB38: 0.1477751055 | DC38: 0.05427105086 | DD38: 0.005419602124 | DE38: 0.008418494046 | DF38: 0.06805497595 | DG38: 0.1858096583 | DH38: 0.3590570428 | DI38: 0.5804777938 | DJ38: 0.8378079596 | DK38: 1.11404681 | DL38: 1.388223119 | DM38: 1.636776158 | DN38: 1.835541213 | DO38: 1.962242493 | DP38: 1.999295638 | DQ38: 1.936619692 | DR38: 1.774071232 | DS38: 1.523061912 | DT38: 1.206926441 | DU38: 0.8596896656 | DV38: 0.5230493517
Y39: -0.9 | Z39: 0.6242350869 | AA39: 0.9711819511 | AB39: 1.314925312 | AC39: 1.614993687 | AD39: 1.839942882 | AE39: 1.969889811 | AF39: 1.997234961 | AG39: 1.925825789 | AH39: 1.76896123 | AI39: 1.546697198 | AJ39: 1.282898479 | AK39: 1.00241469 | AL39: 0.7286596951 | AM39: 0.4817655111 | AN39: 0.2773798625 | AO39: 0.1260917381 | AP39: 0.03340749116 | AQ39: 0.0001621940291 | AR39: 0.02323507996 | AS39: 0.09643979082 | AT39: 0.2114747456 | AU39: 0.3588411894 | AV39: 0.528661917 | AW39: 0.7113587827 | AX39: 0.8981694678 | AY39: 1.081502152 | AZ39: 1.255140156 | BA39: 1.414317381 | BB39: 1.555689985 | BC39: 1.677230978 | BD39: 1.778073197 | BE39: 1.858323142 | BF39: 1.918864371 | BG39: 1.96116489 | BH39: 1.987098925 | BI39: 1.998789743 | BJ39: 1.998477069 | BK39: 1.988410137 | BL39: 1.970765573 | BM39: 1.947588019 | BN39: 1.920750598 | BO39: 1.891931973 | BP39: 1.862606646 | BQ39: 1.834045282 | BR39: 1.807322121 | BS39: 1.78332691 | BT39: 1.762779154 | BU39: 1.746242885 | BV39: 1.734140516 | BW39: 1.72676467 | BX39: 1.724287177 | BY39: 1.726769618 | BZ39: 1.734150296 | CA39: 1.746257265 | CB39: 1.762797779 | CC39: 1.783349289 | CD39: 1.807347615 | CE39: 1.834073088 | CF39: 1.862635785 | CG39: 1.891961273 | CH39: 1.920778688 | CI39: 1.947613321 | CJ39: 1.970786309 | CK39: 1.988424342 | CL39: 1.998482626 | CM39: 1.998784426 | CN39: 1.987080473 | CO39: 1.961131102 | CP39: 1.918813225 | CQ39: 1.858252939 | CR39: 1.77798273 | CS39: 1.67711972 | CT39: 1.555558283 | CU39: 1.414166654 | CV39: 1.254973067 | CW39: 1.081322746 | CX39: 0.8979832391 | CY39: 0.7111726589 | CZ39: 0.5284841218 | DA39: 0.3586809658 | DB39: 0.2113419212 | DC39: 0.09634417926 | DD39: 0.02318572728 | DE39: 0.000166501504 | DF39: 0.03347026769 | DG39: 0.1262142625 | DH39: 0.27755906 | DI39: 0.4819933682 | DJ39: 0.7289230442 | DK39: 1.002695493 | DL39: 1.283174705 | DM39: 1.546944358 | DN39: 1.76915452 | DO39: 1.92594276 | DP39: 1.997258454 | DQ39: 1.969810851 | DR39: 1.8397631 | DS39: 1.61472681 | DT39: 1.314597275 | DU39: 0.9708292958 | DV39: 0.6239014905
Y40: -0.84 | Z40: 0.7228544196 | AA40: 1.075506031 | AB40: 1.412118485 | AC40: 1.693818493 | AD40: 1.891922007 | AE40: 1.989988868 | AF40: 1.984061086 | AG40: 1.881398519 | AH40: 1.698153176 | AI40: 1.456461999 | AJ40: 1.181404729 | AK40: 0.8981913925 | AL40: 0.62983623 | AM40: 0.3954623588 | AN40: 0.2092793432 | AO40: 0.08019418215 | AP40: 0.01195931206 | AQ40: 0.003729207826 | AR40: 0.05088701395 | AS40: 0.1460095641 | AT40: 0.2798577314 | AU40: 0.4423040868 | AV40: 0.6231369092 | AW40: 0.8127053365 | AX40: 1.002392651 | AY40: 1.184922158 | AZ40: 1.3545125 | BA40: 1.506906852 | BB40: 1.639303888 | BC40: 1.750218614 | BD40: 1.839299056 | BE40: 1.907121179 | BF40: 1.954980087 | BG40: 1.984691057 | BH40: 1.998409734 | BI40: 1.998477069 | BJ40: 1.987291515 | BK40: 1.96720862 | BL40: 1.940466423 | BM40: 1.909133955 | BN40: 1.875079473 | BO40: 1.839954842 | BP40: 1.805192494 | BQ40: 1.772011639 | BR40: 1.741430732 | BS40: 1.714283647 | BT40: 1.691237389 | BU40: 1.672809627 | BV40: 1.659384672 | BW40: 1.651226873 | BX40: 1.648490683 | BY40: 1.65123234 | BZ40: 1.659395501 | CA40: 1.672825609 | CB40: 1.691258203 | CC40: 1.714308844 | CD40: 1.741459723 | CE40: 1.772043675 | CF40: 1.805226653 | CG40: 1.839990006 | CH40: 1.875114319 | CI40: 1.909166941 | CJ40: 1.940495787 | CK40: 1.967232389 | CL40: 1.98730753 | CM40: 1.998483022 | CN40: 1.998403233 | CO40: 1.984669714 | CP40: 1.95494163 | CQ40: 1.907063594 | CR40: 1.839220756 | CS40: 1.750118631 | CT40: 1.639182075 | CU40: 1.506764095 | CV40: 1.354350914 | CW40: 1.184745256 | CX40: 1.002205448 | CY40: 0.8125143766 | CZ40: 0.6229501777 | DA40: 0.4421307825 | DB40: 0.2797078792 | DC40: 0.145893455 | DD40: 0.05081447681 | DE40: 0.003708735138 | DF40: 0.01199708876 | DG40: 0.08029309098 | DH40: 0.2094380482 | DI40: 0.3956745911 | DJ40: 0.6300904124 | DK40: 0.898470741 | DL40: 1.181687947 | DM40: 1.456724634 | DN40: 1.69836965 | DO40: 1.881544725 | DP40: 1.984117374 | DQ40: 1.989943084 | DR40: 1.891772191 | DS40: 1.693574752 | DT40: 1.411803571 | DU40: 1.07515423 | DV40: 0.7225085361
Y41: -0.78 | Z41: 0.8174080883 | AA41: 1.171919609 | AB41: 1.498595677 | AC41: 1.760431931 | AD41: 1.931595575 | AE41: 1.999013667 | AF41: 1.962158174 | AG41: 1.831395708 | AH41: 1.625377094 | AI41: 1.367960511 | AJ41: 1.085111599 | AK41: 0.8021291883 | AL41: 0.5414300485 | AM41: 0.3210105179 | AN41: 0.1536017395 | AO41: 0.04645713716 | AP41: 0.001659055843 | AQ41: 0.01680517579 | AR41: 0.08593059609 | AS41: 0.2005330382 | AT41: 0.3505907337 | AU41: 0.5254899487 | AV41: 0.7148074201 | AW41: 0.9089190566 | AX41: 1.099428097 | AY41: 1.279422552 | AZ41: 1.443583066 | BA41: 1.58816876 | BB41: 1.710910955 | BC41: 1.810843934 | BD41: 1.888098949 | BE41: 1.943683517 | BF41: 1.979263318 | BG41: 1.996959256 | BH41: 1.999167945 | BI41: 1.988410137 | BJ41: 1.96720862 | BK41: 1.937994884 | BL41: 1.90304225 | BM41: 1.864422204 | BN41: 1.823980179 | BO41: 1.78332691 | BP41: 1.743841629 | BQ41: 1.706683689 | BR41: 1.672809627 | BS41: 1.642993116 | BT41: 1.617845741 | BU41: 1.597836927 | BV41: 1.58331174 | BW41: 1.574505609 | BX41: 1.571555294 | BY41: 1.574511505 | BZ41: 1.583323439 | CA41: 1.597854244 | CB41: 1.617868389 | CC41: 1.643020689 | CD41: 1.672841589 | CE41: 1.70671935 | CF41: 1.743880127 | CG41: 1.783367191 | CH41: 1.824020975 | CI41: 1.864462022 | CJ41: 1.903079361 | CK41: 1.938027327 | CL41: 1.967234217 | CM41: 1.988426527 | CN41: 1.999172637 | CO41: 1.99694971 | CP41: 1.979237053 | CQ41: 1.943638247 | CR41: 1.888032748 | CS41: 1.810755431 | CT41: 1.710799543 | CU41: 1.588034822 | CV41: 1.443428187 | CW41: 1.279249714 | CX41: 1.099241819 | CY41: 0.9087254628 | CZ41: 0.7146141948 | DA41: 0.5253061597 | DB41: 0.3504264913 | DC41: 0.2003989775 | DD41: 0.08583717838 | DE41: 0.01676182677 | DF41: 0.001673181342 | DG41: 0.04653308538 | DH41: 0.1537398069 | DI41: 0.3212061216 | DJ41: 0.5416732057 | DK41: 0.8024044476 | DL41: 1.085398554 | DM41: 1.368234987 | DN41: 1.625613037 | DO41: 1.831567709 | DP41: 1.962244452 | DQ41: 1.998999227 | DR41: 1.931475132 | DS41: 1.760212122 | DT41: 1.498296066 | DU41: 1.171572047 | DV41: 0.8170541486
Y42: -0.72 | Z42: 0.9065146684 | AA42: 1.25976415 | AB42: 1.57448757 | AC42: 1.815722975 | AD42: 1.960495694 | AE42: 1.998961337 | AF42: 1.933772918 | AG42: 1.778087041 | AH42: 1.552711755 | AI42: 1.282898479 | AJ42: 0.9952147111 | AK42: 0.7148285441 | AL42: 0.4634146835 | AM42: 0.2577744126 | AN42: 0.1091624772 | AO42: 0.0232398035 | AP42: 0.0005244771727 | AQ42: 0.03719260253 | AR42: 0.1260810252 | AS42: 0.2577596432 | AT42: 0.4215662283 | AU42: 0.6065260181 | AV42: 0.8021075848 | AW42: 0.9987926539 | AX42: 1.188458863 | AY42: 1.364590182 | AZ42: 1.522339913 | BA42: 1.658476502 | BB42: 1.771243677 | BC42: 1.86016477 | BD42: 1.925817459 | BE42: 1.969600455 | BF42: 1.993508616 | BG42: 1.999928045 | BH42: 1.991458348 | BI42: 1.970765573 | BJ42: 1.940466423 | BK42: 1.90304225 | BL42: 1.86077991 | BM42: 1.815735724 | BN42: 1.769718451 | BO42: 1.724287174 | BP42: 1.680760243 | BQ42: 1.640231816 | BR42: 1.603593029 | BS42: 1.571555291 | BT42: 1.544673711 | BU42: 1.523369081 | BV42: 1.507947216 | BW42: 1.498614781 | BX42: 1.495490995 | BY42: 1.498621026 | BZ42: 1.507959623 | CA42: 1.52338749 | CB42: 1.544697867 | CC42: 1.571584833 | CD42: 1.603627474 | CE42: 1.640270534 | CF42: 1.680802437 | CG42: 1.724331855 | CH42: 1.769764415 | CI42: 1.815781534 | CJ42: 1.860823884 | CK42: 1.903082453 | CL42: 1.94050068 | CM42: 1.970791492 | CN42: 1.991473367 | CO42: 1.999929506 | CP42: 1.993493865 | CQ42: 1.969566971 | CR42: 1.92576302 | CS42: 1.860087644 | CT42: 1.771142837 | CU42: 1.658351859 | CV42: 1.522192549 | CW42: 1.364422563 | CX42: 1.188275011 | CY42: 0.9985982504 | CZ42: 0.8019099722 | DA42: 0.6063340661 | DB42: 0.4213900413 | DC42: 0.2576100854 | DD42: 0.1259690558 | DE42: 0.03712843191 | DF42: 0.0005165795687 | DG42: 0.02329384773 | DH42: 0.109280269 | DI42: 0.2579529693 | DJ42: 0.4636455829 | DK42: 0.715097699 | DL42: 0.9955027116 | DM42: 1.283181611 | DN42: 1.552963744 | DO42: 1.778281483 | DP42: 1.933886244 | DQ42: 1.998976048 | DR42: 1.960403469 | DS42: 1.815527182 | DT42: 1.574204655 | DU42: 1.259423441 | DV42: 0.9061562474
Y43: -0.66 | Z43: 0.989178172 | AA43: 1.338740525 | AB43: 1.640214886 | AC43: 1.860768692 | AD43: 1.980221565 | AE43: 1.991770391 | AF43: 1.900976381 | AG43: 1.723469398 | AH43: 1.481893762 | AI43: 1.202602385 | AJ43: 0.9125266304 | AK43: 0.6365343257 | AL43: 0.3954623588 | AM43: 0.2048922013 | AN43: 0.07463955744 | AO43: 0.008859475163 | AP43: 0.006626918298 | AQ43: 0.06283721171 | AR43: 0.1692757973 | AS43: 0.3157262255 | AT43: 0.4910131604 | AU43: 0.6839080963 | AV43: 0.8838553751 | AW43: 1.081502152 | AX43: 1.269036641 | AY43: 1.440353759 | AZ43: 1.5910764 | BA43: 1.718464793 | BB43: 1.821246736 | BC43: 1.899398987 | BD43: 1.95390589 | BE43: 1.986516128 | BF43: 1.999513205 | BG43: 1.995510192 | BH43: 1.977274902 | BI43: 1.947588019 | BJ43: 1.909133955 | BK43: 1.864422204 | BL43: 1.815735724 | BM43: 1.765102178 | BN43: 1.714283647 | BO43: 1.664780535 | BP43: 1.617845741 | BQ43: 1.574505609 | BR43: 1.535584723 | BS43: 1.501732109 | BT43: 1.473446939 | BU43: 1.451102244 | BV43: 1.434965534 | BW43: 1.425215528 | BX43: 1.421954451 | BY43: 1.425222047 | BZ43: 1.434978504 | CA43: 1.451121525 | CB43: 1.47347231 | CC43: 1.501763252 | CD43: 1.535621207 | CE43: 1.574546864 | CF43: 1.617891033 | CG43: 1.664828945 | CH43: 1.714334038 | CI43: 1.765153176 | CJ43: 1.815785699 | CK43: 1.864469261 | CL43: 1.909175936 | CM43: 1.94762252 | CN43: 1.977299316 | CO43: 1.995521771 | CP43: 1.999509153 | CQ43: 1.986493729 | CR43: 1.953862664 | CS43: 1.899332881 | CT43: 1.821156345 | CU43: 1.718349595 | CV43: 1.590937005 | CW43: 1.44019214 | CX43: 1.268856335 | CY43: 1.081308393 | CZ43: 0.8836551383 | DA43: 0.6837100052 | DB43: 0.4908272419 | DC43: 0.3155634769 | DD43: 0.1691475573 | DE43: 0.06275434007 | DF43: 0.006598811705 | DG43: 0.008892977095 | DH43: 0.07473784962 | DI43: 0.2050537948 | DJ43: 0.3956803276 | DK43: 0.6367959388 | DL43: 0.9128135337 | DM43: 1.202891458 | DN43: 1.482158715 | DO43: 1.7236831 | DP43: 1.901113787 | DQ43: 1.99181182 | DR43: 1.980155965 | DS43: 1.860596397 | DT43: 1.639949356 | DU43: 1.338408559 | DV43: 0.9888181902
Y44: -0.6 | Z44: 1.064732667 | AA44: 1.408835753 | AB44: 1.696406531 | AC44: 1.89675354 | AD44: 1.992368975 | AE44: 1.979267783 | AF44: 1.865633709 | AG44: 1.669261692 | AH44: 1.41433744 | AI44: 1.12806205 | AJ44: 0.8375379848 | AK44: 0.567210035 | AL44: 0.3370252701 | AM44: 0.161357954 | AN44: 0.04865088728 | AO44: 0.001659055843 | AP44: 0.01814507647 | AQ44: 0.09186519558 | AR44: 0.213693859 | AS44: 0.3727576564 | AT44: 0.5574795567 | AU44: 0.7564665341 | AV44: 0.9592039783 | AW44: 1.156546093 | AX44: 1.341011471 | AY44: 1.506906852 | AZ44: 1.650310164 | BA44: 1.76894714 | BB44: 1.861995251 | BC44: 1.929845473 | BD44: 1.973847631 | BE44: 1.996059544 | BF44: 1.999014645 | BG44: 1.985517638 | BH44: 1.958473378 | BI44: 1.920750598 | BJ44: 1.875079473 | BK44: 1.823980179 | BL44: 1.769718451 | BM44: 1.714283647 | BN44: 1.659384672 | BO44: 1.606459365 | BP44: 1.556693355 | BQ44: 1.511044915 | BR44: 1.470272917 | BS44: 1.434965534 | BT44: 1.405567867 | BU44: 1.3824071 | BV44: 1.365714159 | BW44: 1.355641172 | BX44: 1.352274237 | BY44: 1.355647904 | BZ44: 1.365727564 | CA44: 1.382427061 | CB44: 1.405594196 | CC44: 1.434997953 | CD44: 1.470311045 | CE44: 1.511088239 | CF44: 1.556741206 | CG44: 1.60651089 | CH44: 1.659438803 | CI44: 1.714339076 | CJ44: 1.769773607 | CK44: 1.824033213 | CL44: 1.875128256 | CM44: 1.92079273 | CN44: 1.958506226 | CO44: 1.985538387 | CP44: 1.999020389 | CQ44: 1.996047402 | CR44: 1.973814903 | CS44: 1.929789827 | CT44: 1.861914943 | CU44: 1.768841257 | CV44: 1.650178881 | CW44: 1.506751681 | CX44: 1.340835483 | CY44: 1.156354084 | CZ44: 0.9590025434 | DA44: 0.7562640224 | DB44: 0.557285864 | DC44: 0.3725838357 | DD44: 0.213551528 | DE44: 0.09176574184 | DF44: 0.0180986829 | DG44: 0.001673597698 | DH44: 0.04873078376 | DI44: 0.1615030893 | DJ44: 0.337230126 | DK44: 0.5674631951 | DL44: 0.8378221689 | DM44: 1.128354818 | DN44: 1.414612645 | DO44: 1.669491704 | DP44: 1.865792282 | DQ44: 1.979333365 | DR44: 1.992328082 | DS44: 1.896603735 | DT44: 1.696158468 | DU44: 1.408513756 | DV44: 1.064373414
Y45: -0.54 | Z45: 1.132784627 | AA45: 1.470253467 | AB45: 1.743826898 | AC45: 1.924902077 | AD45: 1.998475853 | AE45: 1.963132907 | AF45: 1.829389874 | AG45: 1.616913301 | AH45: 1.351164661 | AI45: 1.059978673 | AJ45: 0.7704792033 | AK45: 0.5066078845 | AL45: 0.2874083715 | AM45: 0.1260917381 | AN45: 0.02981685396 | AO45: 5.820048431e-05 | AP45: 0.03340184234 | AQ45: 0.1226039916 | AR45: 0.2577596432 | AS45: 0.4274544218 | AT45: 0.6198047901 | AU45: 0.8233249339 | AV45: 1.027589152 | AW45: 1.223684038 | AX45: 1.404463979 | AY45: 1.56463641 | AZ45: 1.700710337 | BA45: 1.810843934 | BB45: 1.894625637 | BC45: 1.95281933 | BD45: 1.987098925 | BE45: 1.999791852 | BF45: 1.993645236 | BG45: 1.971623387 | BH45: 1.936740871 | BI45: 1.891931973 | BJ45: 1.839954842 | BK45: 1.78332691 | BL45: 1.724287174 | BM45: 1.664780535 | BN45: 1.606459365 | BO45: 1.550697807 | BP45: 1.498614781 | BQ45: 1.451102244 | BR45: 1.408855866 | BS45: 1.372405857 | BT45: 1.3421462 | BU45: 1.318360976 | BV45: 1.301246872 | BW45: 1.290931205 | BX45: 1.287485052 | BY45: 1.290938097 | BZ45: 1.301260606 | CA45: 1.318381455 | CB45: 1.342173265 | CC45: 1.372439271 | CD45: 1.408895293 | CE45: 1.451147227 | CF45: 1.498664713 | CG45: 1.550751898 | CH45: 1.606516614 | CI45: 1.664839701 | CJ45: 1.724346747 | CK45: 1.783385091 | CL45: 1.840009539 | CM45: 1.891980804 | CN45: 1.936781189 | CO45: 1.971652333 | CP45: 1.993659816 | CQ45: 1.999789052 | CR45: 1.987075858 | CS45: 1.952773423 | CT45: 1.894554848 | CU45: 1.810747001 | CV45: 1.700587041 | CW45: 1.564487837 | CX45: 1.404292764 | CY45: 1.223494556 | CZ45: 1.027387625 | DA45: 0.8231194188 | DB45: 0.6196050159 | DC45: 0.4272714375 | DD45: 0.2576052617 | DE45: 0.1224900221 | DF45: 0.03333912895 | DG45: 5.551342625e-05 | DH45: 0.0298797105 | DI45: 0.1262212654 | DJ45: 0.2876003527 | DK45: 0.5068521489 | DL45: 0.7707595278 | DM45: 1.060273342 | DN45: 1.351447789 | DO45: 1.617156939 | DP45: 1.829566821 | DQ45: 1.963220022 | DR45: 1.998457519 | DS45: 1.924773361 | DT45: 1.743595862 | DU45: 1.469942078 | DV45: 1.132427803
Y46: -0.48 | Z46: 1.193156247 | AA46: 1.523350301 | AB46: 1.78331321 | AC46: 1.946424583 | AD46: 1.99998211 | AE46: 1.944875675 | AF46: 1.793667864 | AG46: 1.567622113 | AH46: 1.293240597 | AI46: 0.9988146931 | AJ46: 0.711379884 | AK46: 0.4543326164 | AL46: 0.2458325992 | AM46: 0.09799761745 | AN46: 0.0168091995 | AO46: 0.002590087783 | AP46: 0.05088701395 | AQ46: 0.1535900027 | AR46: 0.3001358071 | AS46: 0.4786712096 | AT46: 0.6770855026 | AU46: 0.8838553751 | AV46: 1.088676024 | AW46: 1.28287734 | AX46: 1.459642535 | AY46: 1.614058603 | AZ46: 1.74303415 | BA46: 1.84512163 | BB46: 1.920278879 | BC46: 1.969600455 | BD46: 1.995043654 | BE46: 1.999167945 | BF46: 1.984900791 | BG46: 1.955337575 | BH46: 1.913579089 | BI46: 1.862606646 | BJ46: 1.805192494 | BK46: 1.743841629 | BL46: 1.680760243 | BM46: 1.617845741 | BN46: 1.556693355 | BO46: 1.498614781 | BP46: 1.444664807 | BQ46: 1.395672505 | BR46: 1.352274233 | BS46: 1.31494623 | BT46: 1.284035167 | BU46: 1.259785433 | BV46: 1.242362292 | BW46: 1.231870355 | BX46: 1.228366975 | BY46: 1.231877362 | BZ46: 1.242376267 | CA46: 1.259806294 | CB46: 1.284062784 | CC46: 1.314980401 | CD46: 1.352314667 | CE46: 1.395718795 | CF46: 1.444716401 | CG46: 1.498670954 | CH46: 1.556753168 | CI46: 1.617908017 | CJ46: 1.680823531 | CK46: 1.743904186 | CL46: 1.805252268 | CM46: 1.862661278 | CN46: 1.913625932 | CO46: 1.95537374 | CP46: 1.984923219 | CQ46: 1.999173515 | CR46: 1.995029324 | CS46: 1.969563445 | CT46: 1.92021689 | CU46: 1.845033091 | CV46: 1.742918489 | CW46: 1.613916523 | CX46: 1.459476271 | CY46: 1.282690871 | CZ46: 1.088475213 | DA46: 0.8836479872 | DB46: 0.6768810782 | DC46: 0.4784807505 | DD46: 0.2999712539 | DE46: 0.1534634951 | DF46: 0.05080994498 | DG46: 0.002571993637 | DH46: 0.0168565582 | DI46: 0.09811266417 | DJ46: 0.246012298 | DK46: 0.4545679518 | DL46: 0.7116556432 | DM46: 0.9991098965 | DN46: 1.293529693 | DO46: 1.567876979 | DP46: 1.793860552 | DQ46: 1.944981713 | DR46: 1.999984036 | DS46: 1.94631525 | DT46: 1.783098326 | DU46: 1.523049639 | DV46: 1.192803011
Y47: =ROUND(Y46+$AH$1,5) -> -0.42 | Z47: 1.245832021 | AA47: 1.568579435 | AB47: 1.815722975 | AC47: 1.962474504 | AD47: 1.998201641 | AE47: 1.925825789 | AF47: 1.75967597 | AG47: 1.522358706 | AH47: 1.241212154 | AI47: 0.9448426989 | AJ47: 0.6601237539 | AK47: 0.4098978953 | AL47: 0.2114882999 | AM47: 0.07601026924 | AN47: 0.008387756162 | AO47: 0.007926118842 | AP47: 0.0692687521 | AQ47: 0.183566512 | AR47: 0.3397081189 | AS47: 0.5254899487 | AT47: 0.7286384828 | AU47: 0.9376331551 | AV47: 1.142307897 | AW47: 1.334234265 | AX47: 1.506906852 | AY47: 1.655762876 | AZ47: 1.778073197 | BA47: 1.872742714 | BB47: 1.940055377 | BC47: 1.981394155 | BD47: 1.998960333 | BE47: 1.995510192 | BF47: 1.974121233 | BG47: 1.937994884 | BH47: 1.890298386 | BI47: 1.834045282 | BJ47: 1.772011639 | BK47: 1.706683689 | BL47: 1.640231816 | BM47: 1.574505609 | BN47: 1.511044915 | BO47: 1.451102244 | BP47: 1.395672505 | BQ47: 1.345526703 | BR47: 1.301246872 | BS47: 1.263260141 | BT47: 1.231870355 | BU47: 1.207286113 | BV47: 1.189644438 | BW47: 1.179029573 | BX47: 1.175486587 | BY47: 1.179036661 | BZ47: 1.18965858 | CA47: 1.207307247 | CB47: 1.231898373 | CC47: 1.263294874 | CD47: 1.301288068 | CE47: 1.345574002 | CF47: 1.395725407 | CG47: 1.451160079 | CH47: 1.511106805 | CI47: 1.574570436 | CJ47: 1.640298187 | CK47: 1.706749914 | CL47: 1.772075707 | CM47: 1.834104862 | CN47: 1.890350841 | CO47: 1.938037308 | CP47: 1.974150518 | CQ47: 1.995523132 | CR47: 1.998953758 | CS47: 1.981365112 | CT47: 1.940001346 | CU47: 1.872661858 | CV47: 1.777964635 | CW47: 1.655626969 | CX47: 1.506745474 | CY47: 1.334051035 | CZ47: 1.142108343 | DA47: 0.9374247594 | DB47: 0.7284305905 | DC47: 0.5252934856 | DD47: 0.3395351012 | DE47: 0.1834293333 | DF47: 0.06917925436 | DG47: 0.007894484595 | DH47: 0.008421291133 | DI47: 0.07611217936 | DJ47: 0.2116566011 | DK47: 0.4101246194 | DL47: 0.6603946267 | DM47: 0.9451374555 | DN47: 1.241505618 | DO47: 1.522622688 | DP47: 1.759881949 | DQ47: 1.925948198 | DR47: 1.998221441 | DS47: 1.962382615 | DT47: 1.815523015 | DU47: 1.568289173 | DV47: 1.245483049
Y48: -0.36 | Z48: 1.290910119 | AA48: 1.606441841 | AB48: 1.841891064 | AC48: 1.974116251 | AD48: 1.994304256 | AE48: 1.907130455 | AF48: 1.72842117 | AG48: 1.481893762 | AH48: 1.195546515 | AI48: 0.8981913925 | AJ48: 0.6164979524 | AK48: 0.3727748212 | AL48: 0.1835792385 | AM48: 0.05913136786 | AN48: 0.003426873451 | AO48: 0.01489091187 | AP48: 0.08739652416 | AQ48: 0.2114747456 | AR48: 0.3755654818 | AS48: 0.5671901669 | AT48: 0.7739631076 | AU48: 0.9843932872 | AV48: 1.188458863 | AW48: 1.377960739 | AX48: 1.546678744 | AY48: 1.690364423 | AZ48: 1.806609064 | BA48: 1.894625637 | BB48: 1.954980087 | BC48: 1.989302111 | BD48: 1.999999284 | BE48: 1.989991978 | BF48: 1.962480485 | BG48: 1.920750598 | BH48: 1.868019686 | BI48: 1.807322121 | BJ48: 1.741430732 | BK48: 1.672809627 | BL48: 1.603593029 | BM48: 1.535584723 | BN48: 1.470272917 | BO48: 1.408855866 | BP48: 1.352274233 | BQ48: 1.301246872 | BR48: 1.256307358 | BS48: 1.217839247 | BT48: 1.186108546 | BU48: 1.161292341 | BV48: 1.143502852 | BW48: 1.132806472 | BX48: 1.129237511 | BY48: 1.132813611 | BZ48: 1.143517106 | CA48: 1.161313662 | CB48: 1.186136847 | CC48: 1.217874385 | CD48: 1.256349118 | CE48: 1.301294934 | CF48: 1.352328144 | CG48: 1.408915005 | CH48: 1.470336461 | CI48: 1.535651607 | CJ48: 1.603661916 | CK48: 1.672878873 | CL48: 1.741498371 | CM48: 1.80738585 | CN48: 1.868076882 | CO48: 1.920798347 | CP48: 1.962515644 | CQ48: 1.990011275 | CR48: 1.999999446 | CS48: 1.989280042 | CT48: 1.954933082 | CU48: 1.89455163 | CV48: 1.80650691 | CW48: 1.690234187 | CX48: 1.546521981 | CY48: 1.377780749 | CZ48: 1.188260869 | DA48: 0.9841845094 | DB48: 0.7737526997 | DC48: 0.5669889629 | DD48: 0.3753855354 | DE48: 0.2113286411 | DF48: 0.08729646458 | DG48: 0.01484761606 | DH48: 0.003448347318 | DI48: 0.05922165122 | DJ48: 0.1837372635 | DK48: 0.3729935465 | DL48: 0.6167639512 | DM48: 0.8984850666 | DN48: 1.195843072 | DO48: 1.482165022 | DP48: 1.728638185 | DQ48: 1.907266764 | DR48: 1.994339501 | DS48: 1.9740397 | DT48: 1.84170451 | DU48: 1.606161279 | DV48: 1.290565666
Y49: -0.3 | Z49: 1.328559466 | AA49: 1.637445238 | AB49: 1.862595497 | AC49: 1.982301712 | AD49: 1.989305326 | AE49: 1.889757998 | AF49: 1.700726061 | AG49: 1.446826342 | AH49: 1.156567861 | AI49: 0.8588872648 | AJ49: 0.5802359822 | AK49: 0.3424326285 | AL49: 0.161357954 | AM49: 0.04645713716 | AN49: 0.0009334508502 | AO49: 0.02246988233 | AP49: 0.1042980477 | AQ49: 0.2364406611 | AR49: 0.4069775966 | AS49: 0.6032189663 | AT49: 0.8127053365 | AU49: 1.023990352 | AV49: 1.227191363 | AW49: 1.414317381 | AX49: 1.579400255 | AY49: 1.718464793 | AZ49: 1.829377561 | BA49: 1.911613579 | BB49: 1.965976462 | BC49: 1.994301907 | BD49: 1.999167945 | BE49: 1.983628811 | BF49: 1.950983234 | BG49: 1.904582781 | BH49: 1.847681737 | BI49: 1.78332691 | BJ49: 1.714283647 | BK49: 1.642993116 | BL49: 1.571555291 | BM49: 1.501732109 | BN49: 1.434965534 | BO49: 1.372405857 | BP49: 1.31494623 | BQ49: 1.263260141 | BR49: 1.217839247 | BS49: 1.179029573 | BT49: 1.147064654 | BU49: 1.122094601 | BV49: 1.104210454 | BW49: 1.093463389 | BX49: 1.089878553 | BY49: 1.093470561 | BZ49: 1.10422478 | CA49: 1.122116043 | CB49: 1.147093144 | CC49: 1.179064995 | CD49: 1.217881413 | CE49: 1.263308766 | CF49: 1.315000901 | CG49: 1.372465999 | CH49: 1.435030368 | CI49: 1.50180062 | CJ49: 1.571626188 | CK49: 1.643064801 | CL49: 1.714354192 | CM49: 1.783394041 | CN49: 1.847742848 | CO49: 1.904634955 | CP49: 1.951023305 | CQ49: 1.983653455 | CR49: 1.999173808 | CS49: 1.994285778 | CT49: 1.965935482 | CU49: 1.911545496 | CV49: 1.829281005 | CW49: 1.718339578 | CX49: 1.579247666 | CY49: 1.41414044 | CZ49: 1.226995027 | DA49: 1.023781608 | DB49: 0.8124931597 | DC49: 0.6030140946 | DD49: 0.4067920946 | DE49: 0.236287253 | DF49: 0.1041892214 | DG49: 0.02241679207 | DH49: 0.0009446813786 | DI49: 0.04653742705 | DJ49: 0.1615070126 | DK49: 0.3426442107 | DL49: 0.5804974012 | DM49: 0.8591795206 | DN49: 1.156866528 | DO49: 1.447103298 | DP49: 1.700952043 | DQ49: 1.889905837 | DR49: 1.989353581 | DS49: 1.982238271 | DT49: 1.862420607 | DU49: 1.637173365 | DV49: 1.328219427
Y50: -0.24 | Z50: 1.358982931 | AA50: 1.662070377 | AB50: 1.878530884 | AC50: 1.987853803 | AD50: 1.984061086 | AE50: 1.874505195 | AF50: 1.677247194 | AG50: 1.417611192 | AH50: 1.12449087 | AI50: 0.8268911468 | AJ50: 0.5510541152 | AK50: 0.3183719906 | AL50: 0.1441534618 | AM50: 0.03719855751 | AN50: 5.843850338e-05 | AO50: 0.02981151249 | AP50: 0.1191724421 | AQ50: 0.2577596432 | AR50: 0.4333722959 | AS50: 0.633162398 | AT50: 0.8446247093 | AU50: 1.056362769 | AV50: 1.25861935 | AW50: 1.443583066 | AX50: 1.605498944 | AY50: 1.740620027 | AZ50: 1.847040616 | BA50: 1.924450767 | BB50: 1.973847631 | BC50: 1.997233323 | BD50: 1.997322345 | BE50: 1.977274902 | BF50: 1.940466423 | BG50: 1.890298386 | BH50: 1.830051487 | BI50: 1.762779154 | BJ50: 1.691237389 | BK50: 1.617845741 | BL50: 1.544673711 | BM50: 1.473446939 | BN50: 1.405567867 | BO50: 1.3421462 | BP50: 1.284035167 | BQ50: 1.231870355 | BR50: 1.186108546 | BS50: 1.147064654 | BT50: 1.114945365 | BU50: 1.089878549 | BV50: 1.071937808 | BW50: 1.061161804 | BX50: 1.057568158 | BY50: 1.061168994 | BZ50: 1.071952174 | CA50: 1.089900065 | CB50: 1.114973978 | CC50: 1.147100266 | CD50: 1.186150995 | CE50: 1.231919385 | CF50: 1.284090397 | CG50: 1.342207091 | CH50: 1.405633682 | CI50: 1.473516702 | CJ50: 1.544746171 | CK50: 1.617919339 | CL50: 1.691310229 | CM50: 1.762848991 | CN50: 1.830115729 | CO50: 1.890354119 | CP50: 1.940510465 | CQ50: 1.977303892 | CR50: 1.997332865 | CS50: 1.997222072 | CT50: 1.973811629 | CU50: 1.92438761 | CV50: 1.846948754 | CW50: 1.740499067 | CX50: 1.605349948 | CY50: 1.443408827 | CZ50: 1.258424599 | DA50: 1.056154296 | DB50: 0.8444113326 | DC50: 0.6329547642 | DD50: 0.4331824644 | DE50: 0.257600438 | DF50: 0.1190565693 | DG50: 0.02975046982 | DH50: 6.127429525e-05 | DI50: 0.03727057656 | DJ50: 0.1442950098 | DK50: 0.3185774812 | DL50: 0.551311482 | DM50: 0.8271819012 | DN50: 1.124790915 | DO50: 1.417892486 | DP50: 1.67748025 | DQ50: 1.874662296 | DR50: 1.98411993 | DS50: 1.987801163 | DT50: 1.878365742 | DU50: 1.66180593 | DV50: 1.358646901
Y51: -0.18 | Z51: 1.382386736 | AA51: 1.680744099 | AB51: 1.89028835 | AC51: 1.991455474 | AD51: 1.979267783 | AE51: 1.862006423 | AF51: 1.658493088 | AG51: 1.394583652 | AH51: 1.099450027 | AI51: 0.8021291883 | AJ51: 0.5286813547 | AK51: 0.3001515493 | AL51: 0.1313923834 | AM51: 0.0306956816 | AN51: 0.0001035195922 | AO51: 0.03622616441 | AP51: 0.1313814632 | AQ51: 0.2748808903 | AR51: 0.4543141476 | AS51: 0.6567195709 | AT51: 0.8695653658 | AU51: 1.081502152 | AV51: 1.28287734 | AW51: 1.466024915 | AX51: 1.625359896 | AY51: 1.757315573 | AZ51: 1.86016477 | BA51: 1.93376503 | BB51: 1.979263318 | BC51: 1.998789743 | BD51: 1.995162986 | BE51: 1.971623387 | BF51: 1.931603586 | BG51: 1.878541412 | BH51: 1.815735724 | BI51: 1.746242885 | BJ51: 1.672809627 | BK51: 1.597836927 | BL51: 1.523369081 | BM51: 1.451102244 | BN51: 1.3824071 | BO51: 1.318360976 | BP51: 1.259785433 | BQ51: 1.207286113 | BR51: 1.161292341 | BS51: 1.122094601 | BT51: 1.089878549 | BU51: 1.06475466 | BV51: 1.046782918 | BW51: 1.035992225 | BX51: 1.032394335 | BY51: 1.035999423 | BZ51: 1.046797306 | CA51: 1.064776218 | CB51: 1.089907236 | CC51: 1.122130335 | CD51: 1.161334979 | CE51: 1.207335422 | CF51: 1.259841058 | CG51: 1.318422407 | CH51: 1.38247363 | CI51: 1.45117293 | CJ51: 1.523442704 | CK51: 1.597911958 | CL51: 1.6728842 | CM51: 1.746314775 | CN51: 1.815802355 | CO51: 1.878599873 | CP51: 1.931650686 | CQ51: 1.971655737 | CR51: 1.995177122 | CS51: 1.998782295 | CT51: 1.979231214 | CU51: 1.93370575 | CV51: 1.860076625 | CW51: 1.757198009 | CX51: 1.625213803 | CY51: 1.465852904 | CZ51: 1.282683964 | DA51: 1.081294041 | DB51: 0.8693512106 | DC51: 0.6565099393 | DD51: 0.4541210862 | DE51: 0.2747172913 | DF51: 0.1312601936 | DG51: 0.03615898041 | DH51: 9.982363516e-05 | DI51: 0.03076121507 | DJ51: 0.1315279867 | DK51: 0.3003521525 | DL51: 0.5289353828 | DM51: 0.8024185637 | DN51: 1.099750927 | DO51: 1.394868115 | DP51: 1.658731477 | DQ51: 1.862170614 | DR51: 1.979334821 | DS51: 1.991411273 | DT51: 1.89013091 | DU51: 1.68048562 | DV51: 1.382054067
Y52: -0.12 | Z52: 1.398955935 | AA52: 1.693818493 | AB52: 1.898340835 | AC52: 1.993642755 | AD52: 1.975463082 | AE52: 1.852743122 | AF52: 1.644840585 | AG52: 1.377981143 | AH52: 1.081524118 | AI52: 0.7845180893 | AJ52: 0.5128832295 | AK52: 0.2874083715 | AL52: 0.1226145655 | AM52: 0.02642739047 | AN52: 0.0005244771727 | AO52: 0.04118300701 | AP52: 0.1404403595 | AQ52: 0.2873929094 | AR52: 0.4694855487 | AS52: 0.6736804611 | AT52: 0.8874317563 | AU52: 1.099428097 | AV52: 1.300095392 | AW52: 1.48187445 | AX52: 1.639303888 | AY52: 1.76894714 | AZ52: 1.869205224 | BA52: 1.940055377 | BB52: 1.982751133 | BC52: 1.999513205 | BD52: 1.993233592 | BE52: 1.96720862 | BF52: 1.924910456 | BG52: 1.869801565 | BH52: 1.805192494 | BI52: 1.734140516 | BJ52: 1.659384672 | BK52: 1.58331174 | BL52: 1.507947216 | BM52: 1.434965534 | BN52: 1.365714159 | BO52: 1.301246872 | BP52: 1.242362292 | BQ52: 1.189644438 | BR52: 1.143502852 | BS52: 1.104210454 | BT52: 1.071937808 | BU52: 1.046782918 | BV52: 1.028796019 | BW52: 1.017999028 | BX52: 1.014399506 | BY52: 1.01800623 | BZ52: 1.028810416 | CA52: 1.046804498 | CB52: 1.071966537 | CC52: 1.104246262 | CD52: 1.143545608 | CE52: 1.189693927 | CF52: 1.242418178 | CG52: 1.301308664 | CH52: 1.365781173 | CI52: 1.435036851 | CJ52: 1.508021641 | CK52: 1.583387766 | CL52: 1.659460453 | CM52: 1.734213846 | CN52: 1.805260806 | CO52: 1.869861952 | CP52: 1.924959722 | CQ52: 1.967243356 | CR52: 1.993250305 | CS52: 1.999508476 | CT52: 1.982721827 | CU52: 1.939998889 | CV52: 1.869119768 | CW52: 1.768832049 | CX52: 1.639159926 | CY52: 1.481704097 | CZ52: 1.299903074 | DA52: 1.099220326 | DB52: 0.8872171283 | DC52: 0.6734694839 | DD52: 0.4692902552 | DE52: 0.2872262356 | DF52: 0.140315282 | DG52: 0.04111146223 | DH52: 0.0005161168759 | DI52: 0.02648826566 | DJ52: 0.1227458696 | DK52: 0.2876054055 | DL52: 0.5131347738 | DM52: 0.7848063673 | DN52: 1.081825511 | DO52: 1.37826776 | DP52: 1.645082691 | DQ52: 1.852912314 | DR52: 1.975535948 | DS52: 1.993604601 | DT52: 1.898188958 | DU52: 1.693564378 | DV52: 1.398625797
Y53: -0.06 | Z53: 1.408835753 | AA53: 1.701555498 | AB53: 1.903032783 | AC53: 1.994800638 | AD53: 1.973028479 | AE53: 1.847052331 | AF53: 1.636548514 | AG53: 1.367960511 | AH53: 1.070755522 | AI53: 0.7739845765 | AJ53: 0.5034797833 | AK53: 0.279873023 | AL53: 0.1174841439 | AM53: 0.02401773746 | AN53: 0.0009324990515 | AO53: 0.04430633073 | AP53: 0.1460095641 | AQ53: 0.2950112052 | AR53: 0.4786712096 | AS53: 0.6839080963 | AT53: 0.8981694678 | AU53: 1.110168573 | AV53: 1.31037991 | AW53: 1.491309558 | AX53: 1.647571148 | AY53: 1.775806735 | AZ53: 1.874494505 | BA53: 1.943683517 | BB53: 1.984691057 | BC53: 1.999791852 | BD53: 1.991921448 | BE53: 1.964409247 | BF53: 1.920750598 | BG53: 1.864422204 | BH53: 1.798741114 | BI53: 1.72676467 | BJ53: 1.651226873 | BK53: 1.574505609 | BL53: 1.498614781 | BM53: 1.425215528 | BN53: 1.355641172 | BO53: 1.290931205 | BP53: 1.231870355 | BQ53: 1.179029573 | BR53: 1.132806472 | BS53: 1.093463389 | BT53: 1.061161804 | BU53: 1.035992225 | BV53: 1.017999028 | BW53: 1.007199938 | BX53: 1.003599996 | BY53: 1.007207141 | BZ53: 1.018013429 | CA53: 1.036013814 | CB53: 1.061190553 | CC53: 1.093499235 | CD53: 1.132849292 | CE53: 1.179079162 | CF53: 1.231926388 | CG53: 1.290993205 | CH53: 1.355708467 | CI53: 1.425287213 | CJ53: 1.498689676 | CK53: 1.574582221 | CL53: 1.651303368 | CM53: 1.726838852 | CN53: 1.798810424 | CO53: 1.864483738 | CP53: 1.920801155 | CQ53: 1.964445411 | CR53: 1.991939705 | CS53: 1.999788756 | CT53: 1.984663434 | CU53: 1.943628714 | CV53: 1.874410676 | CW53: 1.775693145 | CX53: 1.647428487 | CY53: 1.491140226 | CZ53: 1.310188256 | DA53: 1.109961038 | DB53: 0.8979545894 | DC53: 0.6836963445 | DD53: 0.4784746072 | DE53: 0.2948427122 | DF53: 0.1458822211 | DG53: 0.04423218052 | DH53: 0.0009213413543 | DI53: 0.02407580812 | DJ53: 0.117612848 | DK53: 0.2800678848 | DL53: 0.5037297982 | DM53: 0.7742721512 | DN53: 1.071057164 | DO53: 1.368248375 | DP53: 1.636792813 | DQ53: 1.847224497 | DR53: 1.973104829 | DS53: 1.994766118 | DT53: 1.902884267 | DU53: 1.701304041 | DV53: 1.408507184
Y54: =ROUND(0+$AH$1/1000,5) -> 6e-05 | Z54: 1.412118482 | AA54: 1.704116357 | AB54: 1.904573384 | AC54: 1.99516082 | AD54: 1.97219171 | AE54: 1.845133414 | AF54: 1.633767946 | AG54: 1.364610708 | AH54: 1.067164097 | AI54: 0.7704792068 | AJ54: 0.50035812 | AK54: 0.277379865 | AL54: 0.1157968504 | AM54: 0.02323980428 | AN54: 0.001094404496 | AO54: 0.04537222727 | AP54: 0.1478881313 | AQ54: 0.2975689518 | AR54: 0.4817466594 | AS54: 0.6873255566 | AT54: 0.9017514027 | AU54: 1.113745934 | AV54: 1.313800093 | AW54: 1.494441911 | AX54: 1.650310161 | AY54: 1.778073195 | AZ54: 1.87623496 | BA54: 1.944868457 | BB54: 1.985312186 | BC54: 1.999858822 | BD54: 1.991458349 | BE54: 1.96345111 | BF54: 1.91934009 | BG54: 1.862606648 | BH54: 1.796569916 | BI54: 1.724287177 | BJ54: 1.648490683 | BK54: 1.571555294 | BL54: 1.495490995 | BM54: 1.421954451 | BN54: 1.352274237 | BO54: 1.287485052 | BP54: 1.228366975 | BQ54: 1.175486587 | BR54: 1.129237511 | BS54: 1.089878553 | BT54: 1.057568158 | BU54: 1.032394335 | BV54: 1.014399506 | BW54: 1.003599996 | BX54: 1.000000007 | BY54: 1.003607199 | BZ54: 1.014413908 | CA54: 1.032415927 | CB54: 1.057596914 | CC54: 1.089914411 | CD54: 1.129280352 | CE54: 1.175536208 | CF54: 1.228423056 | CG54: 1.287547119 | CH54: 1.352341624 | CI54: 1.422026257 | CJ54: 1.495566044 | CK54: 1.571632099 | CL54: 1.648567413 | CM54: 1.724361641 | CN54: 1.796639556 | CO54: 1.862668563 | CP54: 1.919391076 | CQ54: 1.963487748 | CR54: 1.99147712 | CS54: 1.999856269 | CT54: 1.985285124 | CU54: 1.944814217 | CV54: 1.876151676 | CW54: 1.777960109 | CX54: 1.650167937 | CY54: 1.494272924 | CZ54: 1.313608666 | DA54: 1.113538483 | DB54: 0.9015364464 | DC54: 0.6871135521 | DD54: 0.4815496257 | DE54: 0.2973998568 | DF54: 0.1477600365 | DG54: 0.0452972105 | DH54: 0.001082314606 | DI54: 0.02329693857 | DJ54: 0.1159246845 | DK54: 0.2775739977 | DL54: 0.5006076187 | DM54: 0.7707665395 | DN54: 1.067465815 | DO54: 1.364898981 | DP54: 1.634012969 | DQ54: 1.845306567 | DR54: 1.97226922 | DS54: 1.995127512 | DT54: 1.904425993 | DU54: 1.703865793 | DV54: 1.411790445
Y55: =ROUND(Y54+$AH$1,5) -> 0.06006 | Z55: 1.408829179 | AA55: 1.701550364 | AB55: 1.903029688 | AC55: 1.994799905 | AD55: 1.973030141 | AE55: 1.847056159 | AF55: 1.63655407 | AG55: 1.367967209 | AH55: 1.070762707 | AI55: 0.7739915937 | AJ55: 0.5034860362 | AK55: 0.2798780211 | AL55: 0.1174875317 | AM55: 0.02401930679 | AN55: 0.000932188058 | AO55: 0.04430421028 | AP55: 0.1460058161 | AQ55: 0.2950060963 | AR55: 0.4786650624 | AS55: 0.683901262 | AT55: 0.8981623016 | AU55: 1.110161413 | AV55: 1.310373062 | AW55: 1.491303284 | AX55: 1.647565659 | AY55: 1.77580219 | AZ55: 1.874491011 | BA55: 1.943681134 | BB55: 1.984689802 | BC55: 1.999791705 | BD55: 1.991922362 | BE55: 1.964411152 | BF55: 1.920753408 | BG55: 1.864425825 | BH55: 1.798745448 | BI55: 1.726769618 | BJ55: 1.65123234 | BK55: 1.574511505 | BL55: 1.498621026 | BM55: 1.425222047 | BN55: 1.355647904 | BO55: 1.290938097 | BP55: 1.231877362 | BQ55: 1.179036661 | BR55: 1.132813611 | BS55: 1.093470561 | BT55: 1.061168994 | BU55: 1.035999423 | BV55: 1.01800623 | BW55: 1.007207141 | BX55: 1.003607199 | BY55: 1.007214345 | BZ55: 1.018020632 | CA55: 1.036021013 | CB55: 1.061197743 | CC55: 1.093506407 | CD55: 1.132856432 | CE55: 1.17908625 | CF55: 1.231933395 | CG55: 1.291000096 | CH55: 1.3557152 | CI55: 1.425293732 | CJ55: 1.49869592 | CK55: 1.574588117 | CL55: 1.651308834 | CM55: 1.726843799 | CN55: 1.798814757 | CO55: 1.864487359 | CP55: 1.920803965 | CQ55: 1.964447314 | CR55: 1.991940618 | CS55: 1.999788608 | CT55: 1.984662177 | CU55: 1.94362633 | CV55: 1.874407181 | CW55: 1.775688599 | CX55: 1.647422997 | CY55: 1.491133952 | CZ55: 1.310181408 | DA55: 1.109953878 | DB55: 0.8979474234 | DC55: 0.6836895107 | DD55: 0.4784684609 | DE55: 0.2948376045 | DF55: 0.1458784747 | DG55: 0.04423006181 | DH55: 0.0009210322263 | DI55: 0.02407737932 | DJ55: 0.1176162375 | DK55: 0.2800728844 | DL55: 0.5037360522 | DM55: 0.7742791689 | DN55: 1.07106435 | DO55: 1.368255073 | DP55: 1.636798367 | DQ55: 1.847228324 | DR55: 1.973106489 | DS55: 1.994765382 | DT55: 1.90288117 | DU55: 1.701298906 | DV55: 1.408500609
Y56: 0.12006 | Z56: 1.398942727 | AA56: 1.69380812 | AB56: 1.898334507 | AC56: 1.993641134 | AD56: 1.975466253 | AE56: 1.852750645 | AF56: 1.644851594 | AG56: 1.377994478 | AH56: 1.081538473 | AI56: 0.7845321545 | AJ56: 0.5128958087 | AK56: 0.2874184769 | AL56: 0.1226214763 | AM56: 0.02643068003 | AN56: 0.00052401084 | AO56: 0.04117891613 | AP56: 0.1404329989 | AQ56: 0.2873828045 | AR56: 0.4694733392 | AS56: 0.673666846 | AT56: 0.8874174443 | AU56: 1.099413765 | AV56: 1.300081652 | AW56: 1.481861829 | AX56: 1.639292812 | AY56: 1.768937932 | AZ56: 1.869198102 | BA56: 1.940050465 | BB56: 1.98274847 | BC56: 1.999512755 | BD56: 1.993235265 | BE56: 1.967212278 | BF56: 1.924915932 | BG56: 1.869808671 | BH56: 1.805201036 | BI56: 1.734150296 | BJ56: 1.659395501 | BK56: 1.583323439 | BL56: 1.507959623 | BM56: 1.434978504 | BN56: 1.365727564 | BO56: 1.301260606 | BP56: 1.242376267 | BQ56: 1.18965858 | BR56: 1.143517106 | BS56: 1.10422478 | BT56: 1.071952174 | BU56: 1.046797306 | BV56: 1.028810416 | BW56: 1.018013429 | BX56: 1.014413908 | BY56: 1.018020632 | BZ56: 1.028824814 | CA56: 1.046818886 | CB56: 1.071980903 | CC56: 1.104260587 | CD56: 1.143559862 | CE56: 1.189708069 | CF56: 1.242432152 | CG56: 1.301322399 | CH56: 1.365794579 | CI56: 1.435049821 | CJ56: 1.508034048 | CK56: 1.583399465 | CL56: 1.659471281 | CM56: 1.734223625 | CN56: 1.805269346 | CO56: 1.869869058 | CP56: 1.924965196 | CQ56: 1.967247013 | CR56: 1.993251976 | CS56: 1.999508024 | CT56: 1.982719161 | CU56: 1.939993975 | CV56: 1.869112644 | CW56: 1.768822839 | CX56: 1.639148848 | CY56: 1.481691474 | CZ56: 1.299889334 | DA56: 1.099205993 | DB56: 0.8872028166 | DC56: 0.6734558699 | DD56: 0.4692780474 | DE56: 0.287216133 | DF56: 0.1403079244 | DG56: 0.04110737483 | DH56: 0.0005156542747 | DI56: 0.02649155896 | DJ56: 0.1227527838 | DK56: 0.2876155138 | DL56: 0.5131473551 | DM56: 0.7848204335 | DN56: 1.081839866 | DO56: 1.378281094 | DP56: 1.645093697 | DQ56: 1.852919834 | DR56: 1.975539114 | DS56: 1.993602975 | DT56: 1.898182626 | DU56: 1.693554002 | DV56: 1.398612587
Y57: 0.18006 | Z57: 1.382366774 | AA57: 1.680728274 | AB57: 1.890278511 | AC57: 1.991452655 | AD57: 1.979272159 | AE57: 1.862017374 | AF57: 1.658509347 | AG57: 1.394603502 | AH57: 1.099471523 | AI57: 0.8021503648 | AJ57: 0.5287004084 | AK57: 0.3001669807 | AL57: 0.1314030882 | AM57: 0.03070099337 | AN57: 0.0001032089824 | AO57: 0.03622040251 | AP57: 0.1313707592 | AQ57: 0.2748660137 | AR57: 0.4542960441 | AS57: 0.6566992802 | AT57: 0.8695439468 | AU57: 1.08148062 | AV57: 1.282856618 | AW57: 1.466005801 | AX57: 1.625343038 | AY57: 1.757301465 | AZ57: 1.860153752 | BA57: 1.933757298 | BB57: 1.979258941 | BC57: 1.998788681 | BD57: 1.995165108 | BE57: 1.971628497 | BF57: 1.931611438 | BG57: 1.878551731 | BH57: 1.815748219 | BI57: 1.746257265 | BJ57: 1.672825609 | BK57: 1.597854244 | BL57: 1.52338749 | BM57: 1.451121525 | BN57: 1.382427061 | BO57: 1.318381455 | BP57: 1.259806294 | BQ57: 1.207307247 | BR57: 1.161313662 | BS57: 1.122116043 | BT57: 1.089900065 | BU57: 1.064776218 | BV57: 1.046804498 | BW57: 1.036013814 | BX57: 1.032415927 | BY57: 1.036021013 | BZ57: 1.046818886 | CA57: 1.064797776 | CB57: 1.089928752 | CC57: 1.122151777 | CD57: 1.1613563 | CE57: 1.207356556 | CF57: 1.259861919 | CG57: 1.318442886 | CH57: 1.382493591 | CI57: 1.45119221 | CJ57: 1.523461112 | CK57: 1.597929275 | CL57: 1.672900181 | CM57: 1.746329154 | CN57: 1.815814849 | CO57: 1.87861019 | CP57: 1.931658535 | CQ57: 1.971660844 | CR57: 1.995179241 | CS57: 1.998781229 | CT57: 1.979226834 | CU57: 1.933698015 | CV57: 1.860065603 | CW57: 1.757183898 | CX57: 1.625196942 | CY57: 1.465833787 | CZ57: 1.282663242 | DA57: 1.081272509 | DB57: 0.8693297922 | DC57: 0.6564896502 | DD57: 0.4541029854 | DE57: 0.2747024185 | DF57: 0.1312494942 | DG57: 0.03615322375 | DH57: 9.95186246e-05 | DI57: 0.03076653242 | DJ57: 0.1315386966 | DK57: 0.3003675882 | DL57: 0.5289544394 | DM57: 0.8024397415 | DN57: 1.099772423 | DO57: 1.394887963 | DP57: 1.658747731 | DQ57: 1.862181559 | DR57: 1.97933919 | DS57: 1.991408448 | DT57: 1.890121064 | DU57: 1.68046979 | DV57: 1.382034102
Y58: 0.24006 | Z58: 1.358956047 | AA58: 1.66204879 | AB58: 1.878517125 | AC58: 1.987849327 | AD58: 1.984066208 | AE58: 1.874519164 | AF58: 1.677268386 | AG58: 1.417637363 | AH58: 1.124519449 | AI58: 0.8269195156 | AJ58: 0.5510798531 | AK58: 0.3183930665 | AL58: 0.1441683602 | AM58: 0.03720634093 | AN58: 5.875030839e-05 | AO58: 0.02980453229 | AP58: 0.1191588057 | AQ58: 0.2577403412 | AR58: 0.4333485628 | AS58: 0.6331356026 | AT58: 0.8445962556 | AU58: 1.056334011 | AV58: 1.258591526 | AW58: 1.443557251 | AX58: 1.605476021 | AY58: 1.740600673 | AZ58: 1.847025306 | BA58: 1.924439784 | BB58: 1.973841086 | BC58: 1.997231182 | BD58: 1.997324451 | BE58: 1.977281007 | BF58: 1.940476212 | BG58: 1.890311502 | BH58: 1.83006755 | BI58: 1.762797779 | BJ58: 1.691258203 | BK58: 1.617868389 | BL58: 1.544697867 | BM58: 1.47347231 | BN58: 1.405594196 | BO58: 1.342173265 | BP58: 1.284062784 | BQ58: 1.231898373 | BR58: 1.186136847 | BS58: 1.147093144 | BT58: 1.114973978 | BU58: 1.089907236 | BV58: 1.071966537 | BW58: 1.061190553 | BX58: 1.057596914 | BY58: 1.061197743 | BZ58: 1.071980903 | CA58: 1.089928752 | CB58: 1.11500259 | CC58: 1.147128756 | CD58: 1.186179295 | CE58: 1.231947403 | CF58: 1.284118014 | CG58: 1.342234156 | CH58: 1.40566001 | CI58: 1.473542071 | CJ58: 1.544770326 | CK58: 1.617941985 | CL58: 1.691331041 | CM58: 1.762867614 | CN58: 1.830131789 | CO58: 1.890367232 | CP58: 1.940520252 | CQ58: 1.977309993 | CR58: 1.997334967 | CS58: 1.997219926 | CT58: 1.97380508 | CU58: 1.924376622 | CV58: 1.846933439 | CW58: 1.740479709 | CX58: 1.605327022 | CY58: 1.44338301 | CZ58: 1.258396774 | DA58: 1.056125538 | DB58: 0.8443828799 | DC58: 0.6329279712 | DD58: 0.433158735 | DE58: 0.2575811411 | DF58: 0.1190429392 | DG58: 0.02974349666 | DH58: 6.159356582e-05 | DI58: 0.03727836737 | DJ58: 0.1443099149 | DK58: 0.3185985625 | DL58: 0.5513372236 | DM58: 0.8272102715 | DN58: 1.124819494 | DO58: 1.417918653 | DP58: 1.677501436 | DQ58: 1.874676257 | DR58: 1.984125043 | DS58: 1.987796678 | DT58: 1.878351974 | DU58: 1.661784336 | DV58: 1.358620013
Y59: 0.30006 | Z59: 1.328525461 | AA59: 1.637417497 | AB59: 1.862577282 | AC59: 1.982294968 | AD59: 1.989310577 | AE59: 1.889774431 | AF59: 1.700751747 | AG59: 1.446858551 | AH59: 1.15660342 | AI59: 0.8589229083 | AJ59: 0.5802686605 | AK59: 0.3424597539 | AL59: 0.1613775651 | AM59: 0.04646798413 | AN59: 0.0009350067659 | AO59: 0.02246229356 | AP59: 0.1042820391 | AQ59: 0.2364174127 | AR59: 0.4069486074 | AS59: 0.6031859184 | AT59: 0.8126699701 | AU59: 1.023954359 | AV59: 1.227156301 | AW59: 1.414284613 | AX59: 1.57937091 | AY59: 1.71843975 | AZ59: 1.829357445 | BA59: 1.911598779 | BB59: 1.96596715 | BC59: 1.994298069 | BD59: 1.999169413 | BE59: 1.983635298 | BF59: 1.950994367 | BG59: 1.904598129 | BH59: 1.847700837 | BI59: 1.783349289 | BJ59: 1.714308844 | BK59: 1.643020689 | BL59: 1.571584833 | BM59: 1.501763252 | BN59: 1.434997953 | BO59: 1.372439271 | BP59: 1.314980401 | BQ59: 1.263294874 | BR59: 1.217874385 | BS59: 1.179064995 | BT59: 1.147100266 | BU59: 1.122130335 | BV59: 1.104246262 | BW59: 1.093499235 | BX59: 1.089914411 | BY59: 1.093506407 | BZ59: 1.104260587 | CA59: 1.122151777 | CB59: 1.147128756 | CC59: 1.179100417 | CD59: 1.217916551 | CE59: 1.263343499 | CF59: 1.315035072 | CG59: 1.372499412 | CH59: 1.435062786 | CI59: 1.501831762 | CJ59: 1.571655729 | CK59: 1.643092373 | CL59: 1.714379386 | CM59: 1.783416418 | CN59: 1.847761944 | CO59: 1.904650298 | CP59: 1.951034433 | CQ59: 1.983659937 | CR59: 1.999175271 | CS59: 1.994281933 | CT59: 1.965926165 | CU59: 1.91153069 | CV59: 1.829260885 | CW59: 1.71831453 | CX59: 1.579218317 | CY59: 1.414107669 | CZ59: 1.226959963 | DA59: 1.023745614 | DB59: 0.8124577948 | DC59: 0.6029810499 | DD59: 0.4067631103 | DE59: 0.2362640112 | DF59: 0.1041732207 | DG59: 0.02240921217 | DH59: 0.0009462466177 | DI59: 0.04654828316 | DJ59: 0.161526632 | DK59: 0.3426713427 | DL59: 0.5805300839 | DM59: 0.8592151656 | DN59: 1.156902086 | DO59: 1.447135502 | DP59: 1.700977721 | DQ59: 1.88992226 | DR59: 1.98935882 | DS59: 1.982231515 | DT59: 1.862402381 | DU59: 1.637145615 | DV59: 1.328185418
Y60: 0.36006 | Z60: 1.290868783 | AA60: 1.606407488 | AB60: 1.841867749 | AC60: 1.974106484 | AD60: 1.99430886 | AE60: 1.907148636 | AF60: 1.728450769 | AG60: 1.481931617 | AH60: 1.195588884 | AI60: 0.8982343717 | AJ60: 0.616537853 | AK60: 0.3728084704 | AL60: 0.1836041875 | AM60: 0.05914600489 | AN60: 0.003430448027 | AO60: 0.01488348478 | AP60: 0.0873788614 | AQ60: 0.211448176 | AR60: 0.375531737 | AS60: 0.5671512199 | AT60: 0.7739210224 | AU60: 0.9843500889 | AV60: 1.188416434 | AW60: 1.37792074 | AX60: 1.546642567 | AY60: 1.690333167 | AZ60: 1.806583526 | BA60: 1.894606332 | BB60: 1.954967269 | BC60: 1.989295807 | BD60: 1.999999335 | BE60: 1.989998074 | BF60: 1.962492207 | BG60: 1.920767453 | BH60: 1.868041137 | BI60: 1.807347615 | BJ60: 1.741459723 | BK60: 1.672841589 | BL60: 1.603627474 | BM60: 1.535621207 | BN60: 1.470311045 | BO60: 1.408895293 | BP60: 1.352314667 | BQ60: 1.301288068 | BR60: 1.256349118 | BS60: 1.217881413 | BT60: 1.186150995 | BU60: 1.161334979 | BV60: 1.143545608 | BW60: 1.132849292 | BX60: 1.129280352 | BY60: 1.132856432 | BZ60: 1.143559862 | CA60: 1.1613563 | CB60: 1.186179295 | CC60: 1.217916551 | CD60: 1.256390878 | CE60: 1.301336129 | CF60: 1.352368577 | CG60: 1.408954431 | CH60: 1.470374587 | CI60: 1.53568809 | CJ60: 1.603696359 | CK60: 1.672910833 | CL60: 1.741527358 | CM60: 1.80741134 | CN60: 1.868098329 | CO60: 1.920815197 | CP60: 1.962527362 | CQ60: 1.990017365 | CR60: 1.999999491 | CS60: 1.989273732 | CT60: 1.954920257 | CU60: 1.894532319 | CV60: 1.806481366 | CW60: 1.690202924 | CX60: 1.5464858 | CY60: 1.377740747 | CZ60: 1.188218437 | DA60: 0.9841413112 | DB60: 0.7737106166 | DC60: 0.5669500201 | DD60: 0.3753517968 | DE60: 0.2113020796 | DF60: 0.08727881147 | DG60: 0.01484019969 | DH60: 0.003451933055 | DI60: 0.05923629909 | DJ60: 0.1837622222 | DK60: 0.3730272033 | DL60: 0.6168038566 | DM60: 0.8985280471 | DN60: 1.195885438 | DO60: 1.482202872 | DP60: 1.728667774 | DQ60: 1.907284933 | DR60: 1.994344091 | DS60: 1.974029919 | DT60: 1.841681182 | DU60: 1.606126917 | DV60: 1.290524326
Y61: 0.42006 | Z61: 1.245783163 | AA61: 1.56853797 | AB61: 1.815693819 | AC61: 1.962460825 | AD61: 1.998204661 | AE61: 1.925844838 | AF61: 1.759708746 | AG61: 1.522401686 | AH61: 1.241261069 | AI61: 0.9448930259 | AJ61: 0.6601711574 | AK61: 0.4099385884 | AL61: 0.2115193002 | AM61: 0.07602954562 | AN61: 0.008394272008 | AO61: 0.00791978659 | AP61: 0.06925032049 | AQ61: 0.183537408 | AR61: 0.3396702662 | AS61: 0.5254455816 | AT61: 0.7285899708 | AU61: 0.9375828497 | AV61: 1.142258006 | AW61: 1.33418676 | AX61: 1.506863404 | AY61: 1.655724822 | AZ61: 1.778041534 | BA61: 1.872718107 | BB61: 1.940038187 | BC61: 1.981384476 | BD61: 1.998958034 | BE61: 1.995514962 | BF61: 1.974132624 | BG61: 1.938012355 | BH61: 1.890321338 | BI61: 1.834073088 | BJ61: 1.772043675 | BK61: 1.70671935 | BL61: 1.640270534 | BM61: 1.574546864 | BN61: 1.511088239 | BO61: 1.451147227 | BP61: 1.395718795 | BQ61: 1.345574002 | BR61: 1.301294934 | BS61: 1.263308766 | BT61: 1.231919385 | BU61: 1.207335422 | BV61: 1.189693927 | BW61: 1.179079162 | BX61: 1.175536208 | BY61: 1.17908625 | BZ61: 1.189708069 | CA61: 1.207356556 | CB61: 1.231947403 | CC61: 1.263343499 | CD61: 1.301336129 | CE61: 1.3456213 | CF61: 1.395771696 | CG61: 1.45120506 | CH61: 1.511150127 | CI61: 1.574611688 | CJ61: 1.640336903 | CK61: 1.706785571 | CL61: 1.772107739 | CM61: 1.834132664 | CN61: 1.890373788 | CO61: 1.938054773 | CP61: 1.974161903 | CQ61: 1.995527895 | CR61: 1.998951451 | CS61: 1.981355425 | CT61: 1.939984148 | CU61: 1.872637244 | CV61: 1.777932965 | CW61: 1.655588909 | CX61: 1.50670202 | CY61: 1.334003527 | CZ61: 1.14205845 | DA61: 0.9373744546 | DB61: 0.7283820814 | DC61: 0.5252491237 | DD61: 0.3394972562 | DE61: 0.1834002391 | DF61: 0.06916083423 | DG61: 0.007888164945 | DH61: 0.008427819934 | DI61: 0.07613146815 | DJ61: 0.2116876122 | DK61: 0.4101653207 | DL61: 0.6604420352 | DM61: 0.9451877833 | DN61: 1.241554529 | DO61: 1.52266566 | DP61: 1.759914714 | DQ61: 1.925967232 | DR61: 1.998224444 | DS61: 1.96236892 | DT61: 1.815493844 | DU61: 1.568247699 | DV61: 1.245434187
Y62: =Y61+$AH$1 -> 0.48006 | Z62: 1.193099728 | AA62: 1.523301215 | AB62: 1.7832774 | AC62: 1.94640598 | AD62: 1.999982453 | AE62: 1.944894534 | AF62: 1.793702906 | AG62: 1.567669536 | AH62: 1.293295668 | AI62: 0.9988722967 | AJ62: 0.7114350367 | AK62: 0.4543808892 | AL62: 0.2458704277 | AM62: 0.09802248821 | AN62: 0.01681971846 | AO62: 0.002585946194 | AP62: 0.05086887409 | AQ62: 0.1535593283 | AR62: 0.3000946634 | AS62: 0.4786220541 | AT62: 0.6770309855 | AU62: 0.8837981616 | AV62: 1.088618647 | AW62: 1.282822088 | AX62: 1.459591377 | AY62: 1.614013138 | AZ62: 1.742995597 | BA62: 1.845090835 | BB62: 1.920256339 | BC62: 1.969586358 | BD62: 1.995037924 | BE62: 1.999170293 | BF62: 1.984910761 | BG62: 1.955354596 | BH62: 1.913602513 | BI62: 1.862635785 | BJ62: 1.805226653 | BK62: 1.743880127 | BL62: 1.680802437 | BM62: 1.617891033 | BN62: 1.556741206 | BO62: 1.498664713 | BP62: 1.444716401 | BQ62: 1.395725407 | BR62: 1.352328144 | BS62: 1.315000901 | BT62: 1.284090397 | BU62: 1.259841058 | BV62: 1.242418178 | BW62: 1.231926388 | BX62: 1.228423056 | BY62: 1.231933395 | BZ62: 1.242432152 | CA62: 1.259861919 | CB62: 1.284118014 | CC62: 1.315035072 | CD62: 1.352368577 | CE62: 1.395771696 | CF62: 1.444767995 | CG62: 1.498720883 | CH62: 1.556801017 | CI62: 1.617953306 | CJ62: 1.680865722 | CK62: 1.74394268 | CL62: 1.805286422 | CM62: 1.862690411 | CN62: 1.913649349 | CO62: 1.955390754 | CP62: 1.984933183 | CQ62: 1.999175855 | CR62: 1.995023586 | CS62: 1.96954934 | CT62: 1.920194341 | CU62: 1.845002288 | CV62: 1.742879929 | CW62: 1.613871051 | CX62: 1.459425107 | CY62: 1.282635616 | CZ62: 1.088417835 | DA62: 0.883590775 | DB62: 0.6768265651 | DC62: 0.4784316017 | DD62: 0.2999301195 | DE62: 0.1534328323 | DF62: 0.0507918185 | DG62: 0.002567866527 | DH62: 0.01686709184 | DI62: 0.09813754877 | DJ62: 0.2460501384 | DK62: 0.4546162335 | DL62: 0.7117108007 | DM62: 0.9991675001 | DN62: 1.293584759 | DO62: 1.567924392 | DP62: 1.793895579 | DQ62: 1.945000555 | DR62: 1.99998436 | DS62: 1.946296628 | DT62: 1.783062501 | DU62: 1.523000542 | DV62: 1.192746488
Y63: 0.54006 | Z63: 1.132720397 | AA63: 1.470196275 | AB63: 1.743783584 | AC63: 1.924877437 | AD63: 1.998472275 | AE63: 1.963150339 | AF63: 1.829426076 | AG63: 1.616964302 | AH63: 1.351225337 | AI63: 1.06004336 | AJ63: 0.7705422773 | AK63: 0.5066642522 | AL63: 0.2874538379 | AM63: 0.1261232403 | AN63: 0.02983256264 | AO63: 5.750343274e-05 | AP63: 0.03338523542 | AQ63: 0.1225729028 | AR63: 0.2577162177 | AS63: 0.4274012923 | AT63: 0.6197448537 | AU63: 0.8232611501 | AV63: 1.027524373 | AW63: 1.223620876 | AX63: 1.404404712 | AY63: 1.564582924 | AZ63: 1.700664102 | BA63: 1.810806005 | BB63: 1.89459668 | BC63: 1.952799657 | BD63: 1.987088547 | BE63: 1.999790528 | BF63: 1.993652528 | BG63: 1.971638714 | BH63: 1.936763552 | BI63: 1.891961273 | BJ63: 1.839990006 | BK63: 1.783367191 | BL63: 1.724331855 | BM63: 1.664828945 | BN63: 1.60651089 | BO63: 1.550751898 | BP63: 1.498670954 | BQ63: 1.451160079 | BR63: 1.408915005 | BS63: 1.372465999 | BT63: 1.342207091 | BU63: 1.318422407 | BV63: 1.301308664 | BW63: 1.290993205 | BX63: 1.287547119 | BY63: 1.291000096 | BZ63: 1.301322399 | CA63: 1.318442886 | CB63: 1.342234156 | CC63: 1.372499412 | CD63: 1.408954431 | CE63: 1.45120506 | CF63: 1.498720883 | CG63: 1.550805986 | CH63: 1.606568136 | CI63: 1.664888107 | CJ63: 1.724391423 | CK63: 1.783425367 | CL63: 1.840044698 | CM63: 1.892010098 | CN63: 1.936803863 | CO63: 1.971667651 | CP63: 1.993667099 | CQ63: 1.999787719 | CR63: 1.987065471 | CS63: 1.952753741 | CT63: 1.894525882 | CU63: 1.810709064 | CV63: 1.700540798 | CW63: 1.564434344 | CX63: 1.404233492 | CY63: 1.223431391 | CZ63: 1.027322846 | DA63: 0.8230556374 | DB63: 0.6195450848 | DC63: 0.4272183162 | DD63: 0.2575618472 | DE63: 0.1224589468 | DF63: 0.03332253736 | DG63: 5.483270449e-05 | DH63: 0.02989543548 | DI63: 0.1262527828 | DJ63: 0.2876458317 | DK63: 0.5069085255 | DL63: 0.7708226061 | DM63: 1.060338028 | DN63: 1.351508458 | DO63: 1.617207928 | DP63: 1.829603006 | DQ63: 1.963237433 | DR63: 1.998453919 | DS63: 1.9247487 | DT63: 1.743552531 | DU63: 1.469884875 | DV63: 1.13236357
Y64: 0.60006 | Z64: 1.064660814 | AA64: 1.408770041 | AB64: 1.696354856 | AC64: 1.896721674 | AD64: 1.992360094 | AE64: 1.979282366 | AF64: 1.865669758 | AG64: 1.669315191 | AH64: 1.414402971 | AI64: 1.128133461 | AJ64: 0.8376090322 | AK64: 0.567274947 | AL64: 0.3370791767 | AM64: 0.1613971753 | AN64: 0.04867307514 | AO64: 0.001663204338 | AP64: 0.01813142472 | AQ64: 0.09183505162 | AR64: 0.2136493745 | AS64: 0.3727015799 | AT64: 0.557414988 | AU64: 0.756396699 | AV64: 0.9591320348 | AW64: 1.156474977 | AX64: 1.340943783 | AY64: 1.506844784 | AZ64: 1.650255463 | BA64: 1.768901105 | BB64: 1.861958749 | BC64: 1.929818977 | BD64: 1.973831269 | BE64: 1.996053156 | BF64: 1.999017838 | BG64: 1.985529845 | BH64: 1.95849391 | BI64: 1.920778688 | BJ64: 1.875114319 | BK64: 1.824020975 | BL64: 1.769764415 | BM64: 1.714334038 | BN64: 1.659438803 | BO64: 1.606516614 | BP64: 1.556753168 | BQ64: 1.511106805 | BR64: 1.470336461 | BS64: 1.435030368 | BT64: 1.405633682 | BU64: 1.38247363 | BV64: 1.365781173 | BW64: 1.355708467 | BX64: 1.352341624 | BY64: 1.3557152 | BZ64: 1.365794579 | CA64: 1.382493591 | CB64: 1.40566001 | CC64: 1.435062786 | CD64: 1.470374587 | CE64: 1.511150127 | CF64: 1.556801017 | CG64: 1.606568136 | CH64: 1.659492931 | CI64: 1.714389462 | CJ64: 1.769819566 | CK64: 1.824074003 | CL64: 1.875163095 | CM64: 1.920820813 | CN64: 1.95852675 | CO64: 1.985550586 | CP64: 1.999023572 | CQ64: 1.996041004 | CR64: 1.973798531 | CS64: 1.92976332 | CT64: 1.861878431 | CU64: 1.768795213 | CV64: 1.650124172 | CW64: 1.506689606 | CX64: 1.34076779 | CY64: 1.156282965 | CZ64: 0.9589306004 | DA64: 0.7561941909 | DB64: 0.5572213022 | DC64: 0.3725277692 | DD64: 0.2135070566 | DE64: 0.09173561342 | DF64: 0.01808504845 | DG64: 0.001677764307 | DH64: 0.04875298937 | DI64: 0.1615423267 | DJ64: 0.3372840456 | DK64: 0.5675281158 | DL64: 0.8378932197 | DM64: 1.128426225 | DN64: 1.414678168 | DO64: 1.669545188 | DP64: 1.865828311 | DQ64: 1.979347925 | DR64: 1.992319177 | DS64: 1.896571847 | DT64: 1.696106775 | DU64: 1.408448034 | DV64: 1.06430156
Y65: 0.66006 | Z65: 0.9890989731 | AA65: 1.338666003 | AB65: 1.64015404 | AC65: 1.860728375 | AD65: 1.980205887 | AE65: 1.991780528 | AF65: 1.901010742 | AG65: 1.723524075 | AH65: 1.481963161 | AI65: 1.202679946 | AJ65: 0.9126055307 | AK65: 0.6366081135 | AL65: 0.3955254524 | AM65: 0.2049402382 | AN65: 0.07466958551 | AO65: 0.008869997887 | AP65: 0.006617818194 | AQ65: 0.06280958111 | AR65: 0.1692317085 | AS65: 0.3156684704 | AT65: 0.4909449855 | AU65: 0.6838329545 | AV65: 0.8837767079 | AW65: 1.081423211 | AX65: 1.268960357 | AY65: 1.440282647 | AZ65: 1.591012511 | BA65: 1.7184097 | BB65: 1.821201542 | BC65: 1.899364362 | BD65: 1.953882117 | BE65: 1.986503162 | BF65: 1.999510731 | BG65: 1.995517686 | BH65: 1.977291688 | BI65: 1.947613321 | BJ65: 1.909166941 | BK65: 1.864462022 | BL65: 1.815781534 | BM65: 1.765153176 | BN65: 1.714339076 | BO65: 1.664839701 | BP65: 1.617908017 | BQ65: 1.574570436 | BR65: 1.535651607 | BS65: 1.50180062 | BT65: 1.473516702 | BU65: 1.45117293 | BV65: 1.435036851 | BW65: 1.425287213 | BX65: 1.422026257 | BY65: 1.425293732 | BZ65: 1.435049821 | CA65: 1.45119221 | CB65: 1.473542071 | CC65: 1.501831762 | CD65: 1.53568809 | CE65: 1.574611688 | CF65: 1.617953306 | CG65: 1.664888107 | CH65: 1.714389462 | CI65: 1.765204169 | CJ65: 1.815831504 | CK65: 1.864509072 | CL65: 1.909208914 | CM65: 1.947647814 | CN65: 1.977316093 | CO65: 1.995529255 | CP65: 1.999506669 | CQ65: 1.986480752 | CR65: 1.95383888 | CS65: 1.899298246 | CT65: 1.82111114 | CU65: 1.718294493 | CV65: 1.590873108 | CW65: 1.440121022 | CX65: 1.268780047 | CY65: 1.081229452 | CZ65: 0.8835764729 | DA65: 0.6836348687 | DB65: 0.4907590758 | DC65: 0.3155057339 | DD65: 0.1691034837 | DE65: 0.06272672712 | DF65: 0.006589730862 | DG65: 0.008903519602 | DH65: 0.07476789668 | DI65: 0.2051018485 | DJ65: 0.3957434344 | DK65: 0.6368697347 | DL65: 0.9128924359 | DM65: 1.202969014 | DN65: 1.482228102 | DO65: 1.723737759 | DP65: 1.901148125 | DQ65: 1.991821932 | DR65: 1.980140262 | DS65: 1.860556056 | DT65: 1.639888493 | DU65: 1.338334027 | DV65: 0.9887389916
Y66: 0.72006 | Z66: 0.9064286435 | AA66: 1.259680711 | AB66: 1.574416845 | AC66: 1.815672993 | AD66: 1.960471645 | AE66: 1.998965271 | AF66: 1.933803835 | AG66: 1.778141313 | AH66: 1.552783759 | AI66: 1.282981351 | AJ66: 0.9953011137 | AK66: 0.714911361 | AL66: 0.4634875968 | AM66: 0.2578323188 | AN66: 0.1092017355 | AO66: 0.02325832647 | AP66: 0.0005216828683 | AQ66: 0.03716926085 | AR66: 0.1260390301 | AS66: 0.257701744 | AT66: 0.4214957485 | AU66: 0.6064465857 | AV66: 0.8020228907 | AW66: 0.9987062504 | AX66: 1.188374007 | AY66: 1.364509725 | AZ66: 1.522266231 | BA66: 1.658411472 | BB66: 1.771188675 | BC66: 1.8601207 | BD66: 1.925784798 | BE66: 1.969579309 | BF66: 1.993498784 | BG66: 1.999929078 | BH66: 1.991469614 | BI66: 1.970786309 | BJ66: 1.940495787 | BK66: 1.903079361 | BL66: 1.860823884 | BM66: 1.815785699 | BN66: 1.769773607 | BO66: 1.724346747 | BP66: 1.680823531 | BQ66: 1.640298187 | BR66: 1.603661916 | BS66: 1.571626188 | BT66: 1.544746171 | BU66: 1.523442704 | BV66: 1.508021641 | BW66: 1.498689676 | BX66: 1.495566044 | BY66: 1.49869592 | BZ66: 1.508034048 | CA66: 1.523461112 | CB66: 1.544770326 | CC66: 1.571655729 | CD66: 1.603696359 | CE66: 1.640336903 | CF66: 1.680865722 | CG66: 1.724391423 | CH66: 1.769819566 | CI66: 1.815831504 | CJ66: 1.860867852 | CK66: 1.903119558 | CL66: 1.940530036 | CM66: 1.970812218 | CN66: 1.991484622 | CO66: 1.999930528 | CP66: 1.993484021 | CQ66: 1.969545813 | CR66: 1.925730347 | CS66: 1.860043563 | CT66: 1.771087824 | CU66: 1.65828682 | CV66: 1.52211886 | CW66: 1.364342099 | CX66: 1.188190152 | CY66: 0.9985118469 | CZ66: 0.8018252815 | DA66: 0.6062546407 | DB66: 0.4213195723 | DC66: 0.2575522005 | DD66: 0.1259270781 | DE66: 0.03710510999 | DF66: 0.0005138064052 | DG66: 0.02331239196 | DH66: 0.1093195473 | DI66: 0.2580108926 | DJ66: 0.4637185089 | DK66: 0.7151805228 | DL66: 0.9955891143 | DM66: 1.283264476 | DN66: 1.553035734 | DO66: 1.778335735 | DP66: 1.933917136 | DQ66: 1.998979954 | DR66: 1.960379393 | DS66: 1.815477175 | DT66: 1.574133913 | DU66: 1.259339995 | DV66: 0.9060702255
Y67: 0.78006 | Z67: 0.8173160591 | AA67: 1.171827398 | AB67: 1.498514536 | AC67: 1.760371139 | AD67: 1.931561546 | AE67: 1.999009506 | AF67: 1.962183676 | AG67: 1.831447718 | AH67: 1.625450132 | AI67: 1.368047545 | AJ67: 1.085204862 | AK67: 0.802220942 | AL67: 0.5415132321 | AM67: 0.3210792397 | AN67: 0.1536515918 | AO67: 0.04648534012 | AP67: 0.001664449833 | AQ67: 0.01678809188 | AR67: 0.08589263842 | AS67: 0.2004768131 | AT67: 0.3505195567 | AU67: 0.5254075562 | AV67: 0.7147177051 | AW67: 0.9088258425 | AX67: 1.099334957 | AY67: 1.279332676 | AZ67: 1.443499174 | BA67: 1.588093056 | BB67: 1.710845122 | BC67: 1.810789148 | BD67: 1.88805592 | BE67: 1.943652544 | BF67: 1.97924435 | BG67: 1.996951957 | BH67: 1.999171759 | BI67: 1.988424342 | BJ67: 1.967232389 | BK67: 1.938027327 | BL67: 1.903082453 | BM67: 1.864469261 | BN67: 1.824033213 | BO67: 1.783385091 | BP67: 1.743904186 | BQ67: 1.706749914 | BR67: 1.672878873 | BS67: 1.643064801 | BT67: 1.617919339 | BU67: 1.597911958 | BV67: 1.583387766 | BW67: 1.574582221 | BX67: 1.571632099 | BY67: 1.574588117 | BZ67: 1.583399465 | CA67: 1.597929275 | CB67: 1.617941985 | CC67: 1.643092373 | CD67: 1.672910833 | CE67: 1.706785571 | CF67: 1.74394268 | CG67: 1.783425367 | CH67: 1.824074003 | CI67: 1.864509072 | CJ67: 1.903119558 | CK67: 1.938059762 | CL67: 1.967257977 | CM67: 1.988440722 | CN67: 1.99917644 | CO67: 1.9969424 | CP67: 1.979218074 | CQ67: 1.943607262 | CR67: 1.887989707 | CS67: 1.810700633 | CT67: 1.7107337 | CU67: 1.587959109 | CV67: 1.443344288 | CW67: 1.279159833 | CX67: 1.099148677 | CY67: 0.9086322503 | CZ67: 0.7145244852 | DA67: 0.5252237765 | DB67: 0.3503553274 | DC67: 0.2003427691 | DD67: 0.08579924042 | DE67: 0.01674476473 | DF67: 0.001678598208 | DG67: 0.04656131083 | DH67: 0.1537896798 | DI67: 0.3212748604 | DJ67: 0.5417564011 | DK67: 0.8024962066 | DL67: 1.085491815 | DM67: 1.368322012 | DN67: 1.625686058 | DO67: 1.831619695 | DP67: 1.962269926 | DQ67: 1.998995036 | DR67: 1.931441075 | DS67: 1.760151307 | DT67: 1.498214909 | DU67: 1.171479831 | DV67: 0.8169621256
Y68: 0.84006 | Z68: 0.7227575661 | AA68: 1.075405515 | AB68: 1.412026638 | AC68: 1.693745896 | AD68: 1.89187642 | AE68: 1.989974635 | AF68: 1.984079007 | AG68: 1.881446131 | AH68: 1.698225343 | AI68: 1.456551686 | AJ68: 1.18150386 | AK68: 0.8982916728 | AL68: 0.6299298751 | AM68: 0.3955426596 | AN68: 0.2093410568 | AO68: 0.08023373952 | AP68: 0.01197486033 | AQ68: 0.003720515396 | AR68: 0.05085527211 | AS68: 0.1459571214 | AT68: 0.2797877948 | AU68: 0.4422204181 | AV68: 0.6230435398 | AW68: 0.8126063177 | AX68: 1.002291848 | AY68: 1.184823092 | AZ68: 1.354418241 | BA68: 1.506819957 | BB68: 1.639226371 | BC68: 1.750151959 | BD68: 1.839244247 | BE68: 1.90707875 | BF68: 1.954950177 | BG68: 1.984673481 | BH68: 1.998404047 | BI68: 1.998482626 | BJ68: 1.98730753 | BK68: 1.967234217 | BL68: 1.94050068 | BM68: 1.909175936 | BN68: 1.875128256 | BO68: 1.840009539 | BP68: 1.805252268 | BQ68: 1.772075707 | BR68: 1.741498371 | BS68: 1.714354192 | BT68: 1.691310229 | BU68: 1.6728842 | BV68: 1.659460453 | BW68: 1.651303368 | BX68: 1.648567413 | BY68: 1.651308834 | BZ68: 1.659471281 | CA68: 1.672900181 | CB68: 1.691331041 | CC68: 1.714379386 | CD68: 1.741527358 | CE68: 1.772107739 | CF68: 1.805286422 | CG68: 1.840044698 | CH68: 1.875163095 | CI68: 1.909208914 | CJ68: 1.940530036 | CK68: 1.967257977 | CL68: 1.987323535 | CM68: 1.998488567 | CN68: 1.998397534 | CO68: 1.984652126 | CP68: 1.954911707 | CQ68: 1.907021152 | CR68: 1.839165936 | CS68: 1.750051965 | CT68: 1.639104548 | CU68: 1.506677191 | CV68: 1.35425665 | CW68: 1.184646186 | CX68: 1.002104645 | CY68: 0.8124153615 | CZ68: 0.622856816 | DA68: 0.4420471256 | DB68: 0.2796379583 | DC68: 0.1458410316 | DD68: 0.05078275701 | DE68: 0.00370006657 | DF68: 0.01201266141 | DG68: 0.08033267172 | DH68: 0.2094997826 | DI68: 0.3957549082 | DJ68: 0.6301840677 | DK68: 0.8985710243 | DL68: 1.181787072 | DM68: 1.456814308 | DN68: 1.698441795 | DO68: 1.88159231 | DP68: 1.984135264 | DQ68: 1.989928819 | DR68: 1.891726575 | DS68: 1.693502131 | DT68: 1.411711709 | DU68: 1.075053711 | DV68: 0.7224116926
Y69: 0.90006 | Z69: 0.6241350005 | AA69: 0.9710739925 | AB69: 1.314822802 | AC69: 1.614908519 | AD69: 1.839884266 | AE69: 1.969863502 | AF69: 1.997242982 | AG69: 1.925866604 | AH69: 1.769030272 | AI69: 1.54678763 | AJ69: 1.283002068 | AK69: 1.002522694 | AL69: 0.7287636483 | AM69: 0.481857883 | AN69: 0.2774545237 | AO69: 0.1261442427 | AP69: 0.03343518006 | AQ69: 0.0001641450103 | AR69: 0.02321193903 | AS69: 0.09639352074 | AT69: 0.2114083277 | AU69: 0.3587583103 | AV69: 0.5285666657 | AW69: 0.7112553778 | AX69: 0.8980620262 | AY69: 1.081394507 | AZ69: 1.255035725 | BA69: 1.414219081 | BB69: 1.555600188 | BC69: 1.677151509 | BD69: 1.778005347 | BE69: 1.858267719 | BF69: 1.91882175 | BG69: 1.961135078 | BH69: 1.987081626 | BI69: 1.998784426 | BJ69: 1.998483022 | BK69: 1.988426527 | BL69: 1.970791492 | BM69: 1.94762252 | BN69: 1.92079273 | BO69: 1.891980804 | BP69: 1.862661278 | BQ69: 1.834104862 | BR69: 1.80738585 | BS69: 1.783394041 | BT69: 1.762848991 | BU69: 1.746314775 | BV69: 1.734213846 | BW69: 1.726838852 | BX69: 1.724361641 | BY69: 1.726843799 | BZ69: 1.734223625 | CA69: 1.746329154 | CB69: 1.762867614 | CC69: 1.783416418 | CD69: 1.80741134 | CE69: 1.834132664 | CF69: 1.862690411 | CG69: 1.892010098 | CH69: 1.920820813 | CI69: 1.947647814 | CJ69: 1.970812218 | CK69: 1.988440722 | CL69: 1.998488567 | CM69: 1.998779096 | CN69: 1.987063162 | CO69: 1.961101278 | CP69: 1.918770592 | CQ69: 1.858197503 | CR69: 1.777914868 | CS69: 1.677040239 | CT69: 1.555468477 | CU69: 1.414068347 | CV69: 1.254868632 | CW69: 1.081215099 | CX69: 0.8978757996 | CY69: 0.71106926 | CZ69: 0.5283888807 | DA69: 0.3585981011 | DB69: 0.2112755218 | DC69: 0.09629793096 | DD69: 0.02316261065 | DE69: 0.000168478143 | DF69: 0.03349798215 | DG69: 0.1262667909 | DH69: 0.2776337415 | DI69: 0.4820857549 | DJ69: 0.7290270055 | DK69: 1.002803496 | DL69: 1.283278287 | DM69: 1.547034772 | DN69: 1.769223537 | DO69: 1.925983543 | DP69: 1.99726644 | DQ69: 1.969784508 | DR69: 1.839704454 | DS69: 1.61464162 | DT69: 1.314494753 | DU69: 0.9707213383 | DV69: 0.6238014188
Y70: 0.96006 | Z70: 0.5232645281 | AA70: 0.8599249191 | AB70: 1.207151849 | AC70: 1.523252131 | AD70: 1.774207964 | AE70: 1.936692824 | AF70: 1.999303183 | AG70: 1.96218956 | AH70: 1.835438345 | AI70: 1.636637359 | AJ70: 1.388063867 | AK70: 1.113882289 | AL70: 0.837651659 | AM70: 0.5803405476 | AN70: 0.3589465167 | AO70: 0.1857302401 | AP70: 0.06800799087 | AQ70: 0.008402652628 | AR70: 0.005431586107 | AS70: 0.05430615168 | AT70: 0.1478278459 | AU70: 0.2772850008 | AV70: 0.4332773749 | AW70: 0.60642011 | AX70: 0.7879007839 | AY70: 0.9698820052 | AZ70: 1.145756356 | BA70: 1.310270394 | BB70: 1.45954022 | BC70: 1.590983471 | BD70: 1.703192291 | BE70: 1.795769674 | BF70: 1.869148256 | BG70: 1.924406834 | BH70: 1.963095976 | BI70: 1.987080473 | BJ70: 1.998403233 | BK70: 1.999172637 | BL70: 1.991473367 | BM70: 1.977299316 | BN70: 1.958506226 | BO70: 1.936781189 | BP70: 1.913625932 | BQ70: 1.890350841 | BR70: 1.868076882 | BS70: 1.847742848 | BT70: 1.830115729 | BU70: 1.815802355 | BV70: 1.805260806 | BW70: 1.798810424 | BX70: 1.796639556 | BY70: 1.798814757 | BZ70: 1.805269346 | CA70: 1.815814849 | CB70: 1.830131789 | CC70: 1.847761944 | CD70: 1.868098329 | CE70: 1.890373788 | CF70: 1.913649349 | CG70: 1.936803863 | CH70: 1.95852675 | CI70: 1.977316093 | CJ70: 1.991484622 | CK70: 1.99917644 | CL70: 1.998397534 | CM70: 1.987063162 | CN70: 1.963064962 | CO70: 1.924360141 | CP70: 1.869084153 | CQ70: 1.795686819 | CR70: 1.703089898 | CS70: 1.59086149 | CT70: 1.459399527 | CU70: 1.310112959 | CV70: 1.145585395 | CW70: 0.9697020837 | CX70: 0.7877178433 | CY70: 0.606241404 | CZ70: 0.4331112835 | DA70: 0.2771407028 | DB70: 0.1477148395 | DC70: 0.05423362097 | DD70: 0.005407630966 | DE70: 0.008433417654 | DF70: 0.06809675492 | DG70: 0.1858765507 | DH70: 0.359145476 | DI70: 0.5805823721 | DJ70: 0.8379216389 | DK70: 1.114161261 | DL70: 1.388329284 | DM70: 1.636864981 | DN70: 1.835604503 | DO70: 1.962273844 | DP70: 1.999291308 | DQ70: 1.936579325 | DR70: 1.773998292 | DS70: 1.522963721 | DT70: 1.20681373 | DU70: 0.8595756025 | DV70: 0.522948099
Y71: 1.02006 | Z71: 0.4224335965 | AA71: 0.7435530272 | AB71: 1.08973469 | AC71: 1.418556722 | AD71: 1.693730339 | AE71: 1.888587013 | AF71: 1.987834776 | AG71: 1.987691532 | AH71: 1.894690167 | AI71: 1.723553895 | AJ71: 1.49456746 | AK71: 1.230836288 | AL71: 0.9557515484 | AM71: 0.6908844415 | AN71: 0.4544351949 | AO71: 0.2602741183 | AP71: 0.1175417148 | AQ71: 0.03072578351 | AR71: 0.0001056083363 | AS71: 0.02244408749 | AT71: 0.0918139547 | AU71: 0.2004595151 | AV71: 0.3396161976 | AW71: 0.5002330011 | AX71: 0.6735647604 | AY71: 0.8516201851 | AZ71: 1.027466795 | BA71: 1.195404859 | BB71: 1.351029413 | BC71: 1.491202943 | BD71: 1.61396199 | BE71: 1.718379648 | BF71: 1.804403223 | BG71: 1.872682953 | BH71: 1.924404088 | BI71: 1.961131102 | BJ71: 1.984669714 | BK71: 1.99694971 | BL71: 1.999929506 | BM71: 1.995521771 | BN71: 1.985538387 | BO71: 1.971652333 | BP71: 1.95537374 | BQ71: 1.938037308 | BR71: 1.920798347 | BS71: 1.904634955 | BT71: 1.890354119 | BU71: 1.878599873 | BV71: 1.869861952 | BW71: 1.864483738 | BX71: 1.862668563 | BY71: 1.864487359 | BZ71: 1.869869058 | CA71: 1.87861019 | CB71: 1.890367232 | CC71: 1.904650298 | CD71: 1.920815197 | CE71: 1.938054773 | CF71: 1.955390754 | CG71: 1.971667651 | CH71: 1.985550586 | CI71: 1.995529255 | CJ71: 1.999930528 | CK71: 1.9969424 | CL71: 1.984652126 | CM71: 1.961101278 | CN71: 1.924360141 | CO71: 1.872623178 | CP71: 1.804326221 | CQ71: 1.718284474 | CR71: 1.613848316 | CS71: 1.491071232 | CT71: 1.350881085 | CU71: 1.195242445 | CV71: 1.027294056 | CW71: 0.8514421765 | CX71: 0.6733878176 | CY71: 0.5000646259 | CZ71: 0.3394648212 | DA71: 0.2003341226 | DB71: 0.09172356397 | DC71: 0.02239708817 | DD71: 0.0001089833115 | DE71: 0.03078425724 | DF71: 0.1176568946 | DG71: 0.2604437171 | DH71: 0.4546524436 | DI71: 0.6911378088 | DJ71: 0.9560248856 | DK71: 1.231109499 | DL71: 1.494817755 | DM71: 1.723757633 | DN71: 1.894825206 | DO71: 1.987739911 | DP71: 1.987785461 | DQ71: 1.888438343 | DR71: 1.693491756 | DS71: 1.418249363 | DT71: 1.089390475 | DU71: 0.7432120379 | DV71: 0.4221397473
Y72: 1.08006 | Z72: 0.3244195903 | AA72: 0.6241149845 | AB72: 0.9638562313 | AC72: 1.30110227 | AD72: 1.59771536 | AE72: 1.823894245 | AF72: 1.960459618 | AG72: 1.999517924 | AH72: 1.943733677 | AI72: 1.804565999 | AJ72: 1.599874543 | AK72: 1.351286008 | AL72: 1.081653289 | AM72: 0.8128542979 | AN72: 0.5640841032 | AO72: 0.3507060563 | AP72: 0.1836540859 | AQ72: 0.06932421918 | AR72: 0.009859588738 | AS72: 0.003718033792 | AT72: 0.04641146461 | AU72: 0.1313172543 | AV72: 0.2504798249 | AW72: 0.3953415706 | AX72: 0.5573633373 | AY72: 0.7285137445 | AZ72: 0.9016224305 | BA72: 1.070604258 | BB72: 1.230569634 | BC72: 1.377840746 | BD72: 1.509895278 | BE72: 1.625258756 | BF72: 1.723364702 | BG72: 1.804398945 | BH72: 1.869141134 | BI72: 1.918813225 | BJ72: 1.95494163 | BK72: 1.979237053 | BL72: 1.993493865 | BM72: 1.999509153 | BN72: 1.999020389 | BO72: 1.993659816 | BP72: 1.984923219 | BQ72: 1.974150518 | BR72: 1.962515644 | BS72: 1.951023305 | BT72: 1.940510465 | BU72: 1.931650686 | BV72: 1.924959722 | BW72: 1.920801155 | BX72: 1.919391076 | BY72: 1.920803965 | BZ72: 1.924965196 | CA72: 1.931658535 | CB72: 1.940520252 | CC72: 1.951034433 | CD72: 1.962527362 | CE72: 1.974161903 | CF72: 1.984933183 | CG72: 1.993667099 | CH72: 1.999023572 | CI72: 1.999506669 | CJ72: 1.993484021 | CK72: 1.979218074 | CL72: 1.954911707 | CM72: 1.918770592 | CN72: 1.869084153 | CO72: 1.804326221 | CP72: 1.723275209 | CQ72: 1.625151986 | CR72: 1.509771396 | CS72: 1.377700747 | CT72: 1.230415496 | CU72: 1.070439067 | CV72: 0.9014504666 | CW72: 0.7283405058 | CX72: 0.5571954794 | CY72: 0.3951867425 | CZ72: 0.2503463822 | DA72: 0.1312138384 | DB72: 0.04634644541 | DC72: 0.003698829074 | DD72: 0.009891889593 | DE72: 0.06941117155 | DF72: 0.1837955 | DG72: 0.3508977351 | DH72: 0.5643173978 | DI72: 0.8131160014 | DJ72: 1.081925976 | DK72: 1.351548901 | DL72: 1.600104948 | DM72: 1.804741275 | DN72: 1.943833641 | DO72: 1.999527489 | DP72: 1.960371366 | DQ72: 1.823710575 | DR72: 1.597449799 | DS72: 1.300779554 | DT72: 0.9635108557 | DU72: 0.6237880766 | DV72: 0.3241542084
Y73: 1.14006 | Z73: 0.23248288 | AA73: 0.5043710415 | AB73: 0.8314496004 | AC73: 1.17178484 | AD73: 1.485942435 | AE73: 1.741324135 | AF73: 1.914973062 | AG73: 1.994786697 | AH73: 1.979295486 | AI73: 1.876311495 | AJ73: 1.700823654 | AK73: 1.472523133 | AL73: 1.213300041 | AM73: 0.9449792948 | AN73: 0.6874764425 | AO73: 0.4574678672 | AP73: 0.2675943318 | AQ73: 0.1261582452 | AR73: 0.03723553221 | AS73: 0.001101846649 | AT73: 0.01486740038 | AU73: 0.07322116406 | AV73: 0.1691996487 | AW73: 0.2949141881 | AX73: 0.4421905389 | AY73: 0.6030933961 | AZ73: 0.7703246038 | BA73: 0.9374966184 | BB73: 1.09929197 | BC73: 1.251525252 | BD73: 1.391127022 | BE73: 1.516069544 | BF73: 1.625253137 | BG73: 1.718369631 | BH73: 1.795756593 | BI73: 1.858252939 | BJ73: 1.907063594 | BK73: 1.943638247 | BL73: 1.969566971 | BM73: 1.986493729 | BN73: 1.996047402 | BO73: 1.999789052 | BP73: 1.999173515 | BQ73: 1.995523132 | BR73: 1.990011275 | BS73: 1.983653455 | BT73: 1.977303892 | BU73: 1.971655737 | BV73: 1.967243356 | BW73: 1.964445411 | BX73: 1.963487748 | BY73: 1.964447314 | BZ73: 1.967247013 | CA73: 1.971660844 | CB73: 1.977309993 | CC73: 1.983659937 | CD73: 1.990017365 | CE73: 1.995527895 | CF73: 1.999175855 | CG73: 1.999787719 | CH73: 1.996041004 | CI73: 1.986480752 | CJ73: 1.969545813 | CK73: 1.943607262 | CL73: 1.907021152 | CM73: 1.858197503 | CN73: 1.795686819 | CO73: 1.718284474 | CP73: 1.625151986 | CQ73: 1.51595236 | CR73: 1.390994486 | CS73: 1.251378907 | CT73: 1.099134348 | CU73: 0.9373313395 | CV73: 0.7701564232 | CW73: 0.6029281847 | CX73: 0.4420351755 | CY73: 0.2947763456 | CZ73: 0.1690874589 | DA73: 0.07314275606 | DB73: 0.01483031488 | DC73: 0.001112346605 | DD73: 0.03729784544 | DE73: 0.1262737952 | DF73: 0.2677610328 | DG73: 0.4576795763 | DH73: 0.6877226731 | DI73: 0.9452452968 | DJ73: 1.21356734 | DK73: 1.472770592 | DL73: 1.701029068 | DM73: 1.876453669 | DN73: 1.979356658 | DO73: 1.994755076 | DP73: 1.914845181 | DQ73: 1.741106642 | DR73: 1.48565294 | DS73: 1.171451457 | DT73: 0.8311089514 | DU73: 0.5040646504 | DV73: 0.2322521572
Y74: 1.20006 | Z74: 0.1503263737 | AA74: 0.3877002937 | AB74: 0.6951641772 | AC74: 1.032228375 | AD74: 1.358848523 | AE74: 1.640104256 | AF74: 1.849498468 | AG74: 1.970725705 | AH74: 1.997988508 | AI74: 1.935106222 | AJ74: 1.79375546 | AK74: 1.591210324 | AL74: 1.347926673 | AM74: 1.085255079 | AN74: 0.8234883672 | AO74: 0.580366689 | AP74: 0.3700869111 | AQ74: 0.2028010021 | AR74: 0.0845433201 | AS74: 0.01749967307 | AT74: 0.0005198242215 | AU74: 0.02977662304 | AV74: 0.09948547871 | AW74: 0.2026138603 | AX74: 0.3315287785 | AY74: 0.4785483287 | AZ74: 0.636379644 | BA74: 0.7984390192 | BB74: 0.959060095 | BC74: 1.113602867 | BD74: 1.258480242 | BE74: 1.391120395 | BF74: 1.509882891 | BG74: 1.61394494 | BH74: 1.703171814 | BI74: 1.77798273 | BJ74: 1.839220756 | BK74: 1.888032748 | BL74: 1.92576302 | BM74: 1.953862664 | BN74: 1.973814903 | BO74: 1.987075858 | BP74: 1.995029324 | BQ74: 1.998953758 | BR74: 1.999999446 | BS74: 1.999173808 | BT74: 1.997332865 | BU74: 1.995177122 | BV74: 1.993250305 | BW74: 1.991939705 | BX74: 1.99147712 | BY74: 1.991940618 | BZ74: 1.993251976 | CA74: 1.995179241 | CB74: 1.997334967 | CC74: 1.999175271 | CD74: 1.999999491 | CE74: 1.998951451 | CF74: 1.995023586 | CG74: 1.987065471 | CH74: 1.973798531 | CI74: 1.95383888 | CJ74: 1.925730347 | CK74: 1.887989707 | CL74: 1.839165936 | CM74: 1.777914868 | CN74: 1.703089898 | CO74: 1.613848316 | CP74: 1.509771396 | CQ74: 1.390994486 | CR74: 1.25834113 | CS74: 1.113452641 | CT74: 0.9589018247 | CU74: 0.7982768172 | CV74: 0.6362186747 | CW74: 0.4783947436 | CX74: 0.3313895598 | CY74: 0.2024965587 | CZ74: 0.09939783454 | DA74: 0.02972606948 | DB74: 0.000512883714 | DC74: 0.01754127164 | DD74: 0.08463606262 | DE74: 0.2029444699 | DF74: 0.3702770606 | DG74: 0.5805954444 | DH74: 0.8237435069 | DI74: 1.085520509 | DJ74: 1.34818317 | DK74: 1.591436774 | DL74: 1.793930602 | DM74: 1.935210792 | DN74: 1.998007634 | DO74: 1.970651294 | DP74: 1.849331282 | DQ74: 1.639855294 | DR74: 1.358539359 | DS74: 1.031890146 | DT74: 0.6948350408 | DU74: 0.3874213962 | DV74: 0.1501365956
Y75: 1.26006 | Z75: 0.08201361193 | AA75: 0.2780798172 | AB75: 0.5584071342 | AC75: 0.8848825421 | AD75: 1.217670161 | AE75: 1.52015016 | AF75: 1.762667113 | AG75: 1.924844578 | AH75: 1.996459833 | AI75: 1.977055174 | AJ75: 1.874578521 | AK75: 1.703397348 | AL75: 1.482026245 | AM75: 1.23086431 | AN75: 0.970170322 | AO75: 0.7184259827 | AP75: 0.491162291 | AQ75: 0.3002595607 | AR75: 0.1536822727 | AS75: 0.0555772712 | AT75: 0.006646844769 | AU75: 0.004704471751 | AV75: 0.04532721057 | AW75: 0.1225314592 | AX75: 0.2294149837 | AY75: 0.3587251618 | AZ75: 0.5033294116 | BA75: 0.6565775594 | BB75: 0.8125568107 | BC75: 0.9662478617 | BD75: 1.113595714 | BE75: 1.251511315 | BF75: 1.377820747 | BG75: 1.491177857 | BH75: 1.59095443 | BI75: 1.67711972 | BJ75: 1.750118631 | BK75: 1.810755431 | BL75: 1.860087644 | BM75: 1.899332881 | BN75: 1.929789827 | BO75: 1.952773423 | BP75: 1.969563445 | BQ75: 1.981365112 | BR75: 1.989280042 | BS75: 1.994285778 | BT75: 1.997222072 | BU75: 1.998782295 | BV75: 1.999508476 | BW75: 1.999788756 | BX75: 1.999856269 | BY75: 1.999788608 | BZ75: 1.999508024 | CA75: 1.998781229 | CB75: 1.997219926 | CC75: 1.994281933 | CD75: 1.989273732 | CE75: 1.981355425 | CF75: 1.96954934 | CG75: 1.952753741 | CH75: 1.92976332 | CI75: 1.899298246 | CJ75: 1.860043563 | CK75: 1.810700633 | CL75: 1.750051965 | CM75: 1.677040239 | CN75: 1.59086149 | CO75: 1.491071232 | CP75: 1.377700747 | CQ75: 1.251378907 | CR75: 1.113452641 | CS75: 0.9660967447 | CT75: 0.8124012171 | CU75: 0.6564220324 | CV75: 0.503179436 | CW75: 0.3585870534 | CX75: 0.2292956854 | CY75: 0.1224382331 | CZ75: 0.04526722119 | DA75: 0.004684263395 | DB75: 0.006671731363 | DC75: 0.05565066922 | DD75: 0.1538050262 | DE75: 0.3004293238 | DF75: 0.4913730485 | DG75: 0.718667799 | DH75: 0.9704294112 | DI75: 1.231123509 | DJ75: 1.482265947 | DK75: 1.703596914 | DL75: 1.874718133 | DM75: 1.977118006 | DN75: 1.996434364 | DO75: 1.924726778 | DP75: 1.762462169 | DQ75: 1.519873409 | DR75: 1.217346887 | DS75: 0.8845463949 | DT75: 0.5580970797 | DU75: 0.2778357304 | DV75: 0.08187088971
Y76: 1.32006 | Z76: 0.03183812519 | AA76: 0.1800175009 | AB76: 0.4253467075 | AC76: 0.7330946621 | AD76: 1.064574595 | AE76: 1.382240365 | AF76: 1.653818105 | AG76: 1.855139334 | AH76: 1.971580691 | AI76: 1.998211124 | AJ76: 1.938883739 | AK76: 1.804583102 | AL76: 1.611356097 | AM76: 1.378127791 | AN76: 1.12464804 | AO76: 0.8697442692 | AP76: 0.6299833863 | AQ76: 0.4187801825 | AR76: 0.2459366295 | AS76: 0.1175586494 | AT76: 0.03627430796 | AU76: 0.001668189114 | AV76: 0.01084821658 | AW76: 0.05907025426 | AX76: 0.1403594205 | AY76: 0.2480825666 | AZ76: 0.3754417642 | BA76: 0.515872497 | BB76: 0.6633417262 | BC76: 0.8125497384 | BD76: 0.9590457071 | BE76: 1.099270477 | BF76: 1.23054161 | BG76: 1.350995704 | BH76: 1.459501851 | BI76: 1.555558283 | BJ76: 1.639182075 | BK76: 1.710799543 | BL76: 1.771142837 | BM76: 1.821156345 | BN76: 1.861914943 | BO76: 1.894554848 | BP76: 1.92021689 | BQ76: 1.940001346 | BR76: 1.954933082 | BS76: 1.965935482 | BT76: 1.973811629 | BU76: 1.979231214 | BV76: 1.982721827 | BW76: 1.984663434 | BX76: 1.985285124 | BY76: 1.984662177 | BZ76: 1.982719161 | CA76: 1.979226834 | CB76: 1.97380508 | CC76: 1.965926165 | CD76: 1.954920257 | CE76: 1.939984148 | CF76: 1.920194341 | CG76: 1.894525882 | CH76: 1.861878431 | CI76: 1.82111114 | CJ76: 1.771087824 | CK76: 1.7107337 | CL76: 1.639104548 | CM76: 1.555468477 | CN76: 1.459399527 | CO76: 1.350881085 | CP76: 1.230415496 | CQ76: 1.099134348 | CR76: 0.9589018247 | CS76: 0.8124012171 | CT76: 0.6631925734 | CU76: 0.5157276009 | CV76: 0.3753068176 | CW76: 0.2479639101 | CX76: 0.1402637934 | CY76: 0.05900444662 | CZ76: 0.0108186217 | DA76: 0.001680266632 | DB76: 0.03633198067 | DC76: 0.1176636714 | DD76: 0.246087979 | DE76: 0.418973548 | DF76: 0.6302108261 | DG76: 0.86999413 | DH76: 1.124905218 | DI76: 1.378374401 | DJ76: 1.611572592 | DK76: 1.804749823 | DL76: 1.938982841 | DM76: 1.99822873 | DN76: 1.971509065 | DO76: 1.854978795 | DP76: 1.653578362 | DQ76: 1.381940946 | DR76: 1.064244079 | DS76: 0.7327685501 | DT76: 0.4250639009 | DU76: 0.1798156112 | DV76: 0.03174807004
Y77: 1.38006 | Z77: 0.004138432687 | AA77: 0.09842878896 | AB77: 0.3008645205 | AC77: 0.5811417043 | AD77: 0.9027662273 | AE77: 1.228184283 | AF77: 1.52320918 | AG77: 1.760324374 | AH77: 1.920677372 | AI77: 1.994783759 | AJ77: 1.982114356 | AK77: 1.889833573 | AL77: 1.730995926 | AM77: 1.522499914 | AN77: 1.283057313 | AO77: 1.031375147 | AP77: 0.7846798055 | AQ77: 0.5576478348 | AR77: 0.3617524498 | AS77: 0.2049926455 | AT77: 0.09194377347 | AU77: 0.02405382759 | AV77: 0.0001062370911 | AW77: 0.01677495678 | AX77: 0.06920820298 | AY77: 0.1515907047 | AZ77: 0.2576486768 | BA77: 0.3810752921 | BB77: 0.515866197 | BC77: 0.6565640353 | BD77: 0.7984178625 | BE77: 0.9374678747 | BF77: 1.070568348 | BG77: 1.195362491 | BH77: 1.310222481 | BI77: 1.414166654 | BJ77: 1.506764095 | BK77: 1.588034822 | BL77: 1.658351859 | BM77: 1.718349595 | BN77: 1.768841257 | BO77: 1.810747001 | BP77: 1.845033091 | BQ77: 1.872661858 | BR77: 1.89455163 | BS77: 1.911545496 | BT77: 1.92438761 | BU77: 1.93370575 | BV77: 1.939998889 | BW77: 1.943628714 | BX77: 1.944814217 | BY77: 1.94362633 | BZ77: 1.939993975 | CA77: 1.933698015 | CB77: 1.924376622 | CC77: 1.91153069 | CD77: 1.894532319 | CE77: 1.872637244 | CF77: 1.845002288 | CG77: 1.810709064 | CH77: 1.768795213 | CI77: 1.718294493 | CJ77: 1.65828682 | CK77: 1.587959109 | CL77: 1.506677191 | CM77: 1.414068347 | CN77: 1.310112959 | CO77: 1.195242445 | CP77: 1.070439067 | CQ77: 0.9373313395 | CR77: 0.7982768172 | CS77: 0.6564220324 | CT77: 0.5157276009 | CU77: 0.3809452272 | CV77: 0.2575329076 | CW77: 0.1514954352 | CX77: 0.06913978706 | CY77: 0.0167395168 | CZ77: 0.0001091960065 | DA77: 0.02409937047 | DB77: 0.09203426739 | DC77: 0.2051280605 | DD77: 0.3619298386 | DE77: 0.55786094 | DF77: 0.7849188733 | DG77: 1.031627025 | DH77: 1.283305907 | DI77: 1.522727041 | DJ77: 1.7311826 | DK77: 1.889961664 | DL77: 1.982168542 | DM77: 1.994753603 | DN77: 1.920559295 | DO77: 1.760123237 | DP77: 1.522939173 | DQ77: 1.227868816 | DR77: 0.9024365984 | DS77: 0.5808344403 | DT77: 0.3006174594 | DU77: 0.09827621139 | DV77: 0.004105778976
Y78: 1.44006 | Z78: 0.003055946218 | AA78: 0.03844908624 | AB78: 0.1904443193 | AC78: 0.4342068628 | AD78: 0.7365518947 | AE78: 1.060967324 | AF78: 1.372225023 | AG78: 1.640082129 | AH78: 1.841797799 | AI78: 1.963398895 | AJ78: 1.999795809 | AK78: 1.953964345 | AL78: 1.83547 | AM78: 1.658623128 | AN78: 1.440528685 | AO78: 1.199245082 | AP78: 0.9522057112 | AQ78: 0.7149941766 | AR78: 0.5005078124 | AS78: 0.318498441 | AT78: 0.1754465404 | AU78: 0.07470507911 | AV78: 0.01684076484 | AW78: 0.0001010481394 | AX78: 0.02094230867 | AY78: 0.07456571234 | AZ78: 0.155420061 | BA78: 0.2576438528 | BB78: 0.3754305181 | BC78: 0.5033106642 | BD78: 0.6363528156 | BE78: 0.7702895664 | BF78: 0.9015794402 | BG78: 1.027416414 | BH78: 1.145699371 | BI78: 1.254973067 | BJ78: 1.354350914 | BK78: 1.443428187 | BL78: 1.522192549 | BM78: 1.590937005 | BN78: 1.650178881 | BO78: 1.700587041 | BP78: 1.742918489 | BQ78: 1.777964635 | BR78: 1.80650691 | BS78: 1.829281005 | BT78: 1.846948754 | BU78: 1.860076625 | BV78: 1.869119768 | BW78: 1.874410676 | BX78: 1.876151676 | BY78: 1.874407181 | BZ78: 1.869112644 | CA78: 1.860065603 | CB78: 1.846933439 | CC78: 1.829260885 | CD78: 1.806481366 | CE78: 1.777932965 | CF78: 1.742879929 | CG78: 1.700540798 | CH78: 1.650124172 | CI78: 1.590873108 | CJ78: 1.52211886 | CK78: 1.443344288 | CL78: 1.35425665 | CM78: 1.254868632 | CN78: 1.145585395 | CO78: 1.027294056 | CP78: 0.9014504666 | CQ78: 0.7701564232 | CR78: 0.6362186747 | CS78: 0.503179436 | CT78: 0.3753068176 | CU78: 0.2575329076 | CV78: 0.1553275495 | CW78: 0.0744975225 | CX78: 0.02090421436 | CY78: 9.830345098e-05 | CZ78: 0.01687762808 | DA78: 0.0747842877 | DB78: 0.1755687711 | DC78: 0.3186618021 | DD78: 0.5007074285 | DE78: 0.7152219338 | DF78: 0.9524502365 | DG78: 1.199492027 | DH78: 1.440761368 | DI78: 1.658823566 | DJ78: 1.835620323 | DK78: 1.954048526 | DL78: 1.999801587 | DM78: 1.963319717 | DN78: 1.841634525 | DO78: 1.639844228 | DP78: 1.371930965 | DQ78: 1.06064392 | DR78: 0.7362324058 | DS78: 0.4339278654 | DT78: 0.1902414835 | DU78: 0.03835225678 | DV78: 0.003084133885
Y79: 1.50006 | Z79: 0.03223732321 | AA79: 0.00517656581 | AB79: 0.09998582192 | AC79: 0.2982848358 | AD79: 0.5713463551 | AE79: 0.8848539336 | AF79: 1.20356516 | AG79: 1.495315485 | AH79: 1.734003314 | AI79: 1.901402553 | AJ79: 1.987825817 | AK79: 1.99179342 | AL79: 1.918944073 | AM79: 1.78045591 | AN79: 1.591239358 | AO79: 1.368127879 | AP79: 1.12824057 | AQ79: 0.8876325173 | AR79: 0.6602930474 | AS79: 0.4575041572 | AT79: 0.2875346698 | AU79: 0.1556208242 | AV79: 0.06417048595 | AW79: 0.01312415587 | AX79: 0.0004092088646 | AY79: 0.02243195417 | AZ79: 0.07456298423 | BA79: 0.1515830823 | BB79: 0.2480683268 | BC79: 0.3587030635 | BD79: 0.478517611 | BE79: 0.603053745 | BF79: 0.7284652377 | BG79: 0.851563223 | BH79: 0.9698172346 | BI79: 1.081322746 | BJ79: 1.184745256 | BK79: 1.279249714 | BL79: 1.364422563 | BM79: 1.44019214 | BN79: 1.506751681 | BO79: 1.564487837 | BP79: 1.613916523 | BQ79: 1.655626969 | BR79: 1.690234187 | BS79: 1.718339578 | BT79: 1.740499067 | BU79: 1.757198009 | BV79: 1.768832049 | BW79: 1.775693145 | BX79: 1.777960109 | BY79: 1.775688599 | BZ79: 1.768822839 | CA79: 1.757183898 | CB79: 1.740479709 | CC79: 1.71831453 | CD79: 1.690202924 | CE79: 1.655588909 | CF79: 1.613871051 | CG79: 1.564434344 | CH79: 1.506689606 | CI79: 1.440121022 | CJ79: 1.364342099 | CK79: 1.279159833 | CL79: 1.184646186 | CM79: 1.081215099 | CN79: 0.9697020837 | CO79: 0.8514421765 | CP79: 0.7283405058 | CQ79: 0.6029281847 | CR79: 0.4783947436 | CS79: 0.3585870534 | CT79: 0.2479639101 | CU79: 0.1514954352 | CV79: 0.0744975225 | CW79: 0.02239405768 | CX79: 0.0004038714072 | CY79: 0.01315556698 | CZ79: 0.06424156077 | DA79: 0.1557327083 | DB79: 0.2876862577 | DC79: 0.4576916748 | DD79: 0.6605097582 | DE79: 0.8878686192 | DF79: 1.128483348 | DG79: 1.368362174 | DH79: 1.591448385 | DI79: 1.780622441 | DJ79: 1.919051945 | DK79: 1.991829282 | DL79: 1.987780973 | DM79: 1.901274695 | DN79: 1.733797905 | DO79: 1.495046504 | DP79: 1.203254979 | DQ79: 0.8845320912 | DR79: 0.5710471465 | DS79: 0.2980437778 | DT79: 0.09983524068 | DU79: 0.005140776324 | DV79: 0.03232805782
Y80: 1.56006 | Z80: 0.09448859234 | AA80: 0.003344810324 | AB80: 0.03553544757 | AC80: 0.1800010165 | AD80: 0.4135984486 | AE80: 0.7054264447 | AF80: 1.021389126 | AG80: 1.328382649 | AH80: 1.597669181 | AI80: 1.807198626 | AJ80: 1.942819488 | AK80: 1.998465504 | AL80: 1.97550428 | AM80: 1.881486933 | AN80: 1.728549416 | AO80: 1.531696061 | AP80: 1.307154835 | AQ80: 1.070942255 | AR80: 0.8377227042 | AS80: 0.6199983285 | AT80: 0.4276259868 | AU80: 0.2676286485 | AV80: 0.1442503041 | AW80: 0.05919480361 | AX80: 0.01198819493 | AY80: 0.000409002934 | AZ80: 0.02093937718 | BA80: 0.06920030732 | BB80: 0.1403447069 | BC80: 0.2293920401 | BD80: 0.3314966497 | BE80: 0.4421487091 | BF80: 0.5573116881 | BG80: 0.6735035109 | BH80: 0.7878304226 | BI80: 0.8979832391 | BJ80: 1.002205448 | BK80: 1.099241819 | BL80: 1.188275011 | BM80: 1.268856335 | BN80: 1.340835483 | BO80: 1.404292764 | BP80: 1.459476271 | BQ80: 1.506745474 | BR80: 1.546521981 | BS80: 1.579247666 | BT80: 1.605349948 | BU80: 1.625213803 | BV80: 1.639159926 | BW80: 1.647428487 | BX80: 1.650167937 | BY80: 1.647422997 | BZ80: 1.639148848 | CA80: 1.625196942 | CB80: 1.605327022 | CC80: 1.579218317 | CD80: 1.5464858 | CE80: 1.50670202 | CF80: 1.459425107 | CG80: 1.404233492 | CH80: 1.34076779 | CI80: 1.268780047 | CJ80: 1.188190152 | CK80: 1.099148677 | CL80: 1.002104645 | CM80: 0.8978757996 | CN80: 0.7877178433 | CO80: 0.6733878176 | CP80: 0.5571954794 | CQ80: 0.4420351755 | CR80: 0.3313895598 | CS80: 0.2292956854 | CT80: 0.1402637934 | CU80: 0.06913978706 | CV80: 0.02090421436 | CW80: 0.0004038714072 | CX80: 0.01201711242 | CY80: 0.05926071405 | CZ80: 0.1443546291 | DA80: 0.26777084 | DB80: 0.4278031216 | DC80: 0.6202047981 | DD80: 0.8379500581 | DE80: 1.071179258 | DF80: 1.307387796 | DG80: 1.531909475 | DH80: 1.728726944 | DI80: 1.8816127 | DJ80: 1.975564431 | DK80: 1.998449915 | DL80: 1.942723456 | DM80: 1.807024339 | DN80: 1.597426704 | DO80: 1.328090199 | DP80: 1.021072394 | DQ80: 0.705116833 | DR80: 0.4133301991 | DS80: 0.1798073731 | DT80: 0.03544419245 | DU80: 0.003373704053 | DV80: 0.09464140843
Y81: 1.62006 | Z81: 0.1913955862 | AA81: 0.03693127829 | AB81: 0.00293080659 | AC81: 0.08633291345 | AD81: 0.2706191659 | AE81: 0.5295360783 | AF81: 0.8313928248 | AG81: 1.143288646 | AH81: 1.434770629 | AI81: 1.680601681 | AJ81: 1.862497133 | AK81: 1.969842447 | AL81: 1.999519934 | AM81: 1.955044277 | AN81: 1.845237315 | AO81: 1.682669103 | AP81: 1.482064095 | AQ81: 1.258828423 | AR81: 1.027805512 | AS81: 0.8023197519 | AT81: 0.5935265817 | AU81: 0.4100548541 | AV81: 0.2579047062 | AW81: 0.1405509896 | AX81: 0.05919724406 | AY81: 0.01312648129 | AZ81: 0.0001007413135 | BA81: 0.01676970416 | BB81: 0.05905806521 | BC81: 0.1225107398 | BD81: 0.2025834464 | BE81: 0.2948733439 | BF81: 0.3952899597 | BG81: 0.5001706389 | BH81: 0.6063473034 | BI81: 0.7111726589 | BJ81: 0.8125143766 | BK81: 0.9087254628 | BL81: 0.9985982504 | BM81: 1.081308393 | BN81: 1.156354084 | BO81: 1.223494556 | BP81: 1.282690871 | BQ81: 1.334051035 | BR81: 1.377780749 | BS81: 1.41414044 | BT81: 1.443408827 | BU81: 1.465852904 | BV81: 1.481704097 | BW81: 1.491140226 | BX81: 1.494272924 | BY81: 1.491133952 | BZ81: 1.481691474 | CA81: 1.465833787 | CB81: 1.44338301 | CC81: 1.414107669 | CD81: 1.377740747 | CE81: 1.334003527 | CF81: 1.282635616 | CG81: 1.223431391 | CH81: 1.156282965 | CI81: 1.081229452 | CJ81: 0.9985118469 | CK81: 0.9086322503 | CL81: 0.8124153615 | CM81: 0.71106926 | CN81: 0.606241404 | CO81: 0.5000646259 | CP81: 0.3951867425 | CQ81: 0.2947763456 | CR81: 0.2024965587 | CS81: 0.1224382331 | CT81: 0.05900444662 | CU81: 0.0167395168 | CV81: 9.830345098e-05 | CW81: 0.01315556698 | CX81: 0.05926071405 | CY81: 0.1406503892 | CZ81: 0.2580398551 | DA81: 0.410223464 | DB81: 0.5937239456 | DC81: 0.8025385558 | DD81: 1.028035826 | DE81: 1.259057922 | DF81: 1.482278561 | DG81: 1.682853227 | DH81: 1.845375803 | DI81: 1.955123222 | DJ81: 1.999528374 | DK81: 1.969773967 | DL81: 1.86235135 | DM81: 1.680385369 | DN81: 1.434498282 | DO81: 1.14298223 | DP81: 0.8310805652 | DQ81: 0.529250196 | DR81: 0.2703926269 | DS81: 0.08619541711 | DT81: 0.002904425713 | DU81: 0.03702633261 | DV81: 0.1916074477
Y82: 1.68006 | Z82: 0.3229335883 | AA82: 0.10871599 | AB82: 0.007363242531 | AC82: 0.0242276873 | AD82: 0.1502960021 | AE82: 0.3651428307 | AF82: 0.6407877738 | AG82: 0.9458029247 | AH82: 1.249124703 | AI82: 1.523178501 | AJ82: 1.746093993 | AK82: 1.902946161 | AL82: 1.986084558 | AM82: 1.994702241 | AN82: 1.933845046 | AO82: 1.813075836 | AP82: 1.644994661 | AQ82: 1.443783491 | AR82: 1.223902009 | AS82: 0.9990162966 | AT82: 0.7812007793 | AU82: 0.5804189728 | AV82: 0.4042623865 | AW82: 0.2579095324 | AX82: 0.1442577546 | AY82: 0.06417809916 | AZ82: 0.01684602848 | BA82: 0.0001067624789 | BB82: 0.01084187155 | BC82: 0.04531220986 | BD82: 0.09946043423 | BE82: 0.1691635846 | BF82: 0.2504321641 | BG82: 0.3395567262 | BH82: 0.4332061913 | BI82: 0.5284841218 | BJ82: 0.6229501777 | BK82: 0.7146141948 | BL82: 0.8019099722 | BM82: 0.8836551383 | BN82: 0.9590025434 | BO82: 1.027387625 | BP82: 1.088475213 | BQ82: 1.142108343 | BR82: 1.188260869 | BS82: 1.226995027 | BT82: 1.258424599 | BU82: 1.282683964 | BV82: 1.299903074 | BW82: 1.310188256 | BX82: 1.313608666 | BY82: 1.310181408 | BZ82: 1.299889334 | CA82: 1.282663242 | CB82: 1.258396774 | CC82: 1.226959963 | CD82: 1.188218437 | CE82: 1.14205845 | CF82: 1.088417835 | CG82: 1.027322846 | CH82: 0.9589306004 | CI82: 0.8835764729 | CJ82: 0.8018252815 | CK82: 0.7145244852 | CL82: 0.622856816 | CM82: 0.5283888807 | CN82: 0.4331112835 | CO82: 0.3394648212 | CP82: 0.2503463822 | CQ82: 0.1690874589 | CR82: 0.09939783454 | CS82: 0.04526722119 | CT82: 0.0108186217 | CU82: 0.0001091960065 | CV82: 0.01687762808 | CW82: 0.06424156077 | CX82: 0.1443546291 | CY82: 0.2580398551 | CZ82: 0.4044243225 | DA82: 0.5806085167 | DB82: 0.7814115542 | DC82: 0.9992395001 | DD82: 1.224126557 | DE82: 1.443996404 | DF82: 1.645181717 | DG82: 1.813222516 | DH82: 1.933937726 | DI82: 1.994729591 | DJ82: 1.986039036 | DK82: 1.902825449 | DL82: 1.745902197 | DM82: 1.522926899 | DN82: 1.248831822 | DO82: 0.9454937787 | DP82: 0.640492133 | DQ82: 0.3648925293 | DR82: 0.1501214183 | DS82: 0.02415370437 | DT82: 0.007405164477 | DU82: 0.1088760227 | DV82: 0.3231985667
Y83: 1.74006 | Z83: 0.487098087 | AA83: 0.2198148075 | AB83: 0.05287245458 | AC83: 0.0001180467262 | AD83: 0.0606840441 | AE83: 0.2210241756 | AF83: 0.4581549122 | AG83: 0.7434695175 | AH83: 1.046552327 | AI83: 1.338544059 | AJ83: 1.594761676 | AK83: 1.796430337 | AL83: 1.931519655 | AM83: 1.994779352 | AN83: 1.987135859 | AO83: 1.914642818 | AP83: 1.787180302 | AQ83: 1.617077622 | AR83: 1.417800907 | AS83: 1.202806854 | AT83: 0.9846241023 | AU83: 0.774187982 | AV83: 0.5804255084 | AW83: 0.4100664813 | AX83: 0.2676433562 | AY83: 0.155636254 | AZ83: 0.07471873265 | BA83: 0.0240632466 | BB83: 0.001671100341 | BC83: 0.004698892794 | BD83: 0.02976092975 | BE83: 0.07319412272 | BF83: 0.1312780238 | BG83: 0.2004076252 | BH83: 0.2772203127 | BI83: 0.3586809658 | BJ83: 0.4421307825 | BK83: 0.5253061597 | BL83: 0.6063340661 | BM83: 0.6837100052 | BN83: 0.7562640224 | BO83: 0.8231194188 | BP83: 0.8836479872 | BQ83: 0.9374247594 | BR83: 0.9841845094 | BS83: 1.023781608 | BT83: 1.056154296 | BU83: 1.081294041 | BV83: 1.099220326 | BW83: 1.109961038 | BX83: 1.113538483 | BY83: 1.109953878 | BZ83: 1.099205993 | CA83: 1.081272509 | CB83: 1.056125538 | CC83: 1.023745614 | CD83: 0.9841413112 | CE83: 0.9373744546 | CF83: 0.883590775 | CG83: 0.8230556374 | CH83: 0.7561941909 | CI83: 0.6836348687 | CJ83: 0.6062546407 | CK83: 0.5252237765 | CL83: 0.4420471256 | CM83: 0.3585981011 | CN83: 0.2771407028 | CO83: 0.2003341226 | CP83: 0.1312138384 | CQ83: 0.07314275606 | CR83: 0.02972606948 | CS83: 0.004684263395 | CT83: 0.001680266632 | CU83: 0.02409937047 | CV83: 0.0747842877 | CW83: 0.1557327083 | CX83: 0.26777084 | CY83: 0.410223464 | CZ83: 0.5806085167 | DA83: 0.7743913973 | DB83: 0.9848400808 | DC83: 1.203025414 | DD83: 1.418010227 | DE83: 1.617264576 | DF83: 1.787331255 | DG83: 1.914744664 | DH83: 1.987177268 | DI83: 1.99475213 | DJ83: 1.931420113 | DK83: 1.796260495 | DL83: 1.594530125 | DM83: 1.338266272 | DN83: 1.046250249 | DO83: 0.7431702867 | DP83: 0.4578886728 | DQ83: 0.2208210487 | DR83: 0.06057047515 | DS83: 0.0001129044475 | DT83: 0.05298340058 | DU83: 0.2200355518 | DV83: 0.4874071644
Y84: 1.80006 | Z84: 0.6795972595 | AA84: 0.3692226343 | AB84: 0.1417990243 | AC84: 0.01934999122 | AD84: 0.009473676072 | AE84: 0.1063391545 | AF84: 0.2931479084 | AG84: 0.5454757399 | AH84: 0.834921066 | AI84: 1.132570534 | AJ84: 1.411921668 | AK84: 1.651046208 | AL84: 1.833913931 | AM84: 1.950909594 | AN84: 1.9986569 | AO84: 1.979311516 | AP84: 1.899503017 | AQ84: 1.769099302 | AR84: 1.599943669 | AS84: 1.404681671 | AT84: 1.195758344 | AU84: 0.9846313015 | AV84: 0.7812148304 | AW84: 0.5935463169 | AX84: 0.4276496029 | AY84: 0.2875599317 | AZ84: 0.1754709831 | BA84: 0.09196488458 | BB84: 0.0362896827 | BC84: 0.006654305756 | BD84: 0.0005175055761 | BE84: 0.01485379725 | BF84: 0.04638545202 | BG84: 0.09177478084 | BH84: 0.1477751055 | BI84: 0.2113419212 | BJ84: 0.2797078792 | BK84: 0.3504264913 | BL84: 0.4213900413 | BM84: 0.4908272419 | BN84: 0.557285864 | BO84: 0.6196050159 | BP84: 0.6768810782 | BQ84: 0.7284305905 | BR84: 0.7737526997 | BS84: 0.8124931597 | BT84: 0.8444113326 | BU84: 0.8693512106 | BV84: 0.8872171283 | BW84: 0.8979545894 | BX84: 0.9015364464 | BY84: 0.8979474234 | BZ84: 0.8872028166 | CA84: 0.8693297922 | CB84: 0.8443828799 | CC84: 0.8124577948 | CD84: 0.7737106166 | CE84: 0.7283820814 | CF84: 0.6768265651 | CG84: 0.6195450848 | CH84: 0.5572213022 | CI84: 0.4907590758 | CJ84: 0.4213195723 | CK84: 0.3503553274 | CL84: 0.2796379583 | CM84: 0.2112755218 | CN84: 0.1477148395 | CO84: 0.09172356397 | CP84: 0.04634644541 | CQ84: 0.01483031488 | CR84: 0.000512883714 | CS84: 0.006671731363 | CT84: 0.03633198067 | CU84: 0.09203426739 | CV84: 0.1755687711 | CW84: 0.2876862577 | CX84: 0.4278031216 | CY84: 0.5937239456 | CZ84: 0.7814115542 | DA84: 0.9848400808 | DB84: 1.195970164 | DC84: 1.404885771 | DD84: 1.600127985 | DE84: 1.76925114 | DF84: 1.899609948 | DG84: 1.97936248 | DH84: 1.998643437 | DI84: 1.950827116 | DJ84: 1.833762899 | DK84: 1.650833042 | DL84: 1.411659217 | DM84: 1.13227793 | DN84: 0.8346228188 | DO84: 0.5451999871 | DP84: 0.2929238492 | DQ84: 0.106193807 | DR84: 0.009428248535 | DS84: 0.01941629635 | DT84: 0.1419764786 | DU84: 0.3694964364 | DV84: 0.679938305
Y85: 1.86006 | Z85: 0.8936540688 | AA85: 0.5534127904 | AB85: 0.2742338604 | AC85: 0.08554974961 | AD85: 0.00334775295 | AE85: 0.03004512882 | AF85: 0.1560282675 | AG85: 0.3623488452 | AH85: 0.6240282501 | AI85: 0.9134631299 | AJ85: 1.203522864 | AK85: 1.470056471 | AL85: 1.693657735 | AM85: 1.860655061 | AN85: 1.963385383 | AO85: 1.999874525 | AP85: 1.973079944 | AQ85: 1.889859854 | AR85: 1.7598211 | AS85: 1.594173655 | AT85: 1.404688255 | AU85: 1.202820955 | AV85: 0.9990378966 | AW85: 0.8023479836 | AX85: 0.6200316282 | AY85: 0.4575404482 | AZ85: 0.3185353254 | BA85: 0.2050275869 | BB85: 0.1175891347 | BC85: 0.05560094246 | BD85: 0.01751442801 | BE85: 0.001105905179 | BF85: 0.003709974287 | BG85: 0.0224228563 | BH85: 0.05427105086 | BI85: 0.09634417926 | BJ85: 0.145893455 | BK85: 0.2003989775 | BL85: 0.2576100854 | BM85: 0.3155634769 | BN85: 0.3725838357 | BO85: 0.4272714375 | BP85: 0.4784807505 | BQ85: 0.5252934856 | BR85: 0.5669889629 | BS85: 0.6030140946 | BT85: 0.6329547642 | BU85: 0.6565099393 | BV85: 0.6734694839 | BW85: 0.6836963445 | BX85: 0.6871135521 | BY85: 0.6836895107 | BZ85: 0.6734558699 | CA85: 0.6564896502 | CB85: 0.6329279712 | CC85: 0.6029810499 | CD85: 0.5669500201 | CE85: 0.5252491237 | CF85: 0.4784316017 | CG85: 0.4272183162 | CH85: 0.3725277692 | CI85: 0.3155057339 | CJ85: 0.2575522005 | CK85: 0.2003427691 | CL85: 0.1458410316 | CM85: 0.09629793096 | CN85: 0.05423362097 | CO85: 0.02239708817 | CP85: 0.003698829074 | CQ85: 0.001112346605 | CR85: 0.01754127164 | CS85: 0.05565066922 | CT85: 0.1176636714 | CU85: 0.2051280605 | CV85: 0.3186618021 | CW85: 0.4576916748 | CX85: 0.6202047981 | CY85: 0.8025385558 | CZ85: 0.9992395001 | DA85: 1.203025414 | DB85: 1.404885771 | DC85: 1.594353171 | DD85: 1.759970873 | DE85: 1.889968231 | DF85: 1.973136335 | DG85: 1.999870501 | DH85: 1.963315853 | DI85: 1.860519381 | DJ85: 1.693460632 | DK85: 1.469808605 | DL85: 1.20324088 | DM85: 0.9131690375 | DN85: 0.6237480507 | DO85: 0.3621103803 | DP85: 0.1558583804 | DQ85: 0.02996635454 | DR85: 0.003374886012 | DS85: 0.08568675334 | DT85: 0.2744716588 | DU85: 0.5537284857 | DV85: 0.8940120377
Y86: 1.92006 | Z86: 1.119970124 | AA86: 0.7660482948 | AB86: 0.4475170118 | AC86: 0.1999730052 | AD86: 0.0472573268 | AE86: 0.0001794300037 | AF86: 0.05702673118 | AG86: 0.2054582996 | AH86: 0.4252877844 | AI86: 0.6916553109 | AJ86: 0.9781492963 | AK86: 1.259541649 | AL86: 1.513919453 | AM86: 1.724113092 | AN86: 1.8784208 | AO86: 1.970704949 | AP86: 1.999983462 | AQ86: 1.969662195 | AR86: 1.886555263 | AS86: 1.759825781 | AT86: 1.599955189 | AU86: 1.417820531 | AV86: 1.223930077 | AW86: 1.027841498 | AX86: 0.8377653317 | AY86: 0.6603404506 | AZ86: 0.5005577131 | BA86: 0.3618023362 | BB86: 0.2459839212 | BC86: 0.1537244635 | BD86: 0.08457809231 | BE86: 0.0372608404 | BF86: 0.009873713674 | BG86: 0.0001071837221 | BH86: 0.005419602124 | BI86: 0.02318572728 | BJ86: 0.05081447681 | BK86: 0.08583717838 | BL86: 0.1259690558 | BM86: 0.1691475573 | BN86: 0.213551528 | BO86: 0.2576052617 | BP86: 0.2999712539 | BQ86: 0.3395351012 | BR86: 0.3753855354 | BS86: 0.4067920946 | BT86: 0.4331824644 | BU86: 0.4541210862 | BV86: 0.4692902552 | BW86: 0.4784746072 | BX86: 0.4815496257 | BY86: 0.4784684609 | BZ86: 0.4692780474 | CA86: 0.4541029854 | CB86: 0.433158735 | CC86: 0.4067631103 | CD86: 0.3753517968 | CE86: 0.3394972562 | CF86: 0.2999301195 | CG86: 0.2575618472 | CH86: 0.2135070566 | CI86: 0.1691034837 | CJ86: 0.1259270781 | CK86: 0.08579924042 | CL86: 0.05078275701 | CM86: 0.02316261065 | CN86: 0.005407630966 | CO86: 0.0001089833115 | CP86: 0.009891889593 | CQ86: 0.03729784544 | CR86: 0.08463606262 | CS86: 0.1538050262 | CT86: 0.246087979 | CU86: 0.3619298386 | CV86: 0.5007074285 | CW86: 0.6605097582 | CX86: 0.8379500581 | CY86: 1.028035826 | CZ86: 1.224126557 | DA86: 1.418010227 | DB86: 1.600127985 | DC86: 1.759970873 | DD86: 1.88666183 | DE86: 1.96972025 | DF86: 1.99998484 | DG86: 1.970644368 | DH86: 1.878296901 | DI86: 1.723929333 | DJ86: 1.513684726 | DK86: 1.259270457 | DL86: 0.9778613624 | DM86: 0.6913745047 | DN86: 0.425040337 | DO86: 0.2052703435 | DP86: 0.05692132458 | DQ86: 0.0001733449641 | DR86: 0.0473579916 | DS86: 0.2001760809 | DT86: 0.4478051138 | DU86: 0.766391322 | DV86: 1.12032752
Y87: 1.98006 | Z87: 1.346902967 | AA87: 0.9978669909 | AB87: 0.6558503036 | AC87: 0.3608957869 | AD87: 0.1436636656 | AE87: 0.02303711606 | AF87: 0.00554278051 | AG87: 0.08631535509 | AH87: 0.2511934171 | AI87: 0.4794801721 | AJ87: 0.7469228399 | AK87: 1.028536483 | AL87: 1.30099928 | AM87: 1.544455944 | AN87: 1.74366807 | AO87: 1.888534164 | AP87: 1.974062514 | AQ87: 1.999916227 | AR87: 1.969663955 | AS87: 1.889866423 | AT87: 1.769113107 | AU87: 1.617100285 | AV87: 1.443815752 | AW87: 1.258870151 | AX87: 1.070992528 | AY87: 0.8876897527 | AZ87: 0.7150562896 | BA87: 0.5577124085 | BB87: 0.418844633 | BC87: 0.3003212873 | BD87: 0.2028575135 | BE87: 0.1262072597 | BF87: 0.06936373587 | BG87: 0.03075412715 | BH87: 0.008418494046 | BI87: 0.000166501504 | BJ87: 0.003708735138 | BK87: 0.01676182677 | BL87: 0.03712843191 | BM87: 0.06275434007 | BN87: 0.09176574184 | BO87: 0.1224900221 | BP87: 0.1534634951 | BQ87: 0.1834293333 | BR87: 0.2113286411 | BS87: 0.236287253 | BT87: 0.257600438 | BU87: 0.2747172913 | BV87: 0.2872262356 | BW87: 0.2948427122 | BX87: 0.2973998568 | BY87: 0.2948376045 | BZ87: 0.287216133 | CA87: 0.2747024185 | CB87: 0.2575811411 | CC87: 0.2362640112 | CD87: 0.2113020796 | CE87: 0.1834002391 | CF87: 0.1534328323 | CG87: 0.1224589468 | CH87: 0.09173561342 | CI87: 0.06272672712 | CJ87: 0.03710510999 | CK87: 0.01674476473 | CL87: 0.00370006657 | CM87: 0.000168478143 | CN87: 0.008433417654 | CO87: 0.03078425724 | CP87: 0.06941117155 | CQ87: 0.1262737952 | CR87: 0.2029444699 | CS87: 0.3004293238 | CT87: 0.418973548 | CU87: 0.55786094 | CV87: 0.7152219338 | CW87: 0.8878686192 | CX87: 1.071179258 | CY87: 1.259057922 | CZ87: 1.443996404 | DA87: 1.617264576 | DB87: 1.76925114 | DC87: 1.889968231 | DD87: 1.96972025 | DE87: 1.999919274 | DF87: 1.974007091 | DG87: 1.888418514 | DH87: 1.743494754 | DI87: 1.544232468 | DJ87: 1.300738354 | DK87: 1.028255792 | DL87: 0.7466442224 | DM87: 0.4792281353 | DN87: 0.2509930217 | DO87: 0.08618956858 | DP87: 0.005509521053 | DQ87: 0.02310631272 | DR87: 0.1438347523 | DS87: 0.3611560965 | DT87: 0.6561748165 | DU87: 0.9982197938 | DV87: 1.347240592
Y88: 2.04006 | Z88: 1.560901391 | AA88: 1.23680325 | AB88: 0.8900966497 | AC88: 0.56312127 | AD88: 0.2918138345 | AE88: 0.1022980406 | AF88: 0.009216207256 | AG88: 0.01568171465 | AH88: 0.1145474771 | AI88: 0.290585695 | AJ88: 0.5231506076 | AK88: 0.7889325898 | AL88: 1.064488375 | AM88: 1.328328243 | AN88: 1.562439428 | AO88: 1.753213005 | AP88: 1.891811283 | AQ88: 1.974060885 | AR88: 1.999983544 | AS88: 1.973084922 | AT88: 1.8995156 | AU88: 1.787202504 | AV88: 1.645027673 | AW88: 1.482108251 | AX88: 1.30720965 | AY88: 1.128304834 | AZ88: 0.952277629 | BA88: 0.7847571484 | BB88: 0.6300636554 | BC88: 0.4912428699 | BD88: 0.3701652022 | BE88: 0.2676678699 | BF88: 0.1837206267 | BG88: 0.1175992972 | BH88: 0.06805497595 | BI88: 0.03347026769 | BJ88: 0.01199708876 | BK88: 0.001673181342 | BL88: 0.0005165795687 | BM88: 0.006598811705 | BN88: 0.0180986829 | BO88: 0.03333912895 | BP88: 0.05080994498 | BQ88: 0.06917925436 | BR88: 0.08729646458 | BS88: 0.1041892214 | BT88: 0.1190565693 | BU88: 0.1312601936 | BV88: 0.140315282 | BW88: 0.1458822211 | BX88: 0.1477600365 | BY88: 0.1458784747 | BZ88: 0.1403079244 | CA88: 0.1312494942 | CB88: 0.1190429392 | CC88: 0.1041732207 | CD88: 0.08727881147 | CE88: 0.06916083423 | CF88: 0.0507918185 | CG88: 0.03332253736 | CH88: 0.01808504845 | CI88: 0.006589730862 | CJ88: 0.0005138064052 | CK88: 0.001678598208 | CL88: 0.01201266141 | CM88: 0.03349798215 | CN88: 0.06809675492 | CO88: 0.1176568946 | CP88: 0.1837955 | CQ88: 0.2677610328 | CR88: 0.3702770606 | CS88: 0.4913730485 | CT88: 0.6302108261 | CU88: 0.7849188733 | CV88: 0.9524502365 | CW88: 1.128483348 | CX88: 1.307387796 | CY88: 1.482278561 | CZ88: 1.645181717 | DA88: 1.787331255 | DB88: 1.899609948 | DC88: 1.973136335 | DD88: 1.99998484 | DE88: 1.974007091 | DF88: 1.891700505 | DG88: 1.753047219 | DH88: 1.562225089 | DI88: 1.328076596 | DJ88: 1.064215338 | DK88: 0.7886581206 | DL88: 0.5228974766 | DM88: 0.2903776689 | DN88: 0.1144069816 | DO88: 0.01562714726 | DP88: 0.009259168927 | DQ88: 0.1024408447 | DR88: 0.2920477116 | DS88: 0.563425696 | DT88: 0.8904401662 | DU88: 1.237146004 | DV88: 1.561199395
Y89: 2.10006 | Z89: 1.747228187 | AA89: 1.468402145 | AB89: 1.137841114 | AC89: 0.7976875651 | AD89: 0.4871351724 | AE89: 0.2381796369 | AF89: 0.07293054876 | AG89: 0.002524957574 | AH89: 0.02746756597 | AI89: 0.139080641 | AJ89: 0.3216798026 | AK89: 0.5550897505 | AL89: 0.817160327 | AM89: 1.086019521 | AN89: 1.341888683 | AO89: 1.568372111 | AP89: 1.753208269 | AQ89: 1.888527557 | AR89: 1.970699758 | AS89: 1.999874068 | AT89: 1.9793188 | AU89: 1.914660281 | AV89: 1.813105175 | AW89: 1.682711192 | AX89: 1.531750942 | AY89: 1.368194822 | AZ89: 1.199322693 | BA89: 1.031461504 | BB89: 0.8698370723 | BC89: 0.7185227057 | BD89: 0.5804647223 | BE89: 0.4575646428 | BF89: 0.350799151 | BG89: 0.2603613334 | BH89: 0.1858096583 | BI89: 0.1262142625 | BJ89: 0.08029309098 | BK89: 0.04653308538 | BL89: 0.02329384773 | BM89: 0.008892977095 | BN89: 0.001673597698 | BO89: 5.551342625e-05 | BP89: 0.002571993637 | BQ89: 0.007894484595 | BR89: 0.01484761606 | BS89: 0.02241679207 | BT89: 0.02975046982 | BU89: 0.03615898041 | BV89: 0.04111146223 | BW89: 0.04423218052 | BX89: 0.0452972105 | BY89: 0.04423006181 | BZ89: 0.04110737483 | CA89: 0.03615322375 | CB89: 0.02974349666 | CC89: 0.02240921217 | CD89: 0.01484019969 | CE89: 0.007888164945 | CF89: 0.002567866527 | CG89: 5.483270449e-05 | CH89: 0.001677764307 | CI89: 0.008903519602 | CJ89: 0.02331239196 | CK89: 0.04656131083 | CL89: 0.08033267172 | CM89: 0.1262667909 | CN89: 0.1858765507 | CO89: 0.2604437171 | CP89: 0.3508977351 | CQ89: 0.4576795763 | CR89: 0.5805954444 | CS89: 0.718667799 | CT89: 0.86999413 | CU89: 1.031627025 | CV89: 1.199492027 | CW89: 1.368362174 | CX89: 1.531909475 | CY89: 1.682853227 | CZ89: 1.813222516 | DA89: 1.914744664 | DB89: 1.97936248 | DC89: 1.999870501 | DD89: 1.970644368 | DE89: 1.888418514 | DF89: 1.753047219 | DG89: 1.568164752 | DH89: 1.341645088 | DI89: 1.085754102 | DJ89: 0.8168913424 | DK89: 0.5548382873 | DL89: 0.3214682153 | DM89: 0.1389304963 | DN89: 0.02739722074 | DO89: 0.002546992772 | DP89: 0.07304936166 | DQ89: 0.2383895626 | DR89: 0.4874195287 | DS89: 0.7980189824 | DT89: 1.13818341 | DU89: 1.468713823 | DV89: 1.747467386
Y90: 2.16006 | Z90: 1.89097527 | AA90: 1.676565518 | AB90: 1.383782123 | AC90: 1.051865308 | AD90: 0.7208474995 | AE90: 0.426713438 | AF90: 0.1978355198 | AG90: 0.05288862699 | AH90: 0.0002139252479 | AI90: 0.03842536207 | AJ90: 0.1579453092 | AK90: 0.3431140154 | AL90: 0.5745299386 | AM90: 0.8313289528 | AN90: 1.093183373 | AO90: 1.341881917 | AP90: 1.562427521 | AQ90: 1.743653629 | AR90: 1.878407037 | AS90: 1.96337573 | AT90: 1.998654661 | AU90: 1.987143916 | AV90: 1.933865646 | AW90: 1.845271942 | AX90: 1.728598733 | AY90: 1.591303231 | AZ90: 1.440606248 | BA90: 1.283147084 | BB90: 1.124748053 | BC90: 0.9702782741 | BD90: 0.8236017596 | BE90: 0.6875927138 | BF90: 0.5642007453 | BG90: 0.4545498478 | BH90: 0.3590570428 | BI90: 0.27755906 | BJ90: 0.2094380482 | BK90: 0.1537398069 | BL90: 0.109280269 | BM90: 0.07473784962 | BN90: 0.04873078376 | BO90: 0.0298797105 | BP90: 0.0168565582 | BQ90: 0.008421291133 | BR90: 0.003448347318 | BS90: 0.0009446813786 | BT90: 6.127429525e-05 | BU90: 9.982363516e-05 | BV90: 0.0005161168759 | BW90: 0.0009213413543 | BX90: 0.001082314606 | BY90: 0.0009210322263 | BZ90: 0.0005156542747 | CA90: 9.95186246e-05 | CB90: 6.159356582e-05 | CC90: 0.0009462466177 | CD90: 0.003451933055 | CE90: 0.008427819934 | CF90: 0.01686709184 | CG90: 0.02989543548 | CH90: 0.04875298937 | CI90: 0.07476789668 | CJ90: 0.1093195473 | CK90: 0.1537896798 | CL90: 0.2094997826 | CM90: 0.2776337415 | CN90: 0.359145476 | CO90: 0.4546524436 | CP90: 0.5643173978 | CQ90: 0.6877226731 | CR90: 0.8237435069 | CS90: 0.9704294112 | CT90: 1.124905218 | CU90: 1.283305907 | CV90: 1.440761368 | CW90: 1.591448385 | CX90: 1.728726944 | CY90: 1.845375803 | CZ90: 1.933937726 | DA90: 1.987177268 | DB90: 1.998643437 | DC90: 1.963315853 | DD90: 1.878296901 | DE90: 1.743494754 | DF90: 1.562225089 | DG90: 1.341645088 | DH90: 1.092925295 | DI90: 0.8310663722 | DJ90: 0.5742823508 | DK90: 0.3429023182 | DL90: 0.1577899972 | DM90: 0.0383443577 | DN90: 0.000220225709 | DO90: 0.05298802573 | DP90: 0.1980247245 | DQ90: 0.4269789421 | DR90: 0.721165552 | DS90: 1.052203253 | DT90: 1.384101239 | DU90: 1.676825274 | DV90: 1.891138672
Y91: 2.22006 | Z91: 1.978342393 | AA91: 1.84464185 | AB91: 1.610503209 | AC91: 1.309527214 | AD91: 0.9798971435 | AE91: 0.6592596961 | AF91: 0.3805010887 | AG91: 0.1687768612 | AH91: 0.03991548569 | AI91: 0.0001171633678 | AJ91: 0.04672770763 | AK91: 0.169787687 | AL91: 0.3540337035 | AM91: 0.5810501748 | AN91: 0.831321856 | AO91: 1.086005174 | AP91: 1.32830784 | AQ91: 1.544431786 | AR91: 1.724088263 | AS91: 1.860633063 | AT91: 1.950893995 | AU91: 1.994773472 | AV91: 1.9947089 | AW91: 1.95506562 | AX91: 1.881524329 | AY91: 1.780509926 | AZ91: 1.658693557 | BA91: 1.522585857 | BB91: 1.37822777 | BC91: 1.230976397 | BD91: 1.085377032 | BE91: 0.9451086989 | BF91: 0.8129886827 | BG91: 0.6910213922 | BH91: 0.5804777938 | BI91: 0.4819933682 | BJ91: 0.3956745911 | BK91: 0.3212061216 | BL91: 0.2579529693 | BM91: 0.2050537948 | BN91: 0.1615030893 | BO91: 0.1262212654 | BP91: 0.09811266417 | BQ91: 0.07611217936 | BR91: 0.05922165122 | BS91: 0.04653742705 | BT91: 0.03727057656 | BU91: 0.03076121507 | BV91: 0.02648826566 | BW91: 0.02407580812 | BX91: 0.02329693857 | BY91: 0.02407737932 | BZ91: 0.02649155896 | CA91: 0.03076653242 | CB91: 0.03727836737 | CC91: 0.04654828316 | CD91: 0.05923629909 | CE91: 0.07613146815 | CF91: 0.09813754877 | CG91: 0.1262527828 | CH91: 0.1615423267 | CI91: 0.2051018485 | CJ91: 0.2580108926 | CK91: 0.3212748604 | CL91: 0.3957549082 | CM91: 0.4820857549 | CN91: 0.5805823721 | CO91: 0.6911378088 | CP91: 0.8131160014 | CQ91: 0.9452452968 | CR91: 1.085520509 | CS91: 1.231123509 | CT91: 1.378374401 | CU91: 1.522727041 | CV91: 1.658823566 | CW91: 1.780622441 | CX91: 1.8816127 | CY91: 1.955123222 | CZ91: 1.994729591 | DA91: 1.99475213 | DB91: 1.950827116 | DC91: 1.860519381 | DD91: 1.723929333 | DE91: 1.544232468 | DF91: 1.328076596 | DG91: 1.085754102 | DH91: 0.8310663722 | DI91: 0.5808082927 | DJ91: 0.3538248681 | DK91: 0.1696311866 | DL91: 0.04664073769 | DM91: 0.0001126881694 | DN91: 0.04000011492 | DO91: 0.1689490218 | DP91: 0.3807498098 | DQ91: 0.6595643283 | DR91: 0.9802282813 | DS91: 1.309848981 | DT91: 1.610776895 | DU91: 1.844830664 | DV91: 1.978416848
Y92: 2.28006 | Z92: 1.998109061 | AA92: 1.956833148 | AB92: 1.799644522 | AC92: 1.551951737 | AD92: 1.247309963 | AE92: 0.9223811395 | AF92: 0.6123351309 | AG92: 0.347183174 | AH92: 0.1493097417 | AI92: 0.03226090191 | AJ92: 0.0006807529871 | AK92: 0.05117453643 | AL92: 0.1738187355 | AM92: 0.3540282073 | AN92: 0.5745169071 | AO92: 0.8171390911 | AP92: 1.064459635 | AQ92: 1.30096495 | AR92: 1.513882394 | AS92: 1.693621431 | AT92: 1.833882141 | AU92: 1.931496086 | AV92: 1.986072586 | AW92: 1.999522385 | AX92: 1.975523283 | AY92: 1.918980984 | AZ92: 1.835525389 | BA92: 1.731069619 | BB92: 1.611447257 | BC92: 1.482133483 | BD92: 1.348048173 | BE92: 1.213433691 | BF92: 1.081796807 | BG92: 0.9559026008 | BH92: 0.8378079596 | BI92: 0.7289230442 | BJ92: 0.6300904124 | BK92: 0.5416732057 | BL92: 0.4636455829 | BM92: 0.3956803276 | BN92: 0.337230126 | BO92: 0.2876003527 | BP92: 0.246012298 | BQ92: 0.2116566011 | BR92: 0.1837372635 | BS92: 0.1615070126 | BT92: 0.1442950098 | BU92: 0.1315279867 | BV92: 0.1227458696 | BW92: 0.117612848 | BX92: 0.1159246845 | BY92: 0.1176162375 | BZ92: 0.1227527838 | CA92: 0.1315386966 | CB92: 0.1443099149 | CC92: 0.161526632 | CD92: 0.1837622222 | CE92: 0.2116876122 | CF92: 0.2460501384 | CG92: 0.2876458317 | CH92: 0.3372840456 | CI92: 0.3957434344 | CJ92: 0.4637185089 | CK92: 0.5417564011 | CL92: 0.6301840677 | CM92: 0.7290270055 | CN92: 0.8379216389 | CO92: 0.9560248856 | CP92: 1.081925976 | CQ92: 1.21356734 | CR92: 1.34818317 | CS92: 1.482265947 | CT92: 1.611572592 | CU92: 1.7311826 | CV92: 1.835620323 | CW92: 1.919051945 | CX92: 1.975564431 | CY92: 1.999528374 | CZ92: 1.986039036 | DA92: 1.931420113 | DB92: 1.833762899 | DC92: 1.693460632 | DD92: 1.513684726 | DE92: 1.300738354 | DF92: 1.064215338 | DG92: 0.8168913424 | DH92: 0.5742823508 | DI92: 0.3538248681 | DJ92: 0.173664617 | DK92: 0.0510858958 | DL92: 0.0006701693139 | DM92: 0.03233532193 | DN92: 0.1494687442 | DO92: 0.3474177349 | DP92: 0.61262718 | DQ92: 0.9227041697 | DR92: 1.247630865 | DS92: 1.552233892 | DT92: 1.799852001 | DU92: 1.956935626 | DV92: 1.998086868
Y93: 2.34006 | Z93: 1.943182796 | AA93: 1.999843604 | AB93: 1.933448845 | AC93: 1.759087459 | AD93: 1.503037885 | AE93: 1.19818926 | AF93: 0.8794044284 | AG93: 0.5794151964 | AH93: 0.3256457687 | AI93: 0.1381583044 | AJ93: 0.02873493044 | AK93: 0.0009719601721 | AL93: 0.05117226269 | AM93: 0.1697796599 | AN93: 0.3430977294 | AO93: 0.5550639581 | AP93: 0.788897401 | AQ93: 1.0284933 | AR93: 1.259492975 | AS93: 1.470005631 | AT93: 1.650997021 | AU93: 1.796386794 | AV93: 1.902912122 | AW93: 1.969821385 | AX93: 1.998460316 | AY93: 1.991806303 | AZ93: 1.953996731 | BA93: 1.889886131 | BB93: 1.804655782 | BC93: 1.703489461 | BD93: 1.59132065 | BE93: 1.472650038 | BF93: 1.351427567 | BG93: 1.230990407 | BH93: 1.11404681 | BI93: 1.002695493 | BJ93: 0.898470741 | BK93: 0.8024044476 | BL93: 0.715097699 | BM93: 0.6367959388 | BN93: 0.5674631951 | BO93: 0.5068521489 | BP93: 0.4545679518 | BQ93: 0.4101246194 | BR93: 0.3729935465 | BS93: 0.3426442107 | BT93: 0.3185774812 | BU93: 0.3003521525 | BV93: 0.2876054055 | BW93: 0.2800678848 | BX93: 0.2775739977 | BY93: 0.2800728844 | BZ93: 0.2876155138 | CA93: 0.3003675882 | CB93: 0.3185985625 | CC93: 0.3426713427 | CD93: 0.3730272033 | CE93: 0.4101653207 | CF93: 0.4546162335 | CG93: 0.5069085255 | CH93: 0.5675281158 | CI93: 0.6368697347 | CJ93: 0.7151805228 | CK93: 0.8024962066 | CL93: 0.8985710243 | CM93: 1.002803496 | CN93: 1.114161261 | CO93: 1.231109499 | CP93: 1.351548901 | CQ93: 1.472770592 | CR93: 1.591436774 | CS93: 1.703596914 | CT93: 1.804749823 | CU93: 1.889961664 | CV93: 1.954048526 | CW93: 1.991829282 | CX93: 1.998449915 | CY93: 1.969773967 | CZ93: 1.902825449 | DA93: 1.796260495 | DB93: 1.650833042 | DC93: 1.469808605 | DD93: 1.259270457 | DE93: 1.028255792 | DF93: 0.7886581206 | DG93: 0.5548382873 | DH93: 0.3429023182 | DI93: 0.1696311866 | DJ93: 0.0510858958 | DK93: 0.000959621962 | DL93: 0.02880351568 | DM93: 0.1383080625 | DN93: 0.3258690967 | DO93: 0.5796961055 | DP93: 0.8797189259 | DQ93: 1.198506826 | DR93: 1.503324105 | DS93: 1.759307712 | DT93: 1.93357276 | DU93: 1.999849782 | DV93: 1.943063115
Y94: 2.40006 | Z94: 1.812061049 | AA94: 1.96464031 | AB94: 1.99660054 | AC94: 1.911253454 | AD94: 1.725332578 | AE94: 1.465250328 | AF94: 1.162789677 | AG94: 0.8508757003 | AH94: 0.559924626 | AI94: 0.3150882229 | AJ94: 0.1345326046 | AK94: 0.02873664407 | AL94: 0.0006802218414 | AM94: 0.04672118222 | AN94: 0.157929775 | AO94: 0.3216533514 | AP94: 0.5231126359 | AQ94: 0.7468740809 | AR94: 0.9780917101 | AS94: 1.20345942 | AT94: 1.411856059 | AU94: 1.594698005 | AV94: 1.746036461 | AW94: 1.862449762 | AX94: 1.942785886 | AY94: 1.98780901 | AZ94: 1.99979813 | BA94: 1.982137394 | BB94: 1.938928344 | BC94: 1.874644845 | BD94: 1.793843038 | BE94: 1.700931503 | BF94: 1.60000127 | BG94: 1.494711383 | BH94: 1.388223119 | BI94: 1.283174705 | BJ94: 1.181687947 | BK94: 1.085398554 | BL94: 0.9955027116 | BM94: 0.9128135337 | BN94: 0.8378221689 | BO94: 0.7707595278 | BP94: 0.7116556432 | BQ94: 0.6603946267 | BR94: 0.6167639512 | BS94: 0.5804974012 | BT94: 0.551311482 | BU94: 0.5289353828 | BV94: 0.5131347738 | BW94: 0.5037297982 | BX94: 0.5006076187 | BY94: 0.5037360522 | BZ94: 0.5131473551 | CA94: 0.5289544394 | CB94: 0.5513372236 | CC94: 0.5805300839 | CD94: 0.6168038566 | CE94: 0.6604420352 | CF94: 0.7117108007 | CG94: 0.7708226061 | CH94: 0.8378932197 | CI94: 0.9128924359 | CJ94: 0.9955891143 | CK94: 1.085491815 | CL94: 1.181787072 | CM94: 1.283278287 | CN94: 1.388329284 | CO94: 1.494817755 | CP94: 1.600104948 | CQ94: 1.701029068 | CR94: 1.793930602 | CS94: 1.874718133 | CT94: 1.938982841 | CU94: 1.982168542 | CV94: 1.999801587 | CW94: 1.987780973 | CX94: 1.942723456 | CY94: 1.86235135 | CZ94: 1.745902197 | DA94: 1.594530125 | DB94: 1.411659217 | DC94: 1.20324088 | DD94: 0.9778613624 | DE94: 0.7466442224 | DF94: 0.5228974766 | DG94: 0.3214682153 | DH94: 0.1577899972 | DI94: 0.04664073769 | DJ94: 0.0006701693139 | DK94: 0.02880351568 | DL94: 0.1346769203 | DM94: 0.3153033458 | DN94: 0.5601961927 | DO94: 0.8511818492 | DP94: 1.163102246 | DQ94: 1.465537105 | DR94: 1.725560538 | DS94: 1.911392772 | DT94: 1.996628953 | DU94: 1.964547261 | DV94: 1.811850908
Y95: 2.46006 | Z95: 1.610005922 | AA95: 1.848141931 | AB95: 1.978212265 | AC95: 1.99118553 | AD95: 1.892620309 | AE95: 1.700090757 | AF95: 1.439574224 | AG95: 1.141448614 | AH95: 0.8366597709 | AI95: 0.5534772129 | AJ95: 0.315093469 | AK95: 0.1381656078 | AL95: 0.03226634435 | AM95: 0.0001167229326 | AN95: 0.03841547913 | AO95: 0.1390586642 | AP95: 0.2905501744 | AQ95: 0.4794309912 | AR95: 0.691593669 | AS95: 0.9133914002 | AT95: 1.132492032 | AU95: 1.33846276 | AV95: 1.52309873 | AW95: 1.680527826 | AX95: 1.807134871 | AY95: 1.901352667 | AZ95: 1.963366076 | BA95: 1.994770531 | BB95: 1.998219294 | BC95: 1.977085834 | BD95: 1.935159791 | BE95: 1.876387792 | BF95: 1.804664332 | BG95: 1.723673163 | BH95: 1.636776158 | BI95: 1.546944358 | BJ95: 1.456724634 | BK95: 1.368234987 | BL95: 1.283181611 | BM95: 1.202891458 | BN95: 1.128354818 | BO95: 1.060273342 | BP95: 0.9991098965 | BQ95: 0.9451374555 | BR95: 0.8984850666 | BS95: 0.8591795206 | BT95: 0.8271819012 | BU95: 0.8024185637 | BV95: 0.7848063673 | BW95: 0.7742721512 | BX95: 0.7707665395 | BY95: 0.7742791689 | BZ95: 0.7848204335 | CA95: 0.8024397415 | CB95: 0.8272102715 | CC95: 0.8592151656 | CD95: 0.8985280471 | CE95: 0.9451877833 | CF95: 0.9991675001 | CG95: 1.060338028 | CH95: 1.128426225 | CI95: 1.202969014 | CJ95: 1.283264476 | CK95: 1.368322012 | CL95: 1.456814308 | CM95: 1.547034772 | CN95: 1.636864981 | CO95: 1.723757633 | CP95: 1.804741275 | CQ95: 1.876453669 | CR95: 1.935210792 | CS95: 1.977118006 | CT95: 1.99822873 | CU95: 1.994753603 | CV95: 1.963319717 | CW95: 1.901274695 | CX95: 1.807024339 | CY95: 1.680385369 | CZ95: 1.522926899 | DA95: 1.338266272 | DB95: 1.13227793 | DC95: 0.9131690375 | DD95: 0.6913745047 | DE95: 0.4792281353 | DF95: 0.2903776689 | DG95: 0.1389304963 | DH95: 0.0383443577 | DI95: 0.0001126881694 | DJ95: 0.03233532193 | DK95: 0.1383080625 | DL95: 0.3153033458 | DM95: 0.5537413723 | DN95: 0.8369581206 | DO95: 1.141755098 | DP95: 1.439858757 | DQ95: 1.700322076 | DR95: 1.89276957 | DS95: 1.991230306 | DT95: 1.978140457 | DU95: 1.847954973 | DV95: 1.609720617
Y96: 2.52006 | Z96: 1.349709367 | AA96: 1.654605657 | AB96: 1.873750507 | AC96: 1.986264272 | AD96: 1.985776232 | AE96: 1.879272065 | AF96: 1.68451033 | AG96: 1.426601438 | AH96: 1.134324536 | AI96: 0.8366668742 | AJ96: 0.5599375567 | AK96: 0.3256617184 | AL96: 0.1493248812 | AM96: 0.03992555587 | AN96: 0.0002148197055 | AO96: 0.02745583573 | AP96: 0.1145207101 | AQ96: 0.25115047 | AR96: 0.4252288643 | AS96: 0.6239548621 | AT96: 0.8348358519 | AU96: 1.046458828 | AV96: 1.249027079 | AW96: 1.434673368 | AX96: 1.597576816 | AY96: 1.733920181 | AZ96: 1.841727834 | BA96: 1.920623967 | BB96: 1.971546595 | BC96: 1.99644711 | BD96: 1.997998538 | BE96: 1.979328996 | BF96: 1.943790809 | BG96: 1.894770556 | BH96: 1.835541213 | BI96: 1.76915452 | BJ96: 1.69836965 | BK96: 1.625613037 | BL96: 1.552963744 | BM96: 1.482158715 | BN96: 1.414612645 | BO96: 1.351447789 | BP96: 1.293529693 | BQ96: 1.241505618 | BR96: 1.195843072 | BS96: 1.156866528 | BT96: 1.124790915 | BU96: 1.099750927 | BV96: 1.081825511 | BW96: 1.071057164 | BX96: 1.067465815 | BY96: 1.07106435 | BZ96: 1.081839866 | CA96: 1.099772423 | CB96: 1.124819494 | CC96: 1.156902086 | CD96: 1.195885438 | CE96: 1.241554529 | CF96: 1.293584759 | CG96: 1.351508458 | CH96: 1.414678168 | CI96: 1.482228102 | CJ96: 1.553035734 | CK96: 1.625686058 | CL96: 1.698441795 | CM96: 1.769223537 | CN96: 1.835604503 | CO96: 1.894825206 | CP96: 1.943833641 | CQ96: 1.979356658 | CR96: 1.998007634 | CS96: 1.996434364 | CT96: 1.971509065 | CU96: 1.920559295 | CV96: 1.841634525 | CW96: 1.733797905 | CX96: 1.597426704 | CY96: 1.434498282 | CZ96: 1.248831822 | DA96: 1.046250249 | DB96: 0.8346228188 | DC96: 0.6237480507 | DD96: 0.425040337 | DE96: 0.2509930217 | DF96: 0.1144069816 | DG96: 0.02739722074 | DH96: 0.000220225709 | DI96: 0.04000011492 | DJ96: 0.1494687442 | DK96: 0.3258690967 | DL96: 0.5601961927 | DM96: 0.8369581206 | DN96: 1.134624193 | DO96: 1.426881436 | DP96: 1.684741247 | DQ96: 1.879426348 | DR96: 1.985831841 | DS96: 1.98620832 | DT96: 1.873582362 | DU96: 1.654338907 | DV96: 1.349372072
Y97: 2.58006 | Z97: 1.051231227 | AA97: 1.396456359 | AB97: 1.686637462 | AC97: 1.890686801 | AD97: 1.990610675 | AE97: 1.98191776 | AF97: 1.872325654 | AG97: 1.679249095 | AH97: 1.42660795 | AI97: 1.141462869 | AJ97: 0.8508970589 | AK97: 0.5794413255 | AL97: 0.347210445 | AM97: 0.1688008786 | AN97: 0.0529048018 | AO97: 0.002529049859 | AP97: 0.01567028589 | AQ97: 0.08628609494 | AR97: 0.2054102111 | AS97: 0.3622822914 | AT97: 0.5453923691 | AU97: 0.743372092 | AV97: 0.9456950837 | AW97: 1.143174634 | AX97: 1.328267034 | AY97: 1.495202895 | AZ97: 1.639977019 | BA97: 1.760230832 | BB97: 1.855060942 | BC97: 1.92478432 | BD97: 1.970685916 | BE97: 1.99476906 | BF97: 1.999523497 | BG97: 1.987720795 | BH97: 1.962242493 | BI97: 1.92594276 | BJ97: 1.881544725 | BK97: 1.831567709 | BL97: 1.778281483 | BM97: 1.7236831 | BN97: 1.669491704 | BO97: 1.617156939 | BP97: 1.567876979 | BQ97: 1.522622688 | BR97: 1.482165022 | BS97: 1.447103298 | BT97: 1.417892486 | BU97: 1.394868115 | BV97: 1.37826776 | BW97: 1.368248375 | BX97: 1.364898981 | BY97: 1.368255073 | BZ97: 1.378281094 | CA97: 1.394887963 | CB97: 1.417918653 | CC97: 1.447135502 | CD97: 1.482202872 | CE97: 1.52266566 | CF97: 1.567924392 | CG97: 1.617207928 | CH97: 1.669545188 | CI97: 1.723737759 | CJ97: 1.778335735 | CK97: 1.831619695 | CL97: 1.88159231 | CM97: 1.925983543 | CN97: 1.962273844 | CO97: 1.987739911 | CP97: 1.999527489 | CQ97: 1.994755076 | CR97: 1.970651294 | CS97: 1.924726778 | CT97: 1.854978795 | CU97: 1.760123237 | CV97: 1.639844228 | CW97: 1.495046504 | CX97: 1.328090199 | CY97: 1.14298223 | CZ97: 0.9454937787 | DA97: 0.7431702867 | DB97: 0.5451999871 | DC97: 0.3621103803 | DD97: 0.2052703435 | DE97: 0.08618956858 | DF97: 0.01562714726 | DG97: 0.002546992772 | DH97: 0.05298802573 | DI97: 0.1689490218 | DJ97: 0.3474177349 | DK97: 0.5796961055 | DL97: 0.8511818492 | DM97: 1.141755098 | DN97: 1.426881436 | DO97: 1.679476283 | DP97: 1.872480504 | DQ97: 1.981979045 | DR97: 1.990565341 | DS97: 1.890532906 | DT97: 1.686386167 | DU97: 1.396132442 | DV97: 1.050871693
Y98: 2.64006 | Z98: 0.7410320626 | AA98: 1.094306114 | AB98: 1.429235771 | AC98: 1.707282335 | AD98: 1.900294869 | AE98: 1.99247569 | AF98: 1.980530717 | AG98: 1.872329175 | AH98: 1.684520828 | AI98: 1.439593625 | AJ98: 1.162818092 | AK98: 0.8794401658 | AL98: 0.612374953 | AM98: 0.3805406533 | AN98: 0.1978699143 | AO98: 0.07295484356 | AP98: 0.00922596243 | AQ98: 0.005534456383 | AR98: 0.05699797487 | AS98: 0.1559780654 | AT98: 0.2930766099 | AU98: 0.4580641437 | AV98: 0.6406802651 | AW98: 0.8312721784 | AX98: 1.021259555 | AY98: 1.203431222 | AZ98: 1.372091366 | BA98: 1.523080321 | BB98: 1.653698243 | BC98: 1.762559994 | BD98: 1.849407287 | BE98: 1.914900414 | BF98: 1.960407481 | BG98: 1.987804527 | BH98: 1.999295638 | BI98: 1.997258454 | BJ98: 1.984117374 | BK98: 1.962244452 | BL98: 1.933886244 | BM98: 1.901113787 | BN98: 1.865792282 | BO98: 1.829566821 | BP98: 1.793860552 | BQ98: 1.759881949 | BR98: 1.728638185 | BS98: 1.700952043 | BT98: 1.67748025 | BU98: 1.658731477 | BV98: 1.645082691 | BW98: 1.636792813 | BX98: 1.634012969 | BY98: 1.636798367 | BZ98: 1.645093697 | CA98: 1.658747731 | CB98: 1.677501436 | CC98: 1.700977721 | CD98: 1.728667774 | CE98: 1.759914714 | CF98: 1.793895579 | CG98: 1.829603006 | CH98: 1.865828311 | CI98: 1.901148125 | CJ98: 1.933917136 | CK98: 1.962269926 | CL98: 1.984135264 | CM98: 1.99726644 | CN98: 1.999291308 | CO98: 1.987785461 | CP98: 1.960371366 | CQ98: 1.914845181 | CR98: 1.849331282 | CS98: 1.762462169 | CT98: 1.653578362 | CU98: 1.522939173 | CV98: 1.371930965 | CW98: 1.203254979 | CX98: 1.021072394 | CY98: 0.8310805652 | CZ98: 0.640492133 | DA98: 0.4578886728 | DB98: 0.2929238492 | DC98: 0.1558583804 | DD98: 0.05692132458 | DE98: 0.005509521053 | DF98: 0.009259168927 | DG98: 0.07304936166 | DH98: 0.1980247245 | DI98: 0.3807498098 | DJ98: 0.61262718 | DK98: 0.8797189259 | DL98: 1.163102246 | DM98: 1.439858757 | DN98: 1.684741247 | DO98: 1.872480504 | DP98: 1.980592877 | DQ98: 1.992435967 | DR98: 1.900150653 | DS98: 1.707043066 | DT98: 1.428923598 | DU98: 1.093954877 | DV98: 0.740684357
Y99: 2.70006 | Z99: 0.4500029249 | AA99: 0.7759572215 | AB99: 1.122927543 | AC99: 1.448636648 | AD99: 1.717383446 | AE99: 1.903402439 | AF99: 1.992474809 | AG99: 1.981920486 | AH99: 1.879282353 | AI99: 1.700111321 | AJ99: 1.465282194 | AK99: 1.198231603 | AL99: 0.9224313876 | AM99: 0.6593138497 | AN99: 0.4267665334 | AO99: 0.2382262796 | AP99: 0.1023329392 | AQ99: 0.02305555827 | AR99: 0.0001776613419 | AS99: 0.03002061063 | AT99: 0.1062906954 | AU99: 0.2209519441 | AV99: 0.3650482656 | AW99: 0.5294217207 | AX99: 0.7052957174 | AY99: 0.8847108926 | AZ99: 1.060816405 | BA99: 1.228030059 | BB99: 1.382087335 | BC99: 1.520002568 | BD99: 1.639965954 | BE99: 1.741198483 | BF99: 1.823784055 | BG99: 1.88849452 | BH99: 1.936619692 | BI99: 1.969810851 | BJ99: 1.989943084 | BK99: 1.998999227 | BL99: 1.998976048 | BM99: 1.99181182 | BN99: 1.979333365 | BO99: 1.963220022 | BP99: 1.944981713 | BQ99: 1.925948198 | BR99: 1.907266764 | BS99: 1.889905837 | BT99: 1.874662296 | BU99: 1.862170614 | BV99: 1.852912314 | BW99: 1.847224497 | BX99: 1.845306567 | BY99: 1.847228324 | BZ99: 1.852919834 | CA99: 1.862181559 | CB99: 1.874676257 | CC99: 1.88992226 | CD99: 1.907284933 | CE99: 1.925967232 | CF99: 1.945000555 | CG99: 1.963237433 | CH99: 1.979347925 | CI99: 1.991821932 | CJ99: 1.998979954 | CK99: 1.998995036 | CL99: 1.989928819 | CM99: 1.969784508 | CN99: 1.936579325 | CO99: 1.888438343 | CP99: 1.823710575 | CQ99: 1.741106642 | CR99: 1.639855294 | CS99: 1.519873409 | CT99: 1.381940946 | CU99: 1.227868816 | CV99: 1.06064392 | CW99: 0.8845320912 | CX99: 0.705116833 | CY99: 0.529250196 | CZ99: 0.3648925293 | DA99: 0.2208210487 | DB99: 0.106193807 | DC99: 0.02996635454 | DD99: 0.0001733449641 | DE99: 0.02310631272 | DF99: 0.1024408447 | DG99: 0.2383895626 | DH99: 0.4269789421 | DI99: 0.6595643283 | DJ99: 0.9227041697 | DK99: 1.198506826 | DL99: 1.465537105 | DM99: 1.700322076 | DN99: 1.879426348 | DO99: 1.981979045 | DP99: 1.992435967 | DQ99: 1.903263461 | DR99: 1.717152664 | DS99: 1.448334186 | DT99: 1.122584553 | DU99: 0.7756134004 | DV99: 0.4497022976
Y100: 2.76006 | Z100: 0.2105159401 | AA100: 0.4742743518 | AB100: 0.7970517103 | AC100: 1.137197958 | AD100: 1.455053295 | AE100: 1.71737843 | AF100: 1.900288601 | AG100: 1.990607722 | AH100: 1.985781072 | AI100: 1.892636537 | AJ100: 1.725362316 | AK100: 1.503081443 | AL100: 1.247365773 | AM100: 0.9799619304 | AN100: 0.720916638 | AO100: 0.4872031648 | AP100: 0.2918748378 | AQ100: 0.1437120061 | AR100: 0.04728795251 | AS100: 0.003356588579 | AT100: 0.009457863037 | AU100: 0.06064206142 | AV100: 0.1502276763 | AW100: 0.2705255868 | AX100: 0.4134818118 | AY100: 0.5712097555 | AZ100: 0.7363990937 | BA100: 0.9026014133 | BB100: 1.064402154 | BC100: 1.217494473 | BD100: 1.358673785 | BE100: 1.485772522 | BF100: 1.597553724 | BG100: 1.693579939 | BH100: 1.774071232 | BI100: 1.8397631 | BJ100: 1.891772191 | BK100: 1.931475132 | BL100: 1.960403469 | BM100: 1.980155965 | BN100: 1.992328082 | BO100: 1.998457519 | BP100: 1.999984036 | BQ100: 1.998221441 | BR100: 1.994339501 | BS100: 1.989353581 | BT100: 1.98411993 | BU100: 1.979334821 | BV100: 1.975535948 | BW100: 1.973104829 | BX100: 1.97226922 | BY100: 1.973106489 | BZ100: 1.975539114 | CA100: 1.97933919 | CB100: 1.984125043 | CC100: 1.98935882 | CD100: 1.994344091 | CE100: 1.998224444 | CF100: 1.99998436 | CG100: 1.998453919 | CH100: 1.992319177 | CI100: 1.980140262 | CJ100: 1.960379393 | CK100: 1.931441075 | CL100: 1.891726575 | CM100: 1.839704454 | CN100: 1.773998292 | CO100: 1.693491756 | CP100: 1.597449799 | CQ100: 1.48565294 | CR100: 1.358539359 | CS100: 1.217346887 | CT100: 1.064244079 | CU100: 0.9024365984 | CV100: 0.7362324058 | CW100: 0.5710471465 | CX100: 0.4133301991 | CY100: 0.2703926269 | CZ100: 0.1501214183 | DA100: 0.06057047515 | DB100: 0.009428248535 | DC100: 0.003374886012 | DD100: 0.0473579916 | DE100: 0.1438347523 | DF100: 0.2920477116 | DG100: 0.4874195287 | DH100: 0.721165552 | DI100: 0.9802282813 | DJ100: 1.247630865 | DK100: 1.503324105 | DL100: 1.725560538 | DM100: 1.89276957 | DN100: 1.985831841 | DO100: 1.990565341 | DP100: 1.900150653 | DQ100: 1.717152664 | DR100: 1.454758345 | DS100: 1.136862746 | DT100: 0.796713311 | DU100: 0.4739742707 | DV100: 0.2102950314
Y101: 2.82006 | Z101: 0.05267584295 | AA101: 0.223951987 | AB101: 0.4865716765 | AC101: 0.8041000133 | AD101: 1.137190826 | AE101: 1.448623779 | AF101: 1.707267065 | AG101: 1.890673708 | AH101: 1.986258325 | AI101: 1.991191253 | AJ101: 1.91127421 | AK101: 1.759124954 | AL101: 1.552005771 | AM101: 1.309595678 | AN101: 1.051944401 | AO101: 0.7977721792 | AP101: 0.563205467 | AQ101: 0.3609733175 | AR101: 0.2000378059 | AS101: 0.08559637693 | AT101: 0.01937396071 | AU101: 0.0001160638349 | AV101: 0.02419776617 | AW101: 0.0862743922 | AX101: 0.1799144843 | AY101: 0.2981719913 | AZ101: 0.4340703255 | BA101: 0.5809847992 | BB101: 0.7329211963 | BC101: 0.8846965887 | BD101: 1.032034076 | BE101: 1.171586234 | BF101: 1.300903153 | BG101: 1.418360543 | BH101: 1.523061912 | BI101: 1.61472681 | BJ101: 1.693574752 | BK101: 1.760212122 | BL101: 1.815527182 | BM101: 1.860596397 | BN101: 1.896603735 | BO101: 1.924773361 | BP101: 1.94631525 | BQ101: 1.962382615 | BR101: 1.9740397 | BS101: 1.982238271 | BT101: 1.987801163 | BU101: 1.991411273 | BV101: 1.993604601 | BW101: 1.994766118 | BX101: 1.995127512 | BY101: 1.994765382 | BZ101: 1.993602975 | CA101: 1.991408448 | CB101: 1.987796678 | CC101: 1.982231515 | CD101: 1.974029919 | CE101: 1.96236892 | CF101: 1.946296628 | CG101: 1.9247487 | CH101: 1.896571847 | CI101: 1.860556056 | CJ101: 1.815477175 | CK101: 1.760151307 | CL101: 1.693502131 | CM101: 1.61464162 | CN101: 1.522963721 | CO101: 1.418249363 | CP101: 1.300779554 | CQ101: 1.171451457 | CR101: 1.031890146 | CS101: 0.8845463949 | CT101: 0.7327685501 | CU101: 0.5808344403 | CV101: 0.4339278654 | CW101: 0.2980437778 | CX101: 0.1798073731 | CY101: 0.08619541711 | CZ101: 0.02415370437 | DA101: 0.0001129044475 | DB101: 0.01941629635 | DC101: 0.08568675334 | DD101: 0.2001760809 | DE101: 0.3611560965 | DF101: 0.563425696 | DG101: 0.7980189824 | DH101: 1.052203253 | DI101: 1.309848981 | DJ101: 1.552233892 | DK101: 1.759307712 | DL101: 1.911392772 | DM101: 1.991230306 | DN101: 1.98620832 | DO101: 1.890532906 | DP101: 1.707043066 | DQ101: 1.448334186 | DR101: 1.136862746 | DS101: 0.8037681779 | DT101: 0.4862751335 | DU101: 0.2237295313 | DV101: 0.0525606037
Y102: 2.88006 | Z102: 0.0001277735185 | AA102: 0.05738347596 | AB102: 0.2285083335 | AC102: 0.4865654979 | AD102: 0.79703761 | AE102: 1.122906107 | AF102: 1.429209759 | AG102: 1.686611289 | AH102: 1.873729495 | AI102: 1.978201801 | AJ102: 1.996605284 | AK102: 1.933472087 | AL102: 1.799687755 | AM102: 1.610565935 | AN102: 1.383861905 | AO102: 1.137933819 | AP102: 0.8901968396 | AQ102: 0.6559517084 | AR102: 0.4476130375 | AS102: 0.2743180699 | AT102: 0.1418655569 | AU102: 0.05291635672 | AV102: 0.007380695419 | AW102: 0.002919250422 | AX102: 0.03549360844 | AY102: 0.09991365575 | AZ102: 0.1903428904 | BA102: 0.3007358338 | BB102: 0.4251935136 | BC102: 0.5582327239 | BD102: 0.6949721785 | BE102: 0.8312437914 | BF102: 0.9636403733 | BG102: 1.089512388 | BH102: 1.206926441 | BI102: 1.314597275 | BJ102: 1.411803571 | BK102: 1.498296066 | BL102: 1.574204655 | BM102: 1.639949356 | BN102: 1.696158468 | BO102: 1.743595862 | BP102: 1.783098326 | BQ102: 1.815523015 | BR102: 1.84170451 | BS102: 1.862420607 | BT102: 1.878365742 | BU102: 1.89013091 | BV102: 1.898188958 | BW102: 1.902884267 | BX102: 1.904425993 | BY102: 1.90288117 | BZ102: 1.898182626 | CA102: 1.890121064 | CB102: 1.878351974 | CC102: 1.862402381 | CD102: 1.841681182 | CE102: 1.815493844 | CF102: 1.783062501 | CG102: 1.743552531 | CH102: 1.696106775 | CI102: 1.639888493 | CJ102: 1.574133913 | CK102: 1.498214909 | CL102: 1.411711709 | CM102: 1.314494753 | CN102: 1.20681373 | CO102: 1.089390475 | CP102: 0.9635108557 | CQ102: 0.8311089514 | CR102: 0.6948350408 | CS102: 0.5580970797 | CT102: 0.4250639009 | CU102: 0.3006174594 | CV102: 0.1902414835 | CW102: 0.09983524068 | CX102: 0.03544419245 | CY102: 0.002904425713 | CZ102: 0.007405164477 | DA102: 0.05298340058 | DB102: 0.1419764786 | DC102: 0.2744716588 | DD102: 0.4478051138 | DE102: 0.6561748165 | DF102: 0.8904401662 | DG102: 1.13818341 | DH102: 1.384101239 | DI102: 1.610776895 | DJ102: 1.799852001 | DK102: 1.93357276 | DL102: 1.996628953 | DM102: 1.978140457 | DN102: 1.873582362 | DO102: 1.686386167 | DP102: 1.428923598 | DQ102: 1.122584553 | DR102: 0.796713311 | DS102: 0.4862751335 | DT102: 0.2282884929 | DU102: 0.05726574149 | DV102: 0.000133593087
Y103: 2.94006 | Z103: 0.06594522204 | AA103: 3.866001189e-05 | AB103: 0.05738107207 | AC103: 0.2239429054 | AD103: 0.4742559778 | AE103: 0.7759291537 | AF103: 1.094270275 | AG103: 1.396416699 | AH103: 1.654567555 | AI103: 1.848111414 | AJ103: 1.964623228 | AK103: 1.999844875 | AL103: 1.956856163 | AM103: 1.8446881 | AN103: 1.67663444 | AO103: 1.468491201 | AP103: 1.236908176 | AQ103: 0.9979821906 | AR103: 0.7661672997 | AS103: 0.5535287525 | AT103: 0.369328792 | AU103: 0.2199048946 | AV103: 0.1087845612 | AW103: 0.03697394048 | AX103: 0.0033583571 | AY103: 0.005159020973 | AZ103: 0.038399669 | BA103: 0.09834781628 | BB103: 0.1799062441 | BC103: 0.2779403295 | BD103: 0.3875352244 | BE103: 0.5041834497 | BF103: 0.6239081619 | BG103: 0.743330339 | BH103: 0.8596896656 | BI103: 0.9708292958 | BJ103: 1.07515423 | BK103: 1.171572047 | BL103: 1.259423441 | BM103: 1.338408559 | BN103: 1.408513756 | BO103: 1.469942078 | BP103: 1.523049639 | BQ103: 1.568289173 | BR103: 1.606161279 | BS103: 1.637173365 | BT103: 1.66180593 | BU103: 1.68048562 | BV103: 1.693564378 | BW103: 1.701304041 | BX103: 1.703865793 | BY103: 1.701298906 | BZ103: 1.693554002 | CA103: 1.68046979 | CB103: 1.661784336 | CC103: 1.637145615 | CD103: 1.606126917 | CE103: 1.568247699 | CF103: 1.523000542 | CG103: 1.469884875 | CH103: 1.408448034 | CI103: 1.338334027 | CJ103: 1.259339995 | CK103: 1.171479831 | CL103: 1.075053711 | CM103: 0.9707213383 | CN103: 0.8595756025 | CO103: 0.7432120379 | CP103: 0.6237880766 | CQ103: 0.5040646504 | CR103: 0.3874213962 | CS103: 0.2778357304 | CT103: 0.1798156112 | CU103: 0.09827621139 | CV103: 0.03835225678 | CW103: 0.005140776324 | CX103: 0.003373704053 | CY103: 0.03702633261 | CZ103: 0.1088760227 | DA103: 0.2200355518 | DB103: 0.3694964364 | DC103: 0.5537284857 | DD103: 0.766391322 | DE103: 0.9982197938 | DF103: 1.237146004 | DG103: 1.468713823 | DH103: 1.676825274 | DI103: 1.844830664 | DJ103: 1.956935626 | DK103: 1.999849782 | DL103: 1.964547261 | DM103: 1.847954973 | DN103: 1.654338907 | DO103: 1.396132442 | DP103: 1.093954877 | DQ103: 0.7756134004 | DR103: 0.4739742707 | DS103: 0.2237295313 | DT103: 0.05726574149 | DU103: 4.182448037e-05 | DV103: 0.06607385056
Y104: 3.00006 | Z104: 0.2492505183 | AA104: 0.06594779339 | AB104: 0.0001280038109 | AC104: 0.0526689252 | AD104: 0.2104982638 | AE104: 0.4499728593 | AF104: 0.7409903366 | AG104: 1.051180893 | AH104: 1.349655403 | AI104: 1.609954573 | AJ104: 1.812019029 | AK104: 1.943156477 | AL104: 1.998103747 | AM104: 1.978361763 | AN104: 1.891021033 | AO104: 1.747299956 | AP104: 1.560996759 | AQ104: 1.347017763 | AR104: 1.120098787 | AS104: 0.893790094 | AT104: 0.6797336713 | AU104: 0.4872278901 | AV104: 0.3230501668 | AW104: 0.1914930285 | AX104: 0.09456192868 | AY104: 0.03228267438 | AZ104: 0.003070587533 | BA104: 0.004120783829 | BB104: 0.03178767935 | BC104: 0.08193081938 | BD104: 0.1502124947 | BE104: 0.2323398216 | BF104: 0.3242497375 | BG104: 0.4222396495 | BH104: 0.5230493517 | BI104: 0.6239014905 | BJ104: 0.7225085361 | BK104: 0.8170541486 | BL104: 0.9061562474 | BM104: 0.9888181902 | BN104: 1.064373414 | BO104: 1.132427803 | BP104: 1.192803011 | BQ104: 1.245483049 | BR104: 1.290565666 | BS104: 1.328219427 | BT104: 1.358646901 | BU104: 1.382054067 | BV104: 1.398625797 | BW104: 1.408507184 | BX104: 1.411790445 | BY104: 1.408500609 | BZ104: 1.398612587 | CA104: 1.382034102 | CB104: 1.358620013 | CC104: 1.328185418 | CD104: 1.290524326 | CE104: 1.245434187 | CF104: 1.192746488 | CG104: 1.13236357 | CH104: 1.06430156 | CI104: 0.9887389916 | CJ104: 0.9060702255 | CK104: 0.8169621256 | CL104: 0.7224116926 | CM104: 0.6238014188 | CN104: 0.522948099 | CO104: 0.4221397473 | CP104: 0.3241542084 | CQ104: 0.2322521572 | CR104: 0.1501365956 | CS104: 0.08187088971 | CT104: 0.03174807004 | CU104: 0.004105778976 | CV104: 0.003084133885 | CW104: 0.03232805782 | CX104: 0.09464140843 | CY104: 0.1916074477 | CZ104: 0.3231985667 | DA104: 0.4874071644 | DB104: 0.679938305 | DC104: 0.8940120377 | DD104: 1.12032752 | DE104: 1.347240592 | DF104: 1.561199395 | DG104: 1.747467386 | DH104: 1.891138672 | DI104: 1.978416848 | DJ104: 1.998086868 | DK104: 1.943063115 | DL104: 1.811850908 | DM104: 1.609720617 | DN104: 1.349372072 | DO104: 1.050871693 | DP104: 0.740684357 | DQ104: 0.4497022976 | DR104: 0.2102950314 | DS104: 0.0525606037 | DT104: 0.000133593087 | DU104: 0.06607385056 | DV104: 0.2494883806

Sheet 46
T2: y= | U2: sin(X)+sin(x*10)/3+sin(X*100)/10
U4: X-Zentrum | V4: 600
U5: Y-Zentrum | V5: 350
U6: X + / - | V6: 3
U7: Y-Skala (100=wie X) | V7: 100
U8: Zeichenschritte | V8: 1000
U10: Y-Wert | V10: =SIN(V11)+SIN(V11*10)/3+SIN(V11*100)/10 -> -0.2816319204
U11: X-Wert | V11: 2.997033834
U12: Live anzeigen (langsamer) | W12: FALSE
U13: Letzte Funktion löschen | W13: TRUE
U30: sin(X)+sin(x*10)/3+sin(X*100)/10
